{"text_format":"1","workbook":"xlsx","n_sheets":9,"sheets":["Narrative & Detail Budget","Summary Budget","Transferability","GEPA","Teacher Quality","Private Schools","Sheet1","Eisenhower","Prefills"],"not_rendered":{"charts":0,"images":2,"macros":1,"external_links":4,"defined_names":154,"comments":2,"pivot_tables":0},"unopened":[],"bounds":{"document_bytes":16777216,"sheet_cells":100000,"rows_first":2000,"rows_last":500,"rows_between":2000,"halvings":0,"cell_chars":16384,"cell_head_chars":4096},"cells_cut":0,"cells_raw":0,"read":"whole","date_system":"1900"}

{"sheet":"Narrative & Detail Budget","index":0,"n_rows":484,"n_cols":16,"rows_kept":484,"cut":false,"hidden":false,"merged":[[483,0,483,15],[480,0,480,15],[477,0,477,15],[474,0,474,15],[469,0,469,15],[417,11,417,12],[417,8,417,10],[456,9,456,10],[456,11,456,12],[422,0,422,15],[423,0,423,15],[434,0,434,8],[435,0,435,8],[445,0,445,8],[446,0,446,8],[447,0,447,8],[448,0,448,8],[449,0,449,8],[450,0,450,8],[439,0,439,8],[440,0,440,8],[441,0,441,8],[442,0,442,8],[443,0,443,8],[168,0,168,15],[231,13,231,15],[184,0,184,15],[213,0,213,15],[165,0,165,15],[163,1,163,15],[171,0,171,15],[173,0,173,15],[200,0,200,15],[193,0,193,15],[215,0,215,15],[228,0,229,15],[199,0,199,15],[207,0,207,15],[202,0,202,15],[187,0,187,15],[182,0,182,15],[192,0,192,15],[194,0,194,15],[185,0,185,15],[174,0,174,15],[203,0,203,15],[225,0,225,15],[428,0,428,8],[429,0,429,8],[428,9,428,10],[384,11,384,12],[385,11,385,12],[409,0,409,10],[370,0,370,12],[371,0,371,12],[329,0,329,12],[330,0,330,12],[401,0,401,10],[402,0,402,10],[403,0,403,10],[404,0,404,10],[405,0,405,10],[393,0,393,10],[394,0,394,10],[395,0,395,10],[396,0,396,10],[388,0,388,10],[389,0,389,10],[390,0,390,10],[391,0,391,10],[399,0,399,10],[389,11,389,12],[361,0,361,12],[362,0,362,12],[320,0,320,12],[424,0,424,8],[425,0,425,8],[425,9,425,10],[397,11,397,12],[427,0,427,8],[400,0,400,10],[376,0,376,12],[351,0,351,12],[352,0,352,12],[372,0,372,12],[328,0,328,12],[424,11,424,12],[386,0,386,10],[387,0,387,10],[367,0,367,12],[368,0,368,12],[382,0,382,15],[366,13,366,15],[363,0,363,12],[364,0,364,12],[315,13,315,15],[369,13,369,15],[370,13,370,15],[383,0,383,15],[384,13,384,15],[385,13,385,15],[373,0,373,12],[351,13,351,15],[350,13,350,15],[346,13,346,15],[363,13,363,15],[349,13,349,15],[385,0,385,10],[347,13,347,15],[348,13,348,15],[317,0,317,12],[318,0,318,12],[333,0,333,12],[319,0,319,12],[352,13,352,15],[353,13,353,15],[315,0,315,12],[353,0,353,12],[354,0,354,12],[313,0,313,12],[314,0,314,12],[301,0,301,15],[307,13,307,15],[308,13,308,15],[309,13,309,15],[310,13,310,15],[311,13,311,15],[312,13,312,15],[310,0,310,12],[311,0,311,12],[314,13,314,15],[313,13,313,15],[307,0,307,12],[308,0,308,12],[309,0,309,12],[312,0,312,12],[285,0,285,12],[286,0,286,12],[287,0,287,12],[305,0,305,12],[304,0,304,12],[302,13,302,15],[291,0,291,12],[294,13,294,15],[306,13,306,15],[292,0,292,12],[293,0,293,12],[294,0,294,12],[302,0,302,12],[303,0,303,12],[288,0,288,12],[306,0,306,12],[300,0,300,15],[298,0,298,15],[288,13,288,15],[289,13,289,15],[286,13,286,15],[290,13,290,15],[261,0,261,15],[234,0,234,11],[235,0,235,11],[236,0,236,11],[237,0,237,11],[249,0,249,12],[250,0,250,12],[279,13,279,15],[278,13,278,15],[277,13,277,15],[265,0,265,12],[270,13,270,15],[265,13,265,15],[266,13,266,15],[267,13,267,15],[266,0,266,12],[267,0,267,12],[262,13,262,15],[269,0,269,12],[271,13,271,15],[270,0,270,12],[262,0,262,12],[263,0,263,12],[234,13,234,15],[260,0,260,15],[233,13,233,15],[230,13,230,15],[221,0,221,15],[226,0,226,15],[206,0,206,15],[219,0,219,15],[222,0,222,15],[208,0,208,15],[232,0,232,11],[233,0,233,11],[232,13,232,15],[214,0,214,15],[227,0,227,15],[259,0,259,15],[246,13,246,15],[248,0,248,12],[236,13,236,15],[255,13,255,15],[250,13,250,15],[245,13,245,15],[254,13,254,15],[251,13,251,15],[248,13,248,15],[161,224,161,239],[161,112,161,127],[161,80,161,95],[143,0,143,15],[148,0,148,15],[155,0,155,15],[197,0,197,15],[161,240,161,255],[161,128,161,143],[161,144,161,159],[161,160,161,175],[161,176,161,191],[161,192,161,207],[161,208,161,223],[179,0,179,15],[181,0,181,15],[167,0,167,15],[152,0,152,15],[151,0,151,15],[153,0,153,15],[154,0,154,15],[144,0,144,15],[196,0,196,15],[188,0,188,15],[161,96,161,111],[161,32,161,47],[161,48,161,63],[161,64,161,79],[156,0,156,15],[157,0,157,15],[160,0,160,15],[63,5,68,5],[62,6,62,11],[64,12,64,15],[65,12,65,15],[66,12,66,15],[67,12,67,15],[68,12,68,15],[63,7,63,11],[64,7,64,11],[65,7,65,11],[68,7,68,11],[62,12,62,15],[63,12,63,15],[137,0,137,15],[136,0,136,15],[135,0,135,15],[146,0,146,15],[106,0,106,15],[125,0,125,15],[111,2,111,15],[116,1,116,15],[45,2,45,3],[95,7,96,15],[45,13,45,15],[89,7,90,15],[92,7,93,15],[73,0,73,15],[75,0,75,15],[47,8,47,12],[47,13,47,15],[110,2,110,15],[124,0,124,15],[109,1,109,15],[117,1,117,15],[107,0,107,15],[58,6,58,11],[59,6,59,11],[58,12,58,15],[52,0,52,15],[54,0,54,15],[55,0,55,15],[252,13,252,15],[253,13,253,15],[238,13,238,15],[239,13,239,15],[254,0,254,12],[249,13,249,15],[237,13,237,15],[251,0,251,12],[252,0,252,12],[253,0,253,12],[247,0,247,12],[241,0,241,15],[264,0,264,12],[405,11,405,12],[336,13,336,15],[334,0,334,12],[335,0,335,12],[346,0,346,12],[344,0,344,12],[345,0,345,12],[343,0,343,12],[349,0,349,12],[350,0,350,12],[375,0,375,12],[295,13,295,15],[293,13,293,15],[264,13,264,15],[292,13,292,15],[299,0,299,15],[287,13,287,15],[283,0,283,12],[285,13,285,15],[284,0,284,12],[392,0,392,10],[400,11,400,12],[400,13,400,15],[411,0,411,10],[396,11,396,12],[397,13,397,15],[411,11,411,12],[406,0,406,10],[407,13,407,15],[397,0,397,10],[398,0,398,10],[404,13,404,15],[405,13,405,15],[407,0,407,10],[408,0,408,10],[399,13,399,15],[406,13,406,15],[401,11,401,12],[401,13,401,15],[410,11,410,12],[482,1,482,15],[464,0,464,15],[466,1,466,15],[463,0,463,15],[468,1,468,15],[470,1,470,15],[476,1,476,15],[478,1,478,15],[453,13,453,15],[454,13,454,15],[454,11,454,12],[454,9,454,10],[456,13,456,15],[455,9,455,10],[455,11,455,12],[455,13,455,15],[459,0,459,15],[481,1,481,15],[461,0,461,15],[473,1,473,15],[475,1,475,15],[479,1,479,15],[471,1,471,15],[453,9,453,10],[448,9,448,10],[449,9,449,10],[450,11,450,12],[439,11,439,12],[439,13,439,15],[432,13,432,15],[430,13,430,15],[436,0,436,8],[437,0,437,8],[432,9,432,10],[444,0,444,8],[431,0,431,8],[432,0,432,8],[433,0,433,8],[430,0,430,8],[430,9,430,10],[430,11,430,12],[440,11,440,12],[440,13,440,15],[433,13,433,15],[434,9,434,10],[434,11,434,12],[447,9,447,10],[453,11,453,12],[451,9,451,10],[451,13,451,15],[452,0,452,8],[453,0,453,8],[454,0,454,8],[455,0,455,8],[451,0,451,8],[438,0,438,8],[452,13,452,15],[449,13,449,15],[447,13,447,15],[450,9,450,10],[446,11,446,12],[452,9,452,10],[452,11,452,12],[449,11,449,12],[450,13,450,15],[446,13,446,15],[448,11,448,12],[447,11,447,12],[448,13,448,15],[451,11,451,12],[440,9,440,10],[356,13,356,15],[376,13,376,15],[384,0,384,10],[424,13,424,15],[425,11,425,12],[415,13,415,15],[414,11,414,12],[412,13,412,15],[426,9,426,10],[411,13,411,15],[416,13,416,15],[416,11,416,12],[412,0,412,10],[426,0,426,8],[417,13,417,15],[414,13,414,15],[413,13,413,15],[403,13,403,15],[413,0,413,10],[414,0,414,10],[415,0,415,10],[416,0,416,10],[408,11,408,12],[410,0,410,10],[332,0,332,12],[331,0,331,12],[330,13,330,15],[409,13,409,15],[347,0,347,12],[348,0,348,12],[355,0,355,12],[356,0,356,12],[357,13,357,15],[358,13,358,15],[357,0,357,12],[358,0,358,12],[359,13,359,15],[360,13,360,15],[359,0,359,12],[360,0,360,12],[367,13,367,15],[368,13,368,15],[372,13,372,15],[387,11,387,12],[388,13,388,15],[406,11,406,12],[354,13,354,15],[355,13,355,15],[387,13,387,15],[361,13,361,15],[362,13,362,15],[374,13,374,15],[374,0,374,12],[365,0,365,12],[366,0,366,12],[365,13,365,15],[364,13,364,15],[373,13,373,15],[369,0,369,12],[377,13,377,15],[375,13,375,15],[18,0,18,15],[24,0,24,15],[344,13,344,15],[343,13,343,15],[345,13,345,15],[43,4,44,12],[126,0,126,15],[134,0,134,15],[127,0,127,15],[129,0,129,15],[45,0,45,1],[98,7,99,15],[77,7,78,15],[80,7,81,15],[83,7,84,15],[101,7,102,15],[115,1,115,15],[119,0,119,15],[120,0,120,15],[133,0,133,15],[118,0,118,15],[316,0,316,12],[325,0,325,12],[326,0,326,12],[268,13,268,15],[429,11,429,12],[428,11,428,12],[428,13,428,15],[1,13,1,14],[3,13,3,14],[7,13,7,14],[14,9,14,15],[5,14,5,15],[37,0,37,15],[9,14,9,15],[11,3,11,12],[15,13,15,15],[22,0,22,15],[7,4,7,9],[14,0,14,6],[8,4,8,9],[15,9,15,11],[9,3,9,10],[10,3,10,12],[16,7,16,15],[17,7,17,15],[16,0,17,6],[20,0,20,15],[386,13,386,15],[404,11,404,12],[281,13,281,15],[446,9,446,10],[431,11,431,12],[433,9,433,10],[435,9,435,10],[433,11,433,12],[436,9,436,10],[435,11,435,12],[431,9,431,10],[438,9,438,10],[289,0,289,12],[290,0,290,12],[333,13,333,15],[316,13,316,15],[317,13,317,15],[342,0,342,15],[341,0,341,15],[321,0,321,12],[284,13,284,15],[431,13,431,15],[437,9,437,10],[283,13,283,15],[269,13,269,15],[268,0,268,12],[271,0,271,12],[0,12,0,15],[21,0,21,15],[340,0,340,15],[427,13,427,15],[424,9,424,10],[413,11,413,12],[402,11,402,12],[386,11,386,12],[381,0,381,15],[412,11,412,12],[390,11,390,12],[390,13,390,15],[391,11,391,12],[391,13,391,15],[392,11,392,12],[104,0,104,15],[138,0,138,15],[112,2,112,15],[86,7,87,15],[263,13,263,15],[291,13,291,15],[58,0,58,4],[59,0,59,4],[66,7,66,11],[67,7,67,11],[59,12,59,15],[62,0,62,4],[63,0,68,4],[49,0,49,15],[69,12,69,15],[69,7,69,11],[25,1,25,3],[35,0,35,15],[31,0,31,5],[29,0,29,5],[29,7,29,14],[31,7,31,14],[27,0,27,5],[27,7,27,14],[46,13,46,15],[41,0,41,15],[43,13,44,15],[46,4,46,12],[43,0,44,1],[43,2,44,3],[147,0,147,15],[113,2,113,15],[145,0,145,15],[164,0,164,15],[170,0,170,15],[178,0,178,15],[114,2,114,15],[210,0,210,15],[247,13,247,15],[230,0,230,11],[231,0,231,11],[238,0,238,11],[245,0,245,12],[246,0,246,12],[177,0,177,15],[142,0,142,15],[162,1,162,15],[216,0,216,15],[211,0,211,15],[141,0,141,15],[235,13,235,15],[132,0,132,15],[123,0,123,15],[128,0,128,15],[272,13,272,15],[273,13,273,15],[272,0,272,12],[273,0,273,12],[280,0,280,12],[281,0,281,12],[282,0,282,12],[274,13,274,15],[275,13,275,15],[274,0,274,12],[275,0,275,12],[276,13,276,15],[276,0,276,12],[277,0,277,12],[278,0,278,12],[279,0,279,12],[280,13,280,15],[282,13,282,15],[339,0,339,15],[334,13,334,15],[303,13,303,15],[304,13,304,15],[305,13,305,15],[327,13,327,15],[325,13,325,15],[326,13,326,15],[318,13,318,15],[319,13,319,15],[321,13,321,15],[322,13,322,15],[323,13,323,15],[329,13,329,15],[320,13,320,15],[335,13,335,15],[331,13,331,15],[324,13,324,15],[328,13,328,15],[327,0,327,12],[322,0,322,12],[323,0,323,12],[324,0,324,12],[332,13,332,15],[402,13,402,15],[396,13,396,15],[393,11,393,12],[393,13,393,15],[394,11,394,12],[394,13,394,15],[398,11,398,12],[398,13,398,15],[395,11,395,12],[395,13,395,15],[392,13,392,15],[388,11,388,12],[380,0,380,15],[399,11,399,12],[434,13,434,15],[435,13,435,15],[436,11,436,12],[436,13,436,15],[437,11,437,12],[432,11,432,12],[403,11,403,12],[426,11,426,12],[420,0,420,15],[426,13,426,15],[425,13,425,15],[409,11,409,12],[421,0,421,15],[427,9,427,10],[427,11,427,12],[415,11,415,12],[429,13,429,15],[407,11,407,12],[429,9,429,10],[410,13,410,15],[408,13,408,15],[243,0,244,15],[258,0,258,15],[445,9,445,10],[445,11,445,12],[445,13,445,15],[442,9,442,10],[443,9,443,10],[443,11,443,12],[443,13,443,15],[444,9,444,10],[444,11,444,12],[444,13,444,15],[441,9,441,10],[441,11,441,12],[441,13,441,15],[437,13,437,15],[438,11,438,12],[438,13,438,15],[442,11,442,12],[442,13,442,15],[439,9,439,10],[389,13,389,15],[371,13,371,15]]}
[null,null,null,null,null,null,null,null,null,null,null,null,"Place an \"X\" by the applicable response."]
[null,null,null,"Virginia Department of Education",null,null,null,null,null,null,null,null,"X"," Original "]
[null,null,null,"Office of Program Administration and Accountability"]
[null,null,null,"P. O. Box 2120",null,null,null,null,null,null,null,null,null,"Revision :   "]
[null,null,null,"Richmond, Virginia 23218-2120",null,null,null,null,null,null,null,null,null,"Revision #"]
[null,null,null,null,null,null,null,null,null,null,null,null,null,"Date:"]
[null,null,null,null,null,"         A.  COVER PAGE",null,null,null,null,null,null,null,"Explain"]
[null,null,null,null,"Title II, Part A, Supporting Effective Instruction",null,null,null,null,null,null,null,null,"Amendment:"]
[null,null,null,null,"                          Due by July 1, 2018",null,null,null,null,null,null,null,null,"Amendment # "]
[null,null,null,"2018-2019 Individual Program Application",null,null,null,null,null,null,null,null,null,"Date:       "]
[null,null,null,"Elementary and Secondary Education Act of 1965 (ESEA), as amended by",null,null,null,null,null,null,null,null,null,"Explain"]
[null,null,null,"          the Every Student Succeeds Act of 2015 (ESSA). P.L. 114-95"]
["To be Completed by School Division"]
["Applicant  (Legal Name of Agency)",null,null,null,null,null,null,"Division",null,"Title II, Part A, Coordinator "]
["ALBEMARLE COUNTY PUBLIC SCHOOLS",null,null,null,null,null,null,"Number",{"$f":"IF(ISBLANK(A15),\" \",VLOOKUP(A15,Prefills!A2:B148,2))","v":2},"Debora Collins"]
["Mailing Address (Street, City or Town, Zip Code)",null,null,null,null,null,null,"Phone:",null,"434-296-5820",null,null,"Ext:"]
["401 McIntire Road\nCharlottesville, VA 22902",null,null,null,null,null,null,"Email:"]
[null,null,null,null,null,null,null,"dcollins@k12albemarle.org"]
[]
["LOCAL EDUCATIONAL AGENCY CERTIFICATION"]
["Use of Funds:  The applicant designated above applies for an allocation of federal assistance as appropriated under ESEA.  Funds are available to support local education reform efforts that are consistent with statewide education reform efforts to: 1) provide funding to implement promising education reform programs and school improvement programs based on evidence-based research;  2) provide a continuing source of innovative and educational improvement;  3) meet the educational needs of all students; and 4) develop and implement education programs to improve student achievement and teacher performance. \n\nSpecific uses of funds for this application are found in the \"Guidelines, Instructions, and Assurances\" document."]
[]
["Assurances:  The local educational agency assures that the Title II, Part A, program will be administered and implemented in compliance with all applicable statutes, regulations, policies, and program plans.  Additionally, the local educational agency agrees by signing below to implement the general and program specific assurances located in the “Application Guidelines, Instructions, and Assurances” document.  The assurances and signed cover page are to be retained at the division level.  "]
[]
["Certification:  We hereby certify that, to the best of our knowledge, the information contained in this application is correct.  The agency named above has authorized us as its representatives to file this application, and such action is recorded in the minutes of the School Board meeting held "]
["on","2018-06-14",null,null,"."]
[]
[]
["Superintendent’s Signature",null,null,null,null,null,null,"Board Chairperson’s Signature"]
["Dr. Pamela Moran",null,null,null,null,null,null,"Dr. Katherine Acuff"]
["Superintendent’s Name",null,null,null,null,null,null,"Board Chairperson’s Name"]
["2018-06-14",null,null,null,null,null,null,"2018-06-14"]
["Date",null,null,null,null,null,null,"Date"]
[]
[]
["Application Submission, Approval, and LEA Expenditure of Funds: Applications for Federal Funds are due by July 1, 2018.  Revisions and Amendments should be submitted in a timely manner.  Please note, in order for the funds to be expendable by July 1, 2018, the electronic application must be received at the Virginia Department of Education by July 1, 2018, through the file submission process of the Online Management of Education Grant Awards (OMEGA) system.  "]
[]
["An award notification is issued by the Virginia Department of Education through OMEGA once an application is fully approved and the allocation is available."]
[]
["Page 1"]
[null,null,null,null,"School Division:",null,{"$f":"$A$15","v":"ALBEMARLE COUNTY PUBLIC SCHOOLS"},null,null,null,null,null,"Division Number:",null,null,{"$f":"$I$15","v":2}]
["APPLICATION INFORMATION"]
[]
["2017 - 2018 Allocation",null,"2017-2018 Consolidated\nYes or No",null,"ELIGIBLE PROGRAM",null,null,null,null,null,null,null,null,"2018 - 2019 Allocation Total"]
[]
[{"$f":"IF(ISBLANK($A$15),\" \",VLOOKUP($P$41,Prefills!$AL$3:$AO$143,4))","v":283835.02},null,"No",null,"Title II, Part A, Supporting Effective Instruction",null,null,null,null,null,null,null,null,283835.02]
[null,null,null,null,"Transferability (funds transferred out of Title IIA)",null,null,null,null,null,null,null,null,{"$f":"M70","v":0}]
[null,null,null,null,null,null,null,null,"Total Allocation Available for Title II, Part A",null,null,null,null,{"$f":"N46-N47","v":283835.02}]
[]
[]
[]
[]
["TRANSFERABILITY"]
[]
["Section 5103(b)(2) of the Every Student Succeeds Act allows LEAs to transfer funds between certain qualifying federal programs. If funds are transferred into or out of the Title II, Part A, program, PRIOR APPROVAL IS REQUIRED, and a separate Transferability approval form must be submitted. The transfer request form is available at "]
["http://www.doe.virginia.gov/federal_programs/esea/forms/lea_funds_transfer_request.docx."]
[]
["1) If funds are to be transferred INTO Title II, Part A, complete Section A."]
["A.  Program from which funds will be transferred",null,null,null,null,null,"Select program(s) TO which funds will be transferred:",null,null,null,null,null,"Amount"]
["Title IV, Part A",null,null,null,null,"TO","Title II, Part A, Supporting Effective Instruction",null,null,null,null,null,42505.36]
[]
["2) If funds are to be transferred OUT of Title II, Part A, complete Section B below.  "]
["B.  Program from which funds will be transferred:",null,null,null,null,null,"Select program(s) TO which funds will be transferred:",null,null,null,null,null,"Amount"]
["Title II, Part A",null,null,null,null,"TO",null,"Title I, Part A"]
[null,null,null,null,null,null,null,"Title I, Part C"]
[null,null,null,null,null,null,null,"Title I, Part D"]
[null,null,null,null,null,null,null,"Title III, Part A"]
[null,null,null,null,null,null,null,"Title IV, Part A"]
[null,null,null,null,null,null,null,"Title V, Part B"]
[null,null,null,null,null,null,null,"Total",null,null,null,null,{"$f":"SUM(M64:P69)","v":0}]
[]
["Page 2"]
[null,null,null,null,"School Division:",null,{"$f":"$A$15","v":"ALBEMARLE COUNTY PUBLIC SCHOOLS"},null,null,null,null,null,"Division Number:",null,null,{"$f":"$I$15","v":2}]
["REVISIONS AND AMENDMENTS"]
[]
["Place an \"X\" in the first box indicating whether it is a revision or amendment. Enter the date of the revision or amendment.  Indicate the tab(s) that have been changed. Provide a concise description of changes (for example, \"Programmatic Changes--purchase of additional reading materials, object code 6000; Budget Changes--decreased travel budget in object code 5000 and increased materials to purchase additional reading materials in object code 6000\"). When completing an amendment, changes to the program overview may be reflected as additions at the end of the narrative.\n\nNOTE: Any changes to the program budget should first be reflected in an amended application, followed by a budget transfer within 7 business days of approval of the amended application. Budget transfers will not be accepted without an approved amended application reflecting budget changes."]
[]
["1.","Revision",null,null,null,"Date:"]
[null,"Amendment",null,null,null,"Date:"]
[]
["2.","Revision",null,null,null,"Date:"]
[null,"Amendment",null,null,null,"Date:"]
[]
["3.","Revision",null,null,null,"Date:"]
[null,"Amendment",null,null,null,"Date:"]
[]
["4.","Revision",null,null,null,"Date:"]
[null,"Amendment",null,null,null,"Date:"]
[]
["5.","Revision",null,null,null,"Date:"]
[null,"Amendment",null,null,null,"Date:"]
[]
["6.","Revision",null,null,null,"Date:"]
[null,"Amendment",null,null,null,"Date:"]
[]
["7.","Revision",null,null,null,"Date:"]
[null,"Amendment",null,null,null,"Date:"]
[]
["8.","Revision",null,null,null,"Date:"]
[null,"Amendment",null,null,null,"Date:"]
[]
["9.","Revision",null,null,null,"Date:"]
[null,"Amendment",null,null,null,"Date:"]
[]
["Page 3"]
[null,null,null,null,"School Division:",null,{"$f":"$A$15","v":"ALBEMARLE COUNTY PUBLIC SCHOOLS"},null,null,null,null,null,"Division Number:",null,null,{"$f":"$I$15","v":2}]
["B.  PROGRAM OVERVIEW (3 PAGES)"]
[]
["In narrative format:"]
[null,"Describe, as applicable, how the instructional program or program of services will align with Virginia's accountability plan and support student achievement, including descriptions of the following:"]
[null,null,"• how the activities are aligned to challenging State academic standards;"]
[null,null,"• the school division's system of professional growth and improvement, such as induction for teachers, principals, or other school leaders and opportunities for building the capacity of teachers and opportunities to develop meaningful teacher leadership."]
[null,null,"• how the division ensures that students are taught by qualified and effective teachers meeting Virginia licensing and professional teaching requirements."]
[null,null,"• how the school division will prioritize funds to schools that are  implementing comprehensive  support  and  improvement activities and targeted support and improvement activities under section 1111(d) and have the highest percentage of children counted under section 1124(c).\n"]
[null,null,"•how the local educational agency will use data and ongoing consultation to continually update and improve activities supported with Title II, Part A, funds."]
[null,"Describe the consultation process used in development of the program, including a description of the stakeholders involved in the process.\n "]
[null,"Describe the targeted population(s). (Examples are: instructional and administrative staff, principals, paraprofessionals, etc.)\n "]
[null,"Explain how the instructional program or program of services supplements, not supplants, the core instructional program or services.\n"]
["ACPS will support effective instruction by providing ongoing professional development opportunities for teachers, designed to promote deeper content knowledge and the use of  best instructional practices in core content areas.  Division-based opportunities and registration for them are maintained on our website, as are opportunities for non-teachers and for division leaders.  Albemarle County Schools also follows an approach to professional development that is hands-on and ongoing, through the practices of our instructional coaches who work with teachers in their school settings. The coaches provide training in the diagnostic and prescriptive use of formative assessment in all core instruction areas - reading, mathematics, science, and social studies - to align with Virginia academic standards.  \nOur division has devised a system in which Lead Academic Coaches oversee the instructional practices and personnel across the division, including the instructional coaches. This links to our development and use of a high yield assessment model, which ensures "]
["that learning environments are highly aligned with consistent teaching and learning practices throughout the division.  This model also supports students' deep understanding of content, enabling them to attain the goals within rigorous State standards.\nInstructional leaders evaluate teacher and student needs based on student assessment results; survey responses from teachers, parents and division staff members; and from examination of division teacher qualifications outlined in the annual IPAL report.  Results from the 2016-2017 IPAL report show that our school division has a high rate of licensure (99%) and a high rate of class sections taught by properly licensed and endorsed teachers (over 93%). Professional development will continue to be offered for teachers seeking full licensure, and funds under this grant will be used primarily to ensure that all student groups, including low income and minority subgroups, will be taught by experienced, licensed teachers, teaching in their endorsement areas.  \n\n\n\n\n"]
["In school year 2017-2018, the SEAD (Social, Emotional & Academic Development) program was initiated at four Title I schools (see Teacher Quality section), with the goal  of closing learningopportunity gaps among at-risk students.  SEAD team staff are charged with removing learning barriers that correlate with social or cultural factors; creating inclusive multicultural school environments for adults and children; and cultivating the unique gifts, talents and interests possessed by every student. This new program allows for ongoing consultation among stakeholders in the four Title I schools served and will continue to have a strong role in promoting academic growth and improvement in these schools."]
["Page 4"]
[null,null,null,null,"School Division:",null,{"$f":"$A$15","v":"ALBEMARLE COUNTY PUBLIC SCHOOLS"},null,null,null,null,null,"Division Number:",null,null,{"$f":"$I$15","v":2}]
["B.  PROGRAM OVERVIEW (CONTINUED)"]
[]
[]
[]
[]
[]
[]
["Page 5"]
[null,null,null,null,"School Division:",null,{"$f":"$A$15","v":"ALBEMARLE COUNTY PUBLIC SCHOOLS"},null,null,null,null,null,"Division Number:",null,null,{"$f":"$I$15","v":2}]
["B.  PROGRAM OVERVIEW (CONTINUED)"]
[]
[]
[]
[]
[]
[]
["Page 6"]
[null,null,null,null,"School Division:",null,{"$f":"$A$15","v":"ALBEMARLE COUNTY PUBLIC SCHOOLS"},null,null,null,null,null,"Division Number:",null,null,{"$f":"$I$15","v":2}]
["C.  COORDINATION OF SERVICES (2 PAGES)"]
[]
["Describe the partnerships within the division among the programs in this application and other federal, state and/or local programs in the delivery of services to the targeted population(s).  Describe the collaboration of program staff, parents, and the community to provide services and activities that will contribute to the attainment of the measurable objectives in this application."]
["On a monthly basis, the coordinators of the federal programs in ACPS meet to collaborate and ensure that the services provided through and by the grant programs meet the needs of our students and school division staff populations. Title I, Part A and Part C, Title II, Title III/ESOL, Homeless, and Adult ESOL are included in these collaborative work sessions. The Office of Instruction and Title I staff work to develop increased parent involvement across the division, to spur instructional support at home from parents, and to increase parent participation at school events. The Adult ESOL program provides Family Literacy classes for Title I ESOL students and families through the \"Integrated English Language Civics\" grant. Tutors for identified Homeless students are provided through the Title I grant, to assist in support of academics for these at-risk students.  Coordination among federal programs' leaders and members of the new SEAD team, described in the Program Overview section, will be a priority in the new school year, to further ensure academic success among at-risk students."]
["Regarding support from outside programs, the services of the University of Virginia Consortium, the Curry School of Education at UVA, and the Curry Center for Technology and Teacher Education are available for consultation, support on advisory committees, graduate level courses (on campus, online, and at ACPS facilities), workshops, seminars, and partnerships with individual schools."]
[]
[]
[]
["Page 7"]
[null,null,null,null,"School Division:",null,{"$f":"$A$15","v":"ALBEMARLE COUNTY PUBLIC SCHOOLS"},null,null,null,null,null,"Division Number:",null,null,{"$f":"$I$15","v":2}]
["C.  COORDINATION OF SERVICES (CONTINUED)"]
[]
[]
[]
[]
[]
[]
["Page 8"]
[null,null,null,null,"School Division:",null,{"$f":"$A$15","v":"ALBEMARLE COUNTY PUBLIC SCHOOLS"},null,null,null,null,null,"Division Number:",null,null,{"$f":"$I$15","v":2}]
["D.  MEASURABLE OBJECTIVES "]
[]
["1.","State up to eight measurable objectives that will guide the development of the program to be funded with the requested ESEA federal funds. "]
["2.","Describe the evidence-based research that support the services and activities (programs, models, instructional methods, and techniques) that will be implemented to achieve each objective and that will be supported by the requested funds. \n\nNote: Measurable objectives should be aimed at supporting the mastery of K-12 college- and career-ready standards, proficiency on corresponding state assessments, teacher quality, parental involvement, and other allowable objectives as defined under ESEA program areas and identified through local needs assessment and stakeholder consultations.  "]
["Measurable Objective 1:"]
["By the end of the 2018-2019 school year, language arts, mathematics, science, and social studies teachers will use student performance data to inform instruction.  They will use appropriate curriculum integration (i.e., instructional practice, effective use of technology, and interdisciplinary instruction) to move the division toward its goal of 90% pass rates on the Reading, Math, Science, and Social Studies SOLs, and improved pass rates for the NCLB subgroups."]
[]
["Evidence-based services and activities that will be implemented and supported by the requested funds to achieve the objective:"]
["The Instructional Coaches will serve as instructional resources for mathematics, reading/language arts, science, and social studies curricula, instruction, and assessment.  A key objective for each Instructional Coach will be to assist teachers in using data as a basis for planning and implementing improved instruction.  They will also collaborate with other staff for appropriate curriculum integration as well as focus on providing teachers specific strategies for improving core subject outcomes for struggling readers."]
[]
["Measurable Objective 2:"]
["By the end of the 2018-2019 school year, 100% of teachers in Albemarle County will be fully licensed in the state of Virginia."]
[]
["Evidence-based services and activities that will be implemented and supported by the requested funds to achieve the objective:"]
["Provisionally licensed teachers will be offered counseling by Albemarle County's Human Resources Department and by Instructional Coaches.  When hiring inexperienced teachers with provisional licenses, principals will work to ensure that all teachers become licensed before being re-employed for the next school year."]
["Page 9"]
[null,null,null,null,"School Division:",null,{"$f":"$A$15","v":"ALBEMARLE COUNTY PUBLIC SCHOOLS"},null,null,null,null,null,"Division Number:",null,null,{"$f":"$I$15","v":2}]
["D.  MEASURABLE OBJECTIVES (CONTINUED)"]
["Measurable Objective 3:"]
["By the end of the 2018-2019 school year, two selected teachers will have completed courses in reading and other content area endorsements toward full licensure."]
[]
["Evidence-based services and activities that will be implemented and supported by the requested funds to achieve the objective:"]
["The division will provide college courses in the areas of literacy development or other discipline-specific courses to improve content area knowledge.  In order to attract and retain qualified teachers, the division will continue to provide tuition reimbursement for content area coursework."]
["     "]
["Measurable Objective 4:"]
["       "]
[]
["Evidence-based services and activities that will be implemented and supported by the requested funds to achieve the objective:"]
[]
[]
["Page 10"]
[null,null,null,null,"School Division:",null,{"$f":"$A$15","v":"ALBEMARLE COUNTY PUBLIC SCHOOLS"},null,null,null,null,null,"Division Number:",null,null,{"$f":"$I$15","v":2}]
["D.  MEASURABLE OBJECTIVES (CONTINUED)"]
["Measurable Objective 5:"]
["       "]
[]
["Evidence-based services and activities that will be implemented and supported by the requested funds to achieve the objective:"]
[]
["     "]
["Measurable Objective 6:"]
["       "]
[]
["Evidence-based services and activities that will be implemented and supported by the requested funds to achieve the objective:"]
[]
["Page 11"]
[null,null,null,null,"School Division:",null,{"$f":"$A$15","v":"ALBEMARLE COUNTY PUBLIC SCHOOLS"},null,null,null,null,null,"Division Number:",null,null,{"$f":"$I$15","v":2}]
["D.  MEASURABLE OBJECTIVES (CONTINUED)"]
["Measurable Objective 7:"]
["       "]
[]
["Evidence-based services and activities that will be implemented and supported by the requested funds to achieve the objective:"]
[]
["     "]
["Measurable Objective 8:"]
["       "]
["Evidence-based services and activities that will be implemented and supported by the requested funds to achieve the objective:"]
[]
["Page 12"]
[null,null,null,null,"School Division:",null,{"$f":"$A$15","v":"ALBEMARLE COUNTY PUBLIC SCHOOLS"},null,null,null,null,null,"Division Number:",null,null,{"$f":"$I$15","v":2}]
["E.  DETAIL BUDGET BREAKDOWN"]
[]
["Prepare a detailed breakdown of the budget categories for Object Codes 1000-6000 and 8000."]
["The amounts by program and object codes totals are to be entered on the Summary Budget Sheet under the appropriate area."]
["Do the totals equal the Summary Budget sheet? ",null,null,null,null,null,null,null,{"$f":"IF(SUM('Summary Budget'!G48:P48)=SUM(N240,N256,N296,N337,N378,N418,N457),\"Yes\",\"No -please review your entries.\")","v":"Yes"}]
[]
["BREAKDOWN OF STAFF POSITIONS"]
["OBJECT CODE 1000 "]
["Provide a description of the positions supported with funds from this program. Indicate if any positions are newly funded under this program.  Explain the supplementary nature of any new positions. (Required if staff positions are to be funded by federal funds.)"]
["Instructional Coaches will serve as instructional resources in the areas of math, reading/language arts, science, and social studies curricula, instruction, and assessment.  They will train other teachers to use data as a basis for planning and implementing improved instruction and will focus on providing novice and other teachers specific strategies for improving core subject outcomes for struggling learners.  "]
[]
["Item Description",null,null,null,null,null,null,null,null,null,null,null,"FTEs","Total Cost"]
["Value of professional development personnel-related services or stipends on behalf of private schools"]
["Instructional Coaches",null,null,null,null,null,null,null,null,null,null,null,3.3,182650]
[]
[]
[]
[]
[]
[]
[null,null,null,null,"      ",null,null,null,null,null,"Total for Object Code:",null,{"$f":"SUM(M232:M239)","v":3.3},{"$f":"SUM(N232:P239)","v":182650}]
[]
["DETAILED BUDGET DESCRIPTION OF OBJECT CODE 2000"]
["Indicate the fixed charge categories (such as FICA, health, etc.) and specify the amount of each."]
["FICA, VSRS, Group Life, Health and Dental Insurance will be paid for the Instructional Coach positions."]
[]
["Item Description",null,null,null,null,null,null,null,null,null,null,null,null,"Total Cost"]
["Private School Set-aside"]
["FICA ",null,null,null,null,null,null,null,null,null,null,null,null,13976.32]
["VSRS [Virginia State Retirement System]",null,null,null,null,null,null,null,null,null,null,null,null,38026]
["Group Life Insurance",null,null,null,null,null,null,null,null,null,null,null,null,2952]
["Health Insurance [8,278 per 1.0 FTE]",null,null,null,null,null,null,null,null,null,null,null,null,24834]
["Dental Insurance [296 per 1.0 FTE]",null,null,null,null,null,null,null,null,null,null,null,null,888]
[]
[]
[]
[null,null,null,null,"      ",null,null,null,null,null,"Total for Object Code:",null,null,{"$f":"SUM(N247:P255)","v":80676.320000000007}]
["Page 13"]
[null,null,null,null,"School Division:",null,{"$f":"$A$15","v":"ALBEMARLE COUNTY PUBLIC SCHOOLS"},null,null,null,null,null,"Division Number:",null,null,{"$f":"$I$15","v":2}]
["DETAILED BUDGET DESCRIPTION OF OBJECT CODE 3000"]
["Provide a description for expenses related to object code 3000. Please describe planned expenditures as they relate to the identified programs and activities to achieve stated measurable objective(s). Indicate how these funds will support any services and activities that are described in the application.  "]
["The six participating private schools have developed professional development plans to address needs at their schools, including the areas of instructional technology integration, STEAM curriculum and integration, advanced placement course instruction, Singapore Math and My Math curriculum advancement, physical education practices, and Understanding by Design.  One school will support teachers through graduate coursework assistance; another will seek furtherance of their teachers' Waldorf certifications through summer online and on-site programming.  Another participating school will provide targeted coaching for teacher deficiency. Private schools also have plans for staff members to attend conferences that enhance subject area expertise, such as the National Conference of Teachers of Math.  Attendance at Responsive Classroom training is also planned by two schools."]
["of Teachers of Math.  Attendance at Responsive Classroom training is also planned by two schools.schools, to improve classroom management and culture."]
["Item Description",null,null,null,null,null,null,null,null,null,null,null,null,"Total Cost"]
["Private School Set-aside",null,null,null,null,null,null,null,null,null,null,null,null,11000]
[]
[]
[]
[]
[]
[]
[]
[]
[]
[]
[]
[]
[]
[]
[]
[]
[]
[]
[]
[]
[]
[]
[]
[]
[]
[]
[]
[]
[]
[]
[]
[null,null,null,null,"      ",null,null,null,null,null,"Total for Object Code:",null,null,{"$f":"SUM(N264:P295)","v":11000}]
["Page 14"]
[null,null,null,null,"School Division:",null,{"$f":"$A$15","v":"ALBEMARLE COUNTY PUBLIC SCHOOLS"},null,null,null,null,null,"Division Number:",null,null,{"$f":"$I$15","v":2}]
["DETAILED BUDGET DESCRIPTION OF OBJECT CODE 4000"]
["Provide a description of charges from an Internal Service Fund to other functions/activities/elements of the local government for the use of intragovernmental services.  "]
[]
[]
["Item Description",null,null,null,null,null,null,null,null,null,null,null,null,"Total Cost"]
[]
[]
[]
[]
[]
[]
[]
[]
[]
[]
[]
[]
[]
[]
[]
[]
[]
[]
[]
[]
[]
[]
[]
[]
[]
[]
[]
[]
[]
[]
[]
[]
[]
[null,null,null,null,"      ",null,null,null,null,null,"Total for Object Code:",null,null,{"$f":"SUM(N304:P336)","v":0}]
["Page 15"]
[null,null,null,null,"School Division:",null,{"$f":"$A$15","v":"ALBEMARLE COUNTY PUBLIC SCHOOLS"},null,null,null,null,null,"Division Number:",null,null,{"$f":"$I$15","v":2}]
["DETAILED BUDGET DESCRIPTION OF OBJECT CODE 5000"]
["Provide a description for expenses related to object code 5000."]
["Private school staff will participate in a variety of professional development experiences, as described in the narrative of Object Code 3000, and they will require travel and other expense reimbursements."]
[]
["Item Description",null,null,null,null,null,null,null,null,null,null,null,null,"Total Cost"]
["Private School Set-aside",null,null,null,null,null,null,null,null,null,null,null,null,7000]
[]
[]
[]
[]
[]
[]
[]
[]
[]
[]
[]
[]
[]
[]
[]
[]
[]
[]
[]
[]
[]
[]
[]
[]
[]
[]
[]
[]
[]
[]
[]
[]
[null,null,null,null,"      ",null,null,null,null,null,"Total for Object Code:",null,null,{"$f":"SUM(N345:P377)","v":7000}]
["Page 16"]
[null,null,null,null,"School Division:",null,{"$f":"$A$15","v":"ALBEMARLE COUNTY PUBLIC SCHOOLS"},null,null,null,null,null,"Division Number:",null,null,{"$f":"$I$15","v":2}]
["DETAILED BUDGET DESCRIPTION FOR OBJECT CODE 6000"]
["Provide a description for expenses related to object code 6000 Materials and Supplies.  Include articles and commodities that are consumed or materially altered when used and minor equipment that is not capitalized. This includes any equipment purchased under $5,000, unless the LEA has set a lower capitalization threshold.   Therefore, computer equipment under $5,000 should be reported in “materials and supplies.”"]
["Private schools have included the purchase of professional development materials, to accompany their plans for the school year.  These may include content area materials to enhance classroom instruction, as well as student engagement resources."]
[]
["Item Description",null,null,null,null,null,null,null,null,null,null,"Quantity",null,"Total Cost"]
["Private School Set-aside ",null,null,null,null,null,null,null,null,null,null,null,null,2508.6999999999998]
[]
[]
[]
[]
[]
[]
[]
[]
[]
[]
[]
[]
[]
[]
[]
[]
[]
[]
[]
[]
[]
[]
[]
[]
[]
[]
[]
[]
[]
[]
[]
[null,null,null,null,"      ",null,null,null,"Total for Object Code:",null,null,{"$f":"SUM(L386:M417)","v":0},null,{"$f":"SUM(N386:P417)","v":2508.6999999999998}]
["Page 17"]
[null,null,null,null,"School Division:",null,{"$f":"$A$15","v":"ALBEMARLE COUNTY PUBLIC SCHOOLS"},null,null,null,null,null,"Division Number:",null,null,{"$f":"$I$15","v":2}]
["DETAILED BUDGET DESCRIPTION FOR OBJECT CODE 8000"]
["All capital outlay expenditures in the aggregate over $5,000 must be approved in advance by the Virginia Department of Education. If the local school division has established a threshold of a lesser amount, items equal to that amount or greater must also receive prior approval by the Virginia Department of Education.  Nonconsumable items must be listed in the application."]
[]
[]
["Item Description",null,null,null,null,null,null,null,null,"Quantity",null,"Cost Per Item",null,"Total Cost"]
[]
[]
[]
[]
[]
[]
[]
[]
[]
[]
[]
[]
[]
[]
[]
[]
[]
[]
[]
[]
[]
[]
[]
[]
[]
[]
[]
[]
[]
[]
[]
[null,null,null,null,"      ",null,"Total for Object Code:",null,null,{"$f":"SUM(J426:K456)","v":0},null,{"$f":"SUM(L426:M456)","v":0},null,{"$f":"SUM(N426:P456)","v":0}]
["Page 18"]
[null,null,null,null,"School Division:",null,{"$f":"$A$15","v":"ALBEMARLE COUNTY PUBLIC SCHOOLS"},null,null,null,null,null,"Division Number:",null,null,{"$f":"$I$15","v":2}]
["EXPENDITURE ACCOUNTS DESCRIPTIONS"]
[]
["These accounts are for budgeting and recording expenditures of the educational agency for activities under its control.  Below are definitions of the major expenditure categories.  The descriptions provided are examples only.   For further clarification on the proper expenditures of funds, contact your school division budget or finance office, the grant specialist in the Virginia Department of Education, or refer to the appropriate federal act."]
[]
["OBJECT CODE DEFINITIONS:"]
["(revised 5/16/17)"]
[]
[1000,"PERSONAL SERVICES - Includes all compensation for the direct labor of persons in the employment of the local government.  Salaries and wages paid to employees for full‐ and part‐time work, including overtime, shift differential, and similar compensation. Includes payments for time not worked, including sick leave, vacation, holidays, jury duty, military leave, and other paid absences that are earned during the reporting period.  \n\nFor the purposes of this report, the term “salaries” means all compensation including base wage.  This also includes amounts paid through salary reduction plans, such as tax‐sheltered annuities and flexible benefit plans.  Do not confuse this definition with the Virginia Retirement System (VRS) definition, which excludes supplements for retirement calculation purposes in some circumstances.\n"]
[]
[2000,"EMPLOYEE BENEFITS - Job related benefits provided to employees as part of their total compensation.  Fringe benefits include the employer’s portion of FICA, pensions, insurance (life, health, disability income, etc.) and employee allowances.  \n\nNOTE:  Fringe Benefits are a significant component of employee compensation and, like salaries and wages, are charged to the appropriate object of expenditure within each program.  If possible, fringe benefit costs should be charged to the applicable educational program or activity on an ongoing basis.  An alternative is to charge all fringe benefits to various benefit accounts.  As part of the year‐end closing process, these accounts are closed, and all costs are allocated to the appropriate educational program or activity.  The following methods are suggested for allocating such cost at year‐end.  If these methods do not provide reasonable allocations based on circumstances within the school division, then the school division should use another reasonable allocation method.  Consistency in application should be maintained at all times.\n\n• Allocation by percentage of payroll dollars\n• Allocation by Head Count\n• Direct to Program or Activity\n"]
["Page 19"]
[3000,"PURCHASED/CONTRACTUAL SERVICES - Services acquired from outside sources (i.e., private vendors, public authorities, or other governmental entities).  Purchase of the service is on a fee basis or fixed time contract basis.  Payments for rentals and utilities are not included in this account description.  Allowable payments would be to individual or firms that are independent contractors and not employees of the grantee or sub‐grantee organization.  The word honorarium is sometimes used to characterize such payments; the term “fee” is preferred.\n\n• Food Purchases – Prepared meals, working meals, and/or catered services purchased through a vendor are included in this object code.  Reimbursement is capped at the per diem rate for the meal listed according to the state travel regulations.  Examples for this object code include meals provided during day‐long professional development sessions, or meals provided to support attendance at family engagement activities.  Food purchased from catering services and restaurants such as Pizza Hut, Panera Bread, and Subway is included in this object code.\n\n• Transportation Services Public Carriers – Payments to public carriers for transportation of pupils on vehicles that are used by the public. Include payments for pupils transported in intra‐city transit buses, taxicabs, airplanes, and intercity/interstate passenger buses.\n\n• Transportation Services Private Carriers – Payments (either cash or tokens) to parents for transportation of pupils in lieu of providing transportation on school buses. Include allowable payments to parents for pupils attending public, private, and non‐sectarian schools. Include costs associated with transporting special education students in school board‐owned vehicles to and from school.\n\n• Transportation Services by Contract – Payments to private owners of school buses who contract with the school board to transport pupils to and from public schools. Include payments to owners of private vehicles that contract with the school board to transport pupils to and from designated public and private schools.\n\n"]
[null,"• Purchase of Service from Other Governmental Entities – Payments for services purchased from other governmental entities (i.e., other local governments, public authorities, state agencies, and other LEAs) on a contract/fee basis. Tuition payments to other local governments for a jointly operated center are not included here but are reported under “Payments to Joint Operations” (object code 7000).\n\n• Tuition Paid – Other Divisions In‐State, Tuition Paid – Other Divisions Out‐of‐State, and Tuition Paid – Private Schools are included in this object code.\n"]
[]
[4000,"INTERNAL SERVICES - Charges from an Internal Service Fund to other functions/activities/elements of the local government for the use of intergovernmental services, such as data processing, automotive/motor pool, central purchasing/central stores, print shop, and risk management. These services are provided by internal services within the School District and possibly the county but not a vendor.  \n\n• Food Purchases – Food purchased from the food services department of a school division or subgrantee equivalent to support professional development or family engagement events is included in this object code.  For example, internal expenses for school cafeterias to provide meals to support attendance at family engagement activities are included in this object code.\n"]
["Page 20"]
[5000,"OTHER CHARGES - Include expenditures that support the use of programs. Includes expenditures that support the program, including utilities (maintenance and operation of plant), staff/administrative/consultant travel, office phone charges, training, leases/rental, indirect cost, and other.\n\n• Food Purchases – Food Purchases under this object code is restricted to food purchases related to travel reimbursement for meals only (see Travel below). If the sub‐recipient’s internal travel policies conform to state travel regulations, reimbursement is allowable at per diem meals rates according to state travel regulations. If the sub‐recipient’s internal travel policies require reimbursement for the cost of each meal, reimbursement is capped at the per diem rate for the meal listed according to the state travel regulations. Sub‐recipients must elect either meals per diem or per meals costs as their internal travel policy.\n\n• Telecommunications – Include expenditures for recurring telecommunications services for the use of on‐line computer technology (e.g., telephone/telecommunications line charges).  Telephone charges for line service for Internet connectivity and the Electronic Classroom program.\n\n• Utilities – Payments for heat, electricity, water, and sewer services regardless of whether the service is provided by a private enterprise authority or an enterprise fund operated by a local government.\n\n• Communications – Payments for postal, messenger, and telecommunications services, typically office voice telephone charges.  (Telecommunication costs directly related to technology uses should be coded under 6000.) In addition, office telephone charges would be coded under this code.\n\n• Insurance – Payments for insurance except those that relate to personal services (i.e., hospitalization, group life, worker’s compensation, unemployment)\n\n• Leases and Rentals – Includes payments for leases that are not capitalized and rental of land, structures, and equipment. Do not include payments made under a lease‐purchase agreement.\n\n"]
[null,"• Travel – includes payments for travel reimbursement for staff/administrative/consultant travel. These are travel costs that are being reimbursed directly to travelers.  These costs may include lodging, mileage, meals, and incidentals as allowable according to state travel regulations or documented subrecipient internal travel policies. If the sub‐recipient does not have documented internal travel policies, state travel regulations will prevail.\n\n• Contributions to Other Entities – Includes payments to other governmental entities or community organizations that are not related to the direct purchase of a service on a fee basis (which is reported under object code 3000) or payments to joint operations (which are reflected under object code 7000).\n\n• Public Assistance Payments – Payments to individuals for public assistance programs (general government use only).\n\n• Miscellaneous Other Charges – Includes expenditures that support the program, including indirect costs and other costs.\n"]
["Page 21"]
[6000,"MATERIALS AND SUPPLIES - Includes articles and commodities that are consumed or materially altered when used and minor equipment that is not capitalized.  This includes any equipment purchased under $5,000, unless the LEA has set a lower capitalization threshold.  Therefore, computer equipment under $5,000 would be reported in “materials and supplies.”\n\n• Food Purchases – Food items purchased from a grocery store or its equivalent for snacks or breaks is included in this object code.  Examples include bottled water, granola bars, cookies, and fruit purchased from a store such as Wal‐Mart, Food Lion, Costco, etc.  Prepared meals is not included in this object code; see object code 3000 for prepared/working/catered meals as purchased/contracted services.\n\n• Vehicle and Powered Equipment Fuels – Gasoline, lubricating oils, or such other fuel used in the operation of vehicles and powered equipment (e.g., lawnmowers) purchased from private sources or governmental agencies.\n\n• Vehicle and Powered Equipment Supplies – Tires, spark plugs, batteries, and chains used in the operation of vehicles and powered equipment purchased from private sources or governmental agencies.\n\n• Textbooks – All textbooks and workbooks purchased to be used in the classroom.\n\n• Instructional Materials – Books (not textbooks) and other materials.\n\n"]
[null,"• Technology Software/On‐line Content – Include expenditures for videodiscs and computer programs used in the classroom for instructional purposes, operating system software (i.e., standalone software, not software that is pre‐installed and included in hardware costs), application software, and on‐line or downloadable software and content. Include expenditures for both additions and replacement.\n\n• Non‐Capitalized Technology Hardware – Include expenditures for hardware or classroom technology equipment that is not capitalized.\n\n• Non‐Capitalized Technology Infrastructure – Include expenditures for technology infrastructure that is not capitalized.\n"]
["Page 22"]
[8000,"CAPITAL OUTLAY - Note: Indirect cost cannot be claimed against capital outlay and equipment.\nOutlays that result in the acquisition of or additions to fixed assets.  Capital Outlay includes the purchase\nof fixed assets both replacement and/or additional.\n\nCapital Outlay Replacement\n\n• Technology – Hardware Replacements – Include capital outlay for replacement of hardware or classroom technology equipment. (For further clarification on which expenditures should be included in this object code, see the “Special Note” below.)\n\n• Technology – Infrastructure Replacements – Include capital outlay for replacement of technology infrastructure. (For further clarification on which expenditures should be included in this object code, see the “Special Note” below.)\n\n• Capital Outlay Additions – Include machinery, equipment, furniture, fixtures, communications equipment, motor vehicles, etc. that are capitalized.\n\n• Technology – Hardware Additions – Include capital outlay for additional hardware or classroom technology equipment. (For further clarification on which expenditures should be included in this object code, see the “Special Note” below.)  \n\n• Technology – Infrastructure Additions – Include capital outlay for additional technology infrastructure. (For further clarification on which expenditures should be included in this object code, see the “Special Note” below.)\n\n"]
[null,"• Special Note ‐ Classification of Hardware and Infrastructure Expenditures: \n\nReport expenditures under technology “hardware” for computers, associated peripheral equipment, and other specialized technology equipment. Computers include desktop and laptop machines, handheld computers (i.e., Personal Digital Assistants or PDAs), and mainframe machines. Peripheral equipment includes devices attached to computers, such as monitors, keyboards, disk drives, modems, printers, scanners, cameras and speakers, etc.\n\nReport other specialized computer devices under technology “hardware” such as fax‐back and voicemail resources; videoconferencing and other distance education tools, including satellite transmitters and receivers; cable‐based receivers; and modem or codec‐based video equipment; projection devices, from transparent and opaque projectors to video monitors; and graphing calculators and other specialized computational aids.\n\nReport expenditures under technology “infrastructure” for equipment and devices that enable the linking of computers or video hardware to networks (such as routers, hubs, switches, access servers, modems, or codecs). Infrastructure also refers to cabling installations, whether wire, fiber optic, or coaxial, as well as electrical capacity expansion or HVAC upgrades to support networks. In wireless networking systems, include receivers and transmitters under infrastructure.\n"]
["Page 23"]

{"sheet":"Summary Budget","index":1,"n_rows":59,"n_cols":22,"rows_kept":59,"cut":false,"hidden":false,"merged":[[57,16,57,21],[54,16,54,21],[13,1,13,5],[57,12,57,13],[57,14,57,15],[56,5,56,11],[57,0,57,4],[56,0,56,4],[55,0,55,4],[26,0,29,0],[30,0,37,0],[20,0,25,0],[21,1,21,5],[55,12,55,13],[55,14,55,15],[38,1,38,5],[51,1,51,21],[47,6,47,15],[53,16,53,21],[55,16,55,21],[54,5,54,11],[54,12,54,13],[54,14,54,15],[15,0,19,0],[56,16,56,21],[55,5,55,11],[42,0,46,0],[54,0,54,4],[53,0,53,4],[4,16,4,17],[44,6,44,15],[49,6,49,15],[49,3,49,5],[53,5,53,11],[53,12,53,13],[53,14,53,15],[38,0,41,0],[4,6,4,15],[8,6,8,15],[5,18,13,21],[15,18,18,21],[20,18,24,21],[26,18,28,21],[47,18,49,21],[42,18,45,21],[38,18,40,21],[30,18,36,21],[24,1,24,5],[58,0,58,4],[56,12,56,13],[56,14,56,15],[58,5,58,11],[58,14,58,15],[57,5,57,11],[3,0,3,5],[35,6,35,15],[36,6,36,15],[37,6,37,15],[38,6,38,15],[39,6,39,15],[40,6,40,15],[41,6,41,15],[45,6,45,15],[48,1,48,5],[48,6,48,15],[46,6,46,15],[42,6,42,15],[43,6,43,15],[4,0,4,5],[15,6,15,15],[24,6,24,15],[7,0,14,0],[1,0,1,21],[2,0,2,21],[14,18,14,21],[19,18,19,21],[25,18,25,21],[29,18,29,21],[3,16,3,17],[3,18,3,21],[4,18,4,21],[15,1,15,5],[16,1,16,5],[18,1,18,5],[25,1,25,5],[5,16,5,17],[5,6,5,15],[5,1,5,5],[3,6,3,15],[12,6,12,15],[14,6,14,15],[19,6,19,15],[20,6,20,15],[21,6,21,15],[22,6,22,15],[23,6,23,15],[37,18,37,21],[25,6,25,15],[26,6,26,15],[27,6,27,15],[28,6,28,15],[29,6,29,15],[30,6,30,15],[31,6,31,15],[16,6,16,15],[46,18,46,21],[27,1,27,5],[26,1,26,5],[23,1,23,5],[22,1,22,5],[20,1,20,5],[19,1,19,5],[17,1,17,5],[32,6,32,15],[33,6,33,15],[34,6,34,15],[37,1,37,5],[36,1,36,5],[35,1,35,5],[34,1,34,5],[33,1,33,5],[32,1,32,5],[31,1,31,5],[29,1,29,5],[28,1,28,5],[30,1,30,5],[41,18,41,21],[17,6,17,15],[18,6,18,15],[7,16,7,17],[7,6,7,15],[10,1,10,5],[10,6,10,15],[11,1,11,5],[9,1,9,5],[14,1,14,5],[12,1,12,5],[8,16,8,17],[9,16,9,17],[13,6,13,15],[10,16,49,17],[47,1,47,5],[46,1,46,5],[45,1,45,5],[44,1,44,5],[43,1,43,5],[42,1,42,5],[41,1,41,5],[40,1,40,5],[39,1,39,5],[9,6,9,15],[11,6,11,15]]}
[null,null,null,"School Division:",null,{"$f":"'Narrative & Detail Budget'!A15","v":"ALBEMARLE COUNTY PUBLIC SCHOOLS"},null,null,null,null,null,null,null,null,null,null,"Division Number:",null,null,null,null,{"$f":"'Narrative & Detail Budget'!I15","v":2}]
["F.  BUDGET SUMMARY"]
["Title II, Part A"]
[null,null,null,null,null,null,"A. \nTitle II, Part A\nBudget for 2018-2019\nAward S367A180044\nProject Code APE61481\n",null,null,null,null,null,null,null,null,null,null,null,"Does Budget Summary match Detail Budget tab?"]
["2018-2019 Allocation:",null,null,null,null,null,{"$f":"'Narrative & Detail Budget'!N48","v":283835.02}]
["OBJECT\nCODE ","EXPENDITURE",null,null,null,null,"AMOUNT BUDGETED\nTitle II, Part A",null,null,null,null,null,null,null,null,null,"FTEs"]
[]
["1000 -\n Personal Services","Administration of Title IIA program",null,null,null,null,0]
[null,"Professional Development",null,null,null,null,182650]
[null,"Class-Size Reduction Teachers",null,null,null,null,0]
[null,"Substitute Teachers",null,null,null,null,0]
[null,"Teacher Incentives",null,null,null,null,0]
[null,"Other",null,null,null,null,0]
[null,"Value of professional development personnel-related services or stipends on behalf of private schools",null,null,null,null,0]
[null,"Total Personal Services",null,null,null,null,{"$f":"SUM(G8:P14)","v":182650},null,null,null,null,null,null,null,null,null,null,null,{"$f":"IF(SUM(G15:P15)=SUM('Narrative & Detail Budget'!N240),\"Yes\",\"No -please review your entries.\")","v":"Yes"}]
["2000 -\nEmployee Benefits","Fixed Charges\n     (Title IIA Administration)",null,null,null,null,0]
[null,"Fixed Charges ",null,null,null,null,80676.320000000007]
[null,"Teacher Incentives",null,null,null,null,0]
[null,"Value of professional development personnel-related benefits on behalf of private schools",null,null,null,null,0]
[null,"Total Employee benefits",null,null,null,null,{"$f":"SUM(G16:P19)","v":80676.320000000007},null,null,null,null,null,null,null,null,null,null,null,{"$f":"IF(SUM(G20:P20)=SUM('Narrative & Detail Budget'!N256),\"Yes\",\"No -please review your entries.\")","v":"Yes"}]
["3000 - \nPurchased/\nContracted Services","Supportive Services (Med., Dental)"]
[null,"Professional Development"]
[null,"Teacher Quality (i.e., assessments; recruitment)",null,null,null,null,0]
[null,"Private School Set-Aside",null,null,null,null,11000]
[null,"Other",null,null,null,null,0]
[null,"Total Purchased/Contracted Services",null,null,null,null,{"$f":"SUM(G21:P25)","v":11000},null,null,null,null,null,null,null,null,null,null,null,{"$f":"IF(SUM(G26:P26)=SUM('Narrative & Detail Budget'!N296),\"Yes\",\"No -please review your entries.\")","v":"Yes"}]
["4000 - \nInternal Services","Pupil Transportation"]
[null,"Food Services",null,null,null,null,0]
[null,"Other ",null,null,null,null,0]
[null,"Total Internal Services",null,null,null,null,{"$f":"SUM(G27:P29)","v":0},null,null,null,null,null,null,null,null,null,null,null,{"$f":"IF(SUM(G30:P30)=SUM('Narrative & Detail Budget'!N337),\"Yes\",\"No -please review your entries.\")","v":"Yes"}]
["5000 - \nOther  \nCharges","Professional Development (conference registrations, tuition, etc.)",null,null,null,null,0]
[null,"Travel",null,null,null,null,0]
[null,"Maintenance of Plant"]
[null,"Operation of Plant"]
[null,"Indirect Cost",null,null,null,null,0]
[null,"Other",null,null,null,null,0]
[null,"Private School Set-Aside",null,null,null,null,7000]
[null,"Total Other Charges",null,null,null,null,{"$f":"SUM(G31:P37)","v":7000},null,null,null,null,null,null,null,null,null,null,null,{"$f":"IF(SUM(G38:P38)=SUM('Narrative & Detail Budget'!N378),\"Yes\",\"No -please review your entries.\")","v":"Yes"}]
["6000 - \nMaterials\n and Supplies","Administrative (Title IIA program)",null,null,null,null,0]
[null,"Professional Development",null,null,null,null,0]
[null,"Private School Set-Aside",null,null,null,null,2508.6999999999998]
[null,"Total Materials and Supplies",null,null,null,null,{"$f":"SUM(G39:P41)","v":2508.6999999999998},null,null,null,null,null,null,null,null,null,null,null,{"$f":"IF(SUM(G42:P42)=SUM('Narrative & Detail Budget'!N418),\"Yes\",\"No -please review your entries.\")","v":"Yes"}]
["8000 - \nCapital\nOutlay","Equipment for Instruction"]
[null,"Buildings"]
[null,"Remodeling"]
[null,"Professional Development Equipment",null,null,null,null,0]
[null,"Total Capital Outlay",null,null,null,null,{"$f":"SUM(G43:P46)","v":0},null,null,null,null,null,null,null,null,null,null,null,{"$f":"IF(SUM(G47:P47)=SUM('Narrative & Detail Budget'!N457),\"Yes\",\"No -please review your entries.\")","v":"Yes"}]
[null,"Total Budget",null,null,null,null,{"$f":"SUM(G15,G20,G26,G30,G38,G42,G47)","v":283835.02}]
[null,"Total Private School Set-Aside",null,null,null,null,{"$f":"SUM(G14+G19+G24+G37+G41)","v":20508.7}]
[null,null,null,"Does Grand Total above equal the 2018-2019 Allocation on the \"Narrative & Detail Budget\" Tab? ",null,null,{"$f":"IF(SUM(G48)=G5,\"Yes\",\"No -please review your entries.\")","v":"Yes"}]
[]
["Note:","Object codes 7000 and 9000 are not ussed in application budgets or in requests for reimbursements for this federal grant."]
["Page 25"]
[null,null,null,null,null,null,null,null,null,null,null,null,null,null,{"$f":"IF(F54=\"yes\",M54*#REF!,\"\")","v":""}]
[null,null,null,null,null,null,null,null,null,null,null,null,null,null,{"$f":"IF(F55=\"yes\",M55*#REF!,\"\")","v":""}]
[null,null,null,null,null,null,null,null,null,null,null,null,null,null,{"$f":"IF(F56=\"yes\",M56*#REF!,\"\")","v":""}]
[null,null,null,null,null,null,null,null,null,null,null,null,null,null,{"$f":"IF(F57=\"yes\",M57*#REF!,\"\")","v":""}]
[null,null,null,null,null,null,null,null,null,null,null,null,null,null,{"$f":"IF(F58=\"yes\",M58*#REF!,\"\")","v":""}]
["Per Pupil Expenditure (calculated field):          ",null,null,null,null,{"$f":"IF(ISERROR(SUM(#REF!)/(SUM(#REF!)+SUMIF(F54:L58,\"Yes\",M54:N58))),0,SUM(#REF!)/(SUM(#REF!)+SUMIF(F54:L58,\"Yes\",M54:N58)))","v":0},null,null,null,null,null,null,"Total",null,{"$f":"SUM(O54:P58)","v":0}]

{"sheet":"Transferability","index":2,"n_rows":338,"n_cols":18,"rows_kept":338,"cut":false,"hidden":false,"merged":[[93,0,93,2],[93,9,93,10],[337,0,337,16383],[335,0,335,6],[335,7,335,8],[335,9,335,10],[335,11,335,12],[335,13,335,15],[336,13,336,15],[336,7,336,8],[336,9,336,10],[336,11,336,12],[334,11,334,12],[334,13,334,15],[331,0,331,6],[331,7,331,8],[331,9,331,10],[331,11,331,12],[331,13,331,15],[332,0,332,6],[332,7,332,8],[332,9,332,10],[332,11,332,12],[332,13,332,15],[333,0,333,6],[333,7,333,8],[333,9,333,10],[333,11,333,12],[333,13,333,15],[334,0,334,6],[334,7,334,8],[334,9,334,10],[329,0,329,6],[329,7,329,8],[329,9,329,10],[329,11,329,12],[329,13,329,15],[330,0,330,6],[330,7,330,8],[330,9,330,10],[330,11,330,12],[330,13,330,15],[327,0,327,6],[327,7,327,8],[327,9,327,10],[327,11,327,12],[327,13,327,15],[328,0,328,6],[328,7,328,8],[328,9,328,10],[328,11,328,12],[328,13,328,15],[325,0,325,6],[325,7,325,8],[325,9,325,10],[325,11,325,12],[325,13,325,15],[326,0,326,6],[326,7,326,8],[326,9,326,10],[326,11,326,12],[326,13,326,15],[323,0,323,6],[323,7,323,8],[323,9,323,10],[323,11,323,12],[323,13,323,15],[324,0,324,6],[324,7,324,8],[324,9,324,10],[324,11,324,12],[324,13,324,15],[321,0,321,6],[321,7,321,8],[321,9,321,10],[321,11,321,12],[321,13,321,15],[322,0,322,6],[322,7,322,8],[322,9,322,10],[322,11,322,12],[322,13,322,15],[319,0,319,6],[319,7,319,8],[319,9,319,10],[319,11,319,12],[319,13,319,15],[320,0,320,6],[320,7,320,8],[320,9,320,10],[320,11,320,12],[320,13,320,15],[317,0,317,6],[317,7,317,8],[317,9,317,10],[317,11,317,12],[317,13,317,15],[318,0,318,6],[318,7,318,8],[318,9,318,10],[318,11,318,12],[318,13,318,15],[315,0,315,6],[315,7,315,8],[315,9,315,10],[315,11,315,12],[315,13,315,15],[316,0,316,6],[316,7,316,8],[316,9,316,10],[316,11,316,12],[316,13,316,15],[313,0,313,6],[313,7,313,8],[313,9,313,10],[313,11,313,12],[313,13,313,15],[314,0,314,6],[314,7,314,8],[314,9,314,10],[314,11,314,12],[314,13,314,15],[311,0,311,6],[311,7,311,8],[311,9,311,10],[311,11,311,12],[311,13,311,15],[312,0,312,6],[312,7,312,8],[312,9,312,10],[312,11,312,12],[312,13,312,15],[309,0,309,6],[309,7,309,8],[309,9,309,10],[309,11,309,12],[309,13,309,15],[310,0,310,6],[310,7,310,8],[310,9,310,10],[310,11,310,12],[310,13,310,15],[307,0,307,6],[307,7,307,8],[307,9,307,10],[307,11,307,12],[307,13,307,15],[308,0,308,6],[308,7,308,8],[308,9,308,10],[308,11,308,12],[308,13,308,15],[305,0,305,6],[305,7,305,8],[305,9,305,10],[305,11,305,12],[305,13,305,15],[306,0,306,6],[306,7,306,8],[306,9,306,10],[306,11,306,12],[306,13,306,15],[304,0,304,6],[304,7,304,8],[304,9,304,10],[304,11,304,12],[304,13,304,15],[302,0,302,15],[303,0,303,15],[296,0,296,7],[296,8,296,10],[296,11,296,12],[296,13,296,15],[297,13,297,15],[301,0,301,15],[297,11,297,12],[297,8,297,10],[294,0,294,7],[294,8,294,10],[294,11,294,12],[294,13,294,15],[295,0,295,7],[295,8,295,10],[295,11,295,12],[295,13,295,15],[292,0,292,7],[292,8,292,10],[292,11,292,12],[292,13,292,15],[293,0,293,7],[293,8,293,10],[293,11,293,12],[293,13,293,15],[290,0,290,7],[290,8,290,10],[290,11,290,12],[290,13,290,15],[291,0,291,7],[291,8,291,10],[291,11,291,12],[291,13,291,15],[288,0,288,7],[288,8,288,10],[288,11,288,12],[288,13,288,15],[289,0,289,7],[289,8,289,10],[289,11,289,12],[289,13,289,15],[286,0,286,7],[286,8,286,10],[286,11,286,12],[286,13,286,15],[287,0,287,7],[287,8,287,10],[287,11,287,12],[287,13,287,15],[284,0,284,7],[284,8,284,10],[284,11,284,12],[284,13,284,15],[285,0,285,7],[285,8,285,10],[285,11,285,12],[285,13,285,15],[282,0,282,7],[282,8,282,10],[282,11,282,12],[282,13,282,15],[283,0,283,7],[283,8,283,10],[283,11,283,12],[283,13,283,15],[280,0,280,7],[280,8,280,10],[280,11,280,12],[280,13,280,15],[281,0,281,7],[281,8,281,10],[281,11,281,12],[281,13,281,15],[278,0,278,7],[278,8,278,10],[278,11,278,12],[278,13,278,15],[279,0,279,7],[279,8,279,10],[279,11,279,12],[279,13,279,15],[276,0,276,7],[276,8,276,10],[276,11,276,12],[276,13,276,15],[277,0,277,7],[277,8,277,10],[277,11,277,12],[277,13,277,15],[274,0,274,7],[274,8,274,10],[274,11,274,12],[274,13,274,15],[275,0,275,7],[275,8,275,10],[275,11,275,12],[275,13,275,15],[272,0,272,7],[272,8,272,10],[272,11,272,12],[272,13,272,15],[273,0,273,7],[273,8,273,10],[273,11,273,12],[273,13,273,15],[270,0,270,7],[270,8,270,10],[270,11,270,12],[270,13,270,15],[271,0,271,7],[271,8,271,10],[271,11,271,12],[271,13,271,15],[268,0,268,7],[268,8,268,10],[268,11,268,12],[268,13,268,15],[269,0,269,7],[269,8,269,10],[269,11,269,12],[269,13,269,15],[266,0,266,7],[266,8,266,10],[266,11,266,12],[266,13,266,15],[267,0,267,7],[267,8,267,10],[267,11,267,12],[267,13,267,15],[264,0,264,7],[264,8,264,10],[264,11,264,12],[264,13,264,15],[265,0,265,7],[265,8,265,10],[265,11,265,12],[265,13,265,15],[256,0,256,9],[256,10,256,12],[256,13,256,15],[257,13,257,15],[261,0,261,15],[262,0,262,15],[263,0,263,15],[254,0,254,9],[254,10,254,12],[254,13,254,15],[255,0,255,9],[255,10,255,12],[255,13,255,15],[257,10,257,12],[252,0,252,9],[252,10,252,12],[252,13,252,15],[253,0,253,9],[253,10,253,12],[253,13,253,15],[250,0,250,9],[250,10,250,12],[250,13,250,15],[251,0,251,9],[251,10,251,12],[251,13,251,15],[248,0,248,9],[248,10,248,12],[248,13,248,15],[249,0,249,9],[249,10,249,12],[249,13,249,15],[246,0,246,9],[246,10,246,12],[246,13,246,15],[247,0,247,9],[247,10,247,12],[247,13,247,15],[244,0,244,9],[244,10,244,12],[244,13,244,15],[245,0,245,9],[245,10,245,12],[245,13,245,15],[242,0,242,9],[242,10,242,12],[242,13,242,15],[243,0,243,9],[243,10,243,12],[243,13,243,15],[240,0,240,9],[240,10,240,12],[240,13,240,15],[241,0,241,9],[241,10,241,12],[241,13,241,15],[238,0,238,9],[238,10,238,12],[238,13,238,15],[239,0,239,9],[239,10,239,12],[239,13,239,15],[236,0,236,9],[236,10,236,12],[236,13,236,15],[237,0,237,9],[237,10,237,12],[237,13,237,15],[234,0,234,9],[234,10,234,12],[234,13,234,15],[235,0,235,9],[235,10,235,12],[235,13,235,15],[232,0,232,9],[232,10,232,12],[232,13,232,15],[233,0,233,9],[233,10,233,12],[233,13,233,15],[230,0,230,9],[230,10,230,12],[230,13,230,15],[231,0,231,9],[231,10,231,12],[231,13,231,15],[228,0,228,9],[228,10,228,12],[228,13,228,15],[229,0,229,9],[229,10,229,12],[229,13,229,15],[226,0,226,9],[226,10,226,12],[226,13,226,15],[227,0,227,9],[227,10,227,12],[227,13,227,15],[224,0,224,9],[224,10,224,12],[224,13,224,15],[225,0,225,9],[225,10,225,12],[225,13,225,15],[216,13,216,15],[219,0,219,15],[220,0,220,15],[223,0,223,9],[223,10,223,12],[223,13,223,15],[221,0,221,15],[222,0,222,15],[216,10,216,12],[214,0,214,9],[214,10,214,12],[214,13,214,15],[215,0,215,9],[215,10,215,12],[215,13,215,15],[212,0,212,9],[212,10,212,12],[212,13,212,15],[213,0,213,9],[213,10,213,12],[213,13,213,15],[210,0,210,9],[210,10,210,12],[210,13,210,15],[211,0,211,9],[211,10,211,12],[211,13,211,15],[208,0,208,9],[208,10,208,12],[208,13,208,15],[209,0,209,9],[209,10,209,12],[209,13,209,15],[206,0,206,9],[206,10,206,12],[206,13,206,15],[207,0,207,9],[207,10,207,12],[207,13,207,15],[204,0,204,9],[204,10,204,12],[204,13,204,15],[205,0,205,9],[205,10,205,12],[205,13,205,15],[202,0,202,9],[202,10,202,12],[202,13,202,15],[203,0,203,9],[203,10,203,12],[203,13,203,15],[200,0,200,9],[200,10,200,12],[200,13,200,15],[201,0,201,9],[201,10,201,12],[201,13,201,15],[198,0,198,9],[198,10,198,12],[198,13,198,15],[199,0,199,9],[199,10,199,12],[199,13,199,15],[196,0,196,9],[196,10,196,12],[196,13,196,15],[197,0,197,9],[197,10,197,12],[197,13,197,15],[194,0,194,9],[194,10,194,12],[194,13,194,15],[195,0,195,9],[195,10,195,12],[195,13,195,15],[192,0,192,9],[192,10,192,12],[192,13,192,15],[193,0,193,9],[193,10,193,12],[193,13,193,15],[190,0,190,9],[190,10,190,12],[190,13,190,15],[191,0,191,9],[191,10,191,12],[191,13,191,15],[188,0,188,9],[188,10,188,12],[188,13,188,15],[189,0,189,9],[189,10,189,12],[189,13,189,15],[186,0,186,9],[186,10,186,12],[186,13,186,15],[187,0,187,9],[187,10,187,12],[187,13,187,15],[184,0,184,9],[184,10,184,12],[184,13,184,15],[185,0,185,9],[185,10,185,12],[185,13,185,15],[182,0,182,9],[182,10,182,12],[182,13,182,15],[183,0,183,9],[183,10,183,12],[183,13,183,15],[174,0,174,9],[174,10,174,12],[174,13,174,15],[175,13,175,15],[179,0,179,15],[180,0,180,15],[181,0,181,15],[175,10,175,12],[172,0,172,9],[172,10,172,12],[172,13,172,15],[173,0,173,9],[173,10,173,12],[173,13,173,15],[170,0,170,9],[170,10,170,12],[170,13,170,15],[171,0,171,9],[171,10,171,12],[171,13,171,15],[168,0,168,9],[168,10,168,12],[168,13,168,15],[169,0,169,9],[169,10,169,12],[169,13,169,15],[166,0,166,9],[166,10,166,12],[166,13,166,15],[167,0,167,9],[167,10,167,12],[167,13,167,15],[164,0,164,9],[164,10,164,12],[164,13,164,15],[165,0,165,9],[165,10,165,12],[165,13,165,15],[162,0,162,9],[162,10,162,12],[162,13,162,15],[163,0,163,9],[163,10,163,12],[163,13,163,15],[160,0,160,9],[160,10,160,12],[160,13,160,15],[161,0,161,9],[161,10,161,12],[161,13,161,15],[158,0,158,9],[158,10,158,12],[158,13,158,15],[159,0,159,9],[159,10,159,12],[159,13,159,15],[156,0,156,9],[156,10,156,12],[156,13,156,15],[157,0,157,9],[157,10,157,12],[157,13,157,15],[154,0,154,9],[154,10,154,12],[154,13,154,15],[155,0,155,9],[155,10,155,12],[155,13,155,15],[152,0,152,9],[152,10,152,12],[152,13,152,15],[153,0,153,9],[153,10,153,12],[153,13,153,15],[150,0,150,9],[150,10,150,12],[150,13,150,15],[151,0,151,9],[151,10,151,12],[151,13,151,15],[148,0,148,9],[148,10,148,12],[148,13,148,15],[149,0,149,9],[149,10,149,12],[149,13,149,15],[146,0,146,9],[146,10,146,12],[146,13,146,15],[147,0,147,9],[147,10,147,12],[147,13,147,15],[144,0,144,9],[144,10,144,12],[144,13,144,15],[145,0,145,9],[145,10,145,12],[145,13,145,15],[142,0,142,9],[142,10,142,12],[142,13,142,15],[143,0,143,9],[143,10,143,12],[143,13,143,15],[140,0,140,15],[141,0,141,15],[133,0,133,9],[133,10,133,12],[133,13,133,15],[134,13,134,15],[136,0,136,16383],[139,0,139,15],[134,10,134,12],[131,0,131,9],[131,10,131,12],[131,13,131,15],[132,0,132,9],[132,10,132,12],[132,13,132,15],[129,0,129,9],[129,10,129,12],[129,13,129,15],[130,0,130,9],[130,10,130,12],[130,13,130,15],[127,0,127,9],[127,10,127,12],[127,13,127,15],[128,0,128,9],[128,10,128,12],[128,13,128,15],[125,0,125,9],[125,10,125,12],[125,13,125,15],[126,0,126,9],[126,10,126,12],[126,13,126,15],[117,0,117,8],[117,9,117,11],[117,13,117,15],[118,13,118,15],[124,0,124,9],[124,10,124,12],[124,13,124,15],[122,0,122,15],[123,0,123,15],[118,9,118,11],[115,0,115,8],[115,9,115,11],[115,13,115,15],[116,0,116,8],[116,9,116,11],[116,13,116,15],[113,0,113,8],[113,9,113,11],[113,13,113,15],[114,0,114,8],[114,9,114,11],[114,13,114,15],[111,0,111,8],[111,9,111,11],[111,13,111,15],[112,0,112,8],[112,9,112,11],[112,13,112,15],[109,0,109,8],[109,9,109,11],[109,13,109,15],[110,0,110,8],[110,9,110,11],[110,13,110,15],[107,0,107,15],[108,0,108,15],[98,0,98,16],[100,0,100,15],[101,0,101,15],[104,0,104,16],[105,0,105,16],[106,0,106,15],[5,0,5,16],[6,0,6,16383],[79,9,79,10],[94,0,94,2],[92,0,92,2],[92,9,92,10],[94,9,94,10],[95,0,95,2],[95,9,95,10],[9,15,10,15],[89,0,89,2],[89,9,89,10],[90,0,90,2],[90,9,90,10],[91,0,91,2],[91,9,91,10],[86,0,86,2],[86,9,86,10],[87,0,87,2],[87,9,87,10],[88,0,88,2],[88,9,88,10],[83,0,83,2],[83,9,83,10],[84,0,84,2],[84,9,84,10],[85,0,85,2],[85,9,85,10],[79,0,79,2],[80,0,80,2],[80,9,80,10],[81,0,81,2],[81,9,81,10],[82,0,82,2],[82,9,82,10],[76,0,76,2],[76,9,76,10],[77,0,77,2],[77,9,77,10],[78,0,78,2],[78,9,78,10],[72,0,72,2],[72,9,72,10],[73,0,73,2],[73,9,73,10],[74,9,74,10],[75,0,75,2],[75,9,75,10],[69,0,69,2],[69,9,69,10],[70,0,70,2],[70,9,70,10],[71,0,71,2],[71,9,71,10],[66,0,66,2],[66,9,66,10],[67,0,67,2],[67,9,67,10],[68,0,68,2],[68,9,68,10],[62,9,62,10],[63,0,63,2],[63,9,63,10],[64,0,64,2],[64,9,64,10],[65,0,65,2],[65,9,65,10],[59,0,59,2],[59,9,59,10],[60,0,60,2],[60,9,60,10],[61,0,61,2],[61,9,61,10],[56,0,56,2],[56,9,56,10],[57,0,57,2],[57,9,57,10],[58,0,58,2],[58,9,58,10],[53,0,53,2],[53,9,53,10],[50,0,50,2],[54,0,54,2],[54,9,54,10],[55,0,55,2],[55,9,55,10],[49,0,49,2],[49,9,49,10],[50,9,50,10],[51,0,51,2],[51,9,51,10],[52,0,52,2],[52,9,52,10],[46,0,46,2],[46,9,46,10],[47,0,47,2],[47,9,47,10],[48,0,48,2],[48,9,48,10],[43,0,43,2],[43,9,43,10],[44,0,44,2],[44,9,44,10],[45,0,45,2],[45,9,45,10],[40,0,40,2],[40,9,40,10],[41,0,41,2],[41,9,41,10],[42,0,42,2],[42,9,42,10],[36,0,36,2],[36,9,36,10],[37,9,37,10],[38,0,38,2],[38,9,38,10],[39,0,39,2],[39,9,39,10],[33,0,33,2],[33,9,33,10],[34,0,34,2],[34,9,34,10],[35,0,35,2],[35,9,35,10],[30,0,30,2],[30,9,30,10],[31,0,31,2],[31,5,31,6],[31,9,31,10],[32,0,32,2],[32,9,32,10],[26,0,26,2],[26,9,26,10],[27,9,27,10],[28,0,28,2],[28,9,28,10],[29,0,29,2],[29,9,29,10],[23,0,23,2],[23,9,23,10],[24,0,24,2],[24,9,24,10],[25,0,25,2],[25,9,25,10],[21,0,21,2],[21,9,21,10],[22,0,22,2],[22,9,22,10],[17,0,17,2],[17,9,17,10],[18,0,18,2],[18,9,18,10],[19,0,19,2],[19,9,19,10],[20,0,20,2],[20,9,20,10],[1,0,1,17],[3,0,3,16],[8,3,8,17],[9,3,10,4],[9,5,10,6],[9,7,10,8],[9,9,10,10],[9,11,9,14],[13,0,13,3],[13,9,13,10],[14,9,14,10],[15,0,15,2],[15,9,15,10],[16,0,16,2],[16,9,16,10],[9,16,10,17],[10,11,10,12],[10,13,10,14],[11,9,11,10],[12,0,12,2],[12,9,12,10]]}
[null,null,null,null,"School Division:",null,{"$f":"'[1]Narrative & Detail Budget'!$A$15","v":0},null,null,null,null,null,null,"Division Number:",null,null,null,{"$f":"'[1]Narrative & Detail Budget'!I15","v":" "}]
["G.  TRANSFERABILITY"]
[]
["Section 5103(b)(2) of ESSA allows divisions to transfer all or a portion of the funds received from Title II, Part A, or Title IV, Part A, into: Title I, Part A; Title I, Part C; Title I, Part D; Title II, Part A; Title III, Part A; Title IV, Part A; or Title V, Part B.  "]
[]
["Complete the tab below if funds will be transferred under Section 5103(b)(2). Please note that prior approval is required to transfer funds. The transfer request form is provided at "]
["http://www.doe.virginia.gov/federal_programs/esea/forms/lea_funds_transfer_request.docx."]
[]
[null,null,null,"Amount Budgeted"]
[null,null,null,"Title I, Part A",null,"Title I, Part C",null,"Title I, Part D",null,"Title II, Part A",null,"Title III, Part A",null,null,null,"Title IV, Part A","Title V, Part B"]
[null,null,null,null,null,null,null,null,null,null,null,"EL",null,"IY"]
[null,null,null,"Title II, Part A, Transferability","Title IV, Part A, Transferability","Title II, Part A, Transferability","Title IV, Part A, Transferability","Title II, Part A, Transferability","Title IV, Part A, Transferability","Title IV, Part A, Transferability\nAward S424A180048\nProject Code APE60022",null,"Title II, Part A, Transferability","Title IV, Part A, Transferability","Title II, Part A, Transferability","Title IV, Part A, Transferability","Title II, Part A, Transferability\n","Title II, Part A, Transferability","Title IV, Part A, Transferability"]
["Amount Transferred to Program",null,null,null,null,null,null,null,null,{"$f":"'Narrative & Detail Budget'!M60","v":42505.36}]
["OBJECT CODE - EXPENDITURE TYPE"]
["1000 -  Personal Services"]
["Administration",null,null,null,null,null,null,null,null,0]
["Teachers",null,null,null,null,null,null,null,null,36631.68]
["Paraprofessionals",null,null,null,null,null,null,null,null,0]
["Teacher Incentives",null,null,null,null,null,null,null,null,0]
["Focus Schools, if applicable"]
["Other Title I Schools in Improvement, if applicable"]
["Private School Set-Aside "]
["Parent and Family Engagement"]
["Professional Development",null,null,null,null,null,null,null,null,0]
["Value of professional development personnel-related services or stipends on behalf of private schools",null,null,null,null,null,null,null,null,0]
["Other",null,null,null,null,null,null,null,null,0]
["Total Personal Services",null,null,null,null,null,null,null,null,{"$f":"SUM(J16:K26)","v":36631.68}]
["2000 - Employee Benefits"]
["Fixed Charges (Administrative)",null,null,null,null,null,null,null,null,0]
["Fixed Charges (Instructional and Other)  ",null,null,null,null,null,null,null,null,2802.43]
["Teacher Incentives",null,null,null,null,null,null,null,null,0]
["Other Title I Schools in Improvement, if applicable"]
["Private School Set-Aside "]
["Fixed Charges (Parent and Family Engagement)"]
["Fixed Charges (Professional Development)",null,null,null,null,null,null,null,null,0]
["Value of professional development personnel-related benefits on behalf of private schools",null,null,null,null,null,null,null,null,0]
["Total Employee Benefits",null,null,null,null,null,null,null,null,{"$f":"SUM(J29:K36)","v":2802.43}]
["3000 - Purchased/Contracted Services"]
["Supportive Services (Med., Dental)"]
["Evaluation Services",null,null,null,null,null,null,null,null,0]
["Priority Schools, if applicable"]
["Focus Schools, if applicable"]
["Parent and Family Engagement"]
["Other Title I Schools in Improvement, if applicable"]
["Private School Set-Aside ",null,null,null,null,null,null,null,null,3071.25]
["Professional Development",null,null,null,null,null,null,null,null,0]
["Teacher Quality (i.e., assessments; recruitment)",null,null,null,null,null,null,null,null,0]
["Tutoring Services"]
["Other",null,null,null,null,null,null,null,null,0]
["Total Purchased/Contracted Services",null,null,null,null,null,null,null,null,{"$f":"SUM(J39:K49)","v":3071.25}]
["4000 - Internal Services"]
["Public School Choice Transportation"]
["Pupil Transportation"]
["Food Services",null,null,null,null,null,null,null,null,0]
["Priority Schools, if applicable"]
["Focus Schools, if applicable"]
["Other Title I Schools in Improvement, if applicable"]
["Private School Set-Aside ",null,null,null,null,null,null,null,null,0]
["Professional Development",null,null,null,null,null,null,null,null,0]
["Parent and Family Engagement"]
["Other",null,null,null,null,null,null,null,null,0]
["Total Internal Services",null,null,null,null,null,null,null,null,{"$f":"SUM(J52:K61)","v":0}]
["5000 - Other Charges"]
["Travel (Staff/Administrative)",null,null,null,null,null,null,null,null,0]
["Maintenance/Operation of Plant"]
["Indirect Cost",null,null,null,null,null,null,null,null,0]
["Priority Schools, if applicable"]
["Focus Schools, if applicable"]
["Other Title I Schools in Improvement, if applicable"]
["Private School Set-Aside ",null,null,null,null,null,null,null,null,0]
["Professional Development",null,null,null,null,null,null,null,null,0]
["Parent and Family Engagement"]
["Other",null,null,null,null,null,null,null,null,0]
["Total Other Charges",null,null,null,null,null,null,null,null,{"$f":"SUM(J64:K73)","v":0}]
["6000 - Materials and Supplies"]
["Administrative",null,null,null,null,null,null,null,null,0]
["Instructional"]
["Priority Schools, if applicable"]
["Focus Schools, if applicable"]
["Other Title I Schools in Improvement, if applicable"]
["Private School Set-Aside ",null,null,null,null,null,null,null,null,0]
["Professional Development",null,null,null,null,null,null,null,null,0]
["Parent and Family Engagement"]
["Other"]
["Total Materials and Supplies",null,null,null,null,null,null,null,null,{"$f":"SUM(J76:K84)","v":0}]
["8000 - Capital Outlay"]
["Equipment for Instruction"]
["Buildings"]
["Remodeling"]
["Professional Development",null,null,null,null,null,null,null,null,0]
["Parent and Family Engagement"]
["All Other Equipment"]
["Total Capital Outlay",null,null,null,null,null,null,null,null,{"$f":"SUM(J87:K92)","v":0}]
["Total Private School Set-Aside",null,null,null,null,null,null,null,null,{"$f":"J25+J36+J45+J58+J70+J81","v":3071.25}]
["TOTAL BUDGET",null,null,null,null,null,null,null,null,{"$f":"SUM(J27,J37,J50,J62,J74,J85,J93)","v":42505.36}]
["Does Budget Match Amount Transferred to Program?",null,null,null,null,null,null,null,null,{"$f":"IF(J95=J13,\"Yes\",\"No\")","v":"Yes"}]
["Page 27"]
[null,null,null,null,"School Division:",null,{"$f":"'Narrative & Detail Budget'!$A$15","v":"ALBEMARLE COUNTY PUBLIC SCHOOLS"},null,null,null,null,null,null,"Division Number:",null,null,{"$f":"'Narrative & Detail Budget'!I15","v":2}]
["DETAIL BUDGET BREAKDOWN"]
[]
["Prepare a detailed breakdown of the budget categories for Object Codes 1000-6000 and 8000."]
["The amounts by program and object codes totals are to be entered on the Summary Budget Sheet under the appropriate area."]
["Do the totals equal the Summary Budget sheet? ",null,null,null,null,null,null,null,{"$f":"IF(SUM(J13)=SUM(N119+N135+N176+N217+N258+N298+N337),\"Yes\",\"No -please review your entries.\")","v":"Yes"}]
[]
["BREAKDOWN OF STAFF POSITIONS"]
["OBJECT CODE 1000 "]
["Provide a description of the positions supported with funds from this program. Indicate if any positions are newly funded under this program.  Explain the supplementary nature of any new positions. (Required if staff positions are to be funded by federal funds.)"]
["Same as OC 1000 grant narrative."]
[]
["Item Description",null,null,null,null,null,null,null,null,"Funding Source",null,null,"FTEs","Total Cost"]
["Value of professional development personnel-related services or stipends on behalf of private schools"]
["Instructional Coach ",null,null,null,null,null,null,null,null,"Title IV, Part A, Transferability",null,null,0.7,36631.68]
[]
[]
[]
[]
[]
[]
[null,null,null,null,"      ",null,null,null,null,"Total for Object Code:",null,null,{"$f":"SUM(M111:M118)","v":0.7},{"$f":"SUM(N111:P118)","v":36631.68}]
[]
["DETAILED BUDGET DESCRIPTION OF OBJECT CODE 2000"]
["Indicate the fixed charge categories (such as FICA, health, etc.) and specify the amount of each."]
["FICA for .7 FTE position."]
[]
["Item Description",null,null,null,null,null,null,null,null,null,"Funding Source",null,null,"Total Cost"]
["Private School Set-aside"]
["FICA, Instructional Coach",null,null,null,null,null,null,null,null,null,"Title IV, Part A, Transferability",null,null,2802.43]
[]
[]
[]
[]
[]
[]
[]
[null,null,null,null,"      ",null,null,null,null,null,"Total for Object Code:",null,null,{"$f":"SUM(N126:P134)","v":2802.43}]
[]
["Page 28"]
[null,null,null,null,"School Division:",null,{"$f":"'Narrative & Detail Budget'!$A$15","v":"ALBEMARLE COUNTY PUBLIC SCHOOLS"},null,null,null,null,null,null,"Division Number:",null,null,{"$f":"'Narrative & Detail Budget'!I15","v":2}]
["DETAILED BUDGET DESCRIPTION OF OBJECT CODE 3000"]
["Provide a description for expenses related to object code 3000. Please describe planned expenditures as they relate to the identified programs and activities to achieve stated measurable objective(s). Indicate how these funds will support any services and activities that are described in the application.  "]
["Private School set aside, to supplement amount from Title II, Part A."]
[]
["Item Description",null,null,null,null,null,null,null,null,null,"Funding Source",null,null,"Total Cost"]
["Private School Set-aside",null,null,null,null,null,null,null,null,null,"Title IV, Part A, Transferability",null,null,3071.25]
[]
[]
[]
[]
[]
[]
[]
[]
[]
[]
[]
[]
[]
[]
[]
[]
[]
[]
[]
[]
[]
[]
[]
[]
[]
[]
[]
[]
[]
[]
[]
[null,null,null,null,"      ",null,null,null,null,null,"Total for Object Code:",null,null,{"$f":"SUM(N144:P175)","v":3071.25}]
["Page 29"]
[null,null,null,null,"School Division:",null,{"$f":"'Narrative & Detail Budget'!$A$15","v":"ALBEMARLE COUNTY PUBLIC SCHOOLS"},null,null,null,null,null,null,"Division Number:",null,null,{"$f":"'Narrative & Detail Budget'!I15","v":2}]
["DETAILED BUDGET DESCRIPTION OF OBJECT CODE 4000"]
["Provide a description of charges from an Internal Service Fund to other functions/activities/elements of the local government for the use of intragovernmental services.  "]
[]
[]
["Item Description",null,null,null,null,null,null,null,null,null,"Funding Source",null,null,"Total Cost"]
[]
[]
[]
[]
[]
[]
[]
[]
[]
[]
[]
[]
[]
[]
[]
[]
[]
[]
[]
[]
[]
[]
[]
[]
[]
[]
[]
[]
[]
[]
[]
[]
[]
[null,null,null,null,"      ",null,null,null,null,null,"Total for Object Code:",null,null,{"$f":"SUM(N184:P216)","v":0}]
["Page 30"]
[null,null,null,null,"School Division:",null,{"$f":"'Narrative & Detail Budget'!$A$15","v":"ALBEMARLE COUNTY PUBLIC SCHOOLS"},null,null,null,null,null,null,"Division Number:",null,null,{"$f":"'Narrative & Detail Budget'!I15","v":2}]
["DETAILED BUDGET DESCRIPTION OF OBJECT CODE 5000"]
["Provide a description for expenses related to object code 5000."]
[]
[]
["Item Description",null,null,null,null,null,null,null,null,null,"Funding Source",null,null,"Total Cost"]
["Private School Set-aside"]
[]
[]
[]
[]
[]
[]
[]
[]
[]
[]
[]
[]
[]
[]
[]
[]
[]
[]
[]
[]
[]
[]
[]
[]
[]
[]
[]
[]
[]
[]
[]
[]
[null,null,null,null,"      ",null,null,null,null,null,"Total for Object Code:",null,null,{"$f":"SUM(N225:P257)","v":0}]
["Page 31"]
[null,null,null,null,"School Division:",null,{"$f":"'Narrative & Detail Budget'!$A$15","v":"ALBEMARLE COUNTY PUBLIC SCHOOLS"},null,null,null,null,null,null,"Division Number:",null,null,{"$f":"'Narrative & Detail Budget'!I15","v":2}]
["DETAILED BUDGET DESCRIPTION FOR OBJECT CODE 6000"]
["Provide a description for expenses related to object code 6000 Materials and Supplies.  Include articles and commodities that are consumed or materially altered when used and minor equipment that is not capitalized. This includes any equipment purchased under $5,000, unless the LEA has set a lower capitalization threshold.   Therefore, computer equipment under $5,000 should be reported in “materials and supplies.”"]
[]
[]
["Item Description",null,null,null,null,null,null,null,"Funding Source",null,null,"Quantity",null,"Total Cost"]
["Private School Set-aside "]
[]
[]
[]
[]
[]
[]
[]
[]
[]
[]
[]
[]
[]
[]
[]
[]
[]
[]
[]
[]
[]
[]
[]
[]
[]
[]
[]
[]
[]
[]
[]
[null,null,null,null,"      ",null,null,null,"Total for Object Code:",null,null,{"$f":"SUM(L266:M297)","v":0},null,{"$f":"SUM(N266:P297)","v":0}]
["Page 32"]
[null,null,null,null,"School Division:",null,{"$f":"'Narrative & Detail Budget'!$A$15","v":"ALBEMARLE COUNTY PUBLIC SCHOOLS"},null,null,null,null,null,null,"Division Number:",null,null,{"$f":"'Narrative & Detail Budget'!I15","v":2}]
["DETAILED BUDGET DESCRIPTION FOR OBJECT CODE 8000"]
["All capital outlay expenditures in the aggregate over $5,000 must be approved in advance by the Virginia Department of Education. If the local school division has established a threshold of a lesser amount, items equal to that amount or greater must also receive prior approval by the Virginia Department of Education.  Nonconsumable items must be listed in the application."]
[]
[]
["Item Description",null,null,null,null,null,null,"Funding Source",null,"Quantity",null,"Cost Per Item",null,"Total Cost"]
[]
[]
[]
[]
[]
[]
[]
[]
[]
[]
[]
[]
[]
[]
[]
[]
[]
[]
[]
[]
[]
[]
[]
[]
[]
[]
[]
[]
[]
[]
[]
[null,null,null,null,"      ",null,null,"Total for Object Code:",null,{"$f":"SUM(J306:K336)","v":0},null,{"$f":"SUM(L306:M336)","v":0},null,{"$f":"SUM(N306:P336)","v":0}]
["Page 33"]

{"sheet":"GEPA","index":3,"n_rows":10,"n_cols":16,"rows_kept":10,"cut":false,"hidden":false,"merged":[[13,5,13,6],[13,7,13,8],[13,9,13,10],[14,5,14,6],[14,7,14,8],[14,9,14,10],[9,0,9,15],[11,5,11,6],[11,7,11,8],[11,9,11,10],[12,5,12,6],[12,7,12,8],[12,9,12,10],[7,0,7,15],[0,3,0,5],[1,0,1,15],[3,0,3,15],[5,0,5,15],[6,0,6,15]]}
[null,null,null,"School Division:",null,null,{"$f":"'Narrative & Detail Budget'!A15","v":"ALBEMARLE COUNTY PUBLIC SCHOOLS"},null,null,null,null,null,"Division Number:",null,null,{"$f":"'Narrative & Detail Budget'!I15","v":2}]
["H.  GENERAL EDUCATION PROVISIONS ACT (GEPA) SECTION 427"]
[]
["Section 427 of the General Education Provisions Act (GEPA) requires applicants for federal funds to include in their applications a description of the steps the applicant will take to ensure equitable access to, and participation in, federally-assisted programs for students, teachers, and other program beneficiaries with special needs. The provision allows applicants discretion in developing the required description. The statute highlights six types of barriers that can impede equitable access or participation: gender, race, national origin, color, disability, or age. Based on local circumstances, the applicant should determine whether these or other barriers may prevent students, teachers, etc., from such access or participation in the federally-funded project or activity. The description in the application of steps to be taken to overcome these barriers need not be lengthy; the application may provide a clear and succinct description of how the applicant plans to address those barriers that are applicable to their circumstances."]
[]
["Describe the steps the division will take to ensure equitable access to, and participation in, grant-funded programs for students, teachers, and other program beneficiaries with special needs as required by the General Education Provisions Act (GEPA) 427, OMB Control No. 1894-00045, Section 427."]
["Albemarle County is committed to providing equitable access for students, teachers and families in all grant-funded programs and opportunities as required by GEPA 427: \n1.Ensuring all events are held in handicapped accessible facilities in geographically convenient locations. Events are held during the day, evening, and on weekends to accommodate family school/work schedules in order to maximize participation.\n2. Materias provided are accessible for literate and non-readers as well as in electronic and paper copy formats to inform families that may not have access to social media and email. This includes translation of documents into Spanish and other languages as needed. The ESOL Office annually vets, hires and trains additional interpreters and translators to ensure a high-level of quality with a personalized experience for families.  Simultaneous interpretation equipment is used in large-group settings, and InterpreTalk Language \n"]
["Line services are used when necessary.  3.Albemarle County conducts a variety of outreach programs to address gender and/or race inequalities. Some of these include: Teacher summer reading project, Girls in STEM initiatives, Summer Immersion Excursion programs for newcomers, Camp Invention modules, CoderDojo, World Peace Game, and Saturday family engagement experiences to STEM fairs and other local attractions. \n4.Efforts to involve diverse stakeholders in program planning and implementation are robust and include seventeen diverse teams. Advisory groups include Parent Council, Student Advisory, Special Education, Gifted, Title I, and Diversity and Equity.  Last but certainly not least, the Title I, Title III, Migrant and Homeless Coordinators all meet monthly with the Director of Federal Programs to collaborate and ensure our students have equitable access to all division opportunities. "]
[]
["Page 34"]

{"sheet":"Teacher Quality","index":4,"n_rows":31,"n_cols":16,"rows_kept":31,"cut":false,"hidden":false,"merged":[[21,10,21,11],[10,10,10,11],[16,0,16,15],[30,0,30,15],[1,0,1,15],[18,10,18,11],[19,10,19,11],[26,0,27,15],[9,10,9,11],[12,10,12,11],[3,0,3,15],[7,0,7,15],[5,0,5,15],[4,0,4,15],[18,0,18,7],[20,10,20,11],[11,10,11,11],[28,0,28,15],[24,0,24,15]]}
[null,null,null,null,"School Division:",null,{"$f":"'Narrative & Detail Budget'!$A$15","v":"ALBEMARLE COUNTY PUBLIC SCHOOLS"},null,null,null,null,null,"Division Number:",null,null,{"$f":"'Narrative & Detail Budget'!$I$15","v":2}]
["I.  TEACHER QUALITY"]
["Part 1"]
["Teacher Quality"]
["Under USED’s authority to ensure an orderly transition from ESEA to ESSA, states are no longer required to report highly qualified teacher (HQT) data. Instead, states may rely on licensure and other professional requirements for teachers.  However, for program planning purposes for the 2018-2019 school year, the following information on teacher and paraprofessional quality from the 2017-2018 data collection may assist school divisions.  These data may be obtained from the most recent verified Instructional Personnel and Licensure Report (IPAL), which provides division results on the licensure and endorsement status of instructional personnel for the 2017-2018 school year. "]
["  See Instructional Personnel and Licensure Report (IPAL), as outlined in Superintendent's Memorandum Number #301-17, October 13, 2017."]
[]
["\n "]
["Teachers (all schools and all federal core content subjects)"]
["     Number of classes taught by properly licensed and endorsed teachers",null,null,null,null,null,null,null,null,null,4477]
["     Number of classes not taught by properly licensed and endorsed teachers",null,null,null,null,null,null,null,null,null,436]
["     Total classes ",null,null,null,null,null,null,null,null,null,{"$f":"SUM(K10:L11)","v":4913}]
["     Percent of classes taught by properly licensed and endorsed teachers",null,null,null,null,null,null,null,null,null,{"$f":"IF(K12=0,\"\",K10/K12)","v":0.91125585182169755}]
[]
["Paraprofessionals (Title I schools only)"]
[]
["For targeted assistance schools, only count instructional paraprofessionals working in the Title I classrooms.\nFor schoolwide schools, count all instructional paraprofessionals in the entire school."]
[]
["    Total Properly Qualified Instructional Paraprofessionals",null,null,null,null,null,null,null,null,null,2]
["    Total Instructional Paraprofessionals who are Not Properly Qualified",null,null,null,null,null,null,null,null,null,0]
["    Total Instructional Paraprofessionals",null,null,null,null,null,null,null,null,null,{"$f":"SUM(K19:L20)","v":2}]
["    Percent of Properly Qualified Paraprofessionals",null,null,null,null,null,null,null,null,null,{"$f":"IF(K21=0,\"\",K19/K21)","v":1}]
[]
["Part 2"]
["EQUITABLE DISTRIBUTION OF QUALIFIED, EXPERIENCED, AND EFFECTIVE TEACHERS"]
[]
["Describe how the division assures that students in high poverty (Title I) and/or high minority schools are not taught by inexperienced, out-of-field, or ineffective teachers at a higher rate than students in other schools. To do this, divisions may wish to examine teacher licensure and endorsement data from the 2017-2018 school year or other available teacher quality data and teachers' experience levels at the highest poverty (Title I) and/or highest minority schools at each grade span and indicate whether these percentages are similar in other non-Title I schools with lower poverty or minority percentages. Outline strategies used to ensure an equitable distribution, including mentoring programs to support new teachers and professional development activities to support teachers in working with diverse student populations. "]
[]
["Below are 2017-2018 statistics for the elementary (Title I), middle, and high schools, with greatest challenges due to poverty, minority status and teacher inexperience:\nSchool Level                                         Minority Enrollment               F/R Lunch                Inexperienced Teachers (0-3)      Licensure Rate \nElementary School 1                            64%                                           56%                           11%                                                 100% (1 provisional)\nElementary School 2                            48%                                           47%                           10%                                                 100%\nElementary School 3                            75%                                           76%                           15%                                                 100%\nElementary School 4                            59%                                           57%                           18%                                                 100%\nMiddle School 1                                   52%                                           43%                           2%                                                     96% \nMiddle School 2                                   54%                                           51%                           11%                                                  100%\nHigh School 1                                       41%                                           30%                           16%                                                    97% (6 provisional)\nHigh School 2                                       37%                                           34%                           17%                                                    96% (5 provisional)\nDivision Rate                                        36%                                           31.5%                        12%                                                    98% (27 provisional)\n                \nWe use our Title II funds to address the inexperienced teacher concern for these schools in the following ways: 1) An Instructional Coach is assigned to each novice teacher for a required two-year period to provide mentoring that includes assistance with planning and delivery of instruction, classroom management, assessment, and parent communication; 2) Novice teachers meet monthly to discuss and develop strategies to move to the next stage in teaching ability (i.e. monitoring and adjusting pacing guides, planning instruction for intervention groups, and developing assessments); 3) Novice forums are held every nine weeks and provide professional development. (Note: the IPAL data recorded at top shows figues for all class sections (not just core subject areas; core content totals are no longer listed in the IPAL report).\n"]
[]
["Page 35"]

{"sheet":"Private Schools","index":5,"n_rows":99,"n_cols":26,"rows_kept":99,"cut":false,"hidden":false,"merged":[[69,9,69,10],[73,9,73,10],[75,9,75,10],[74,9,74,10],[67,11,67,12],[68,11,68,12],[69,11,69,12],[70,11,70,12],[71,11,71,12],[66,11,66,12],[65,11,65,12],[42,7,42,8],[43,7,43,8],[53,7,53,8],[52,7,52,8],[46,7,46,8],[61,9,61,10],[56,9,56,10],[63,9,63,10],[45,9,45,10],[47,9,47,10],[52,9,52,10],[60,9,60,10],[50,9,50,10],[58,9,58,10],[61,7,61,8],[62,7,62,8],[63,7,63,8],[62,9,62,10],[64,9,64,10],[56,7,56,8],[59,7,59,8],[60,7,60,8],[82,9,82,10],[83,9,83,10],[41,9,41,10],[43,9,43,10],[34,9,34,10],[36,11,36,12],[51,9,51,10],[66,9,66,10],[72,9,72,10],[65,9,65,10],[67,9,67,10],[68,9,68,10],[70,9,70,10],[71,9,71,10],[78,11,78,12],[59,9,59,10],[73,11,73,12],[74,11,74,12],[75,11,75,12],[72,11,72,12],[61,11,61,12],[62,11,62,12],[63,11,63,12],[64,11,64,12],[15,11,15,12],[37,5,37,6],[27,0,27,25],[36,0,36,4],[34,0,34,4],[35,5,35,6],[34,5,34,6],[34,7,34,8],[31,22,31,23],[37,0,37,4],[35,0,35,4],[31,17,31,21],[30,12,30,13],[35,13,35,17],[36,13,36,17],[33,13,33,17],[34,13,34,17],[30,17,30,21],[33,9,33,10],[18,1,18,10],[33,7,33,8],[31,12,31,13],[33,5,33,6],[18,11,18,22],[19,1,19,10],[23,1,23,10],[24,1,24,10],[36,5,36,6],[37,9,37,10],[38,5,38,6],[40,5,40,6],[35,7,35,8],[38,9,38,10],[39,7,39,8],[39,5,39,6],[39,0,39,4],[38,7,38,8],[35,9,35,10],[36,7,36,8],[36,9,36,10],[37,7,37,8],[40,9,40,10],[39,9,39,10],[59,5,59,6],[57,7,57,8],[50,5,50,6],[56,5,56,6],[23,11,23,22],[50,0,50,4],[51,0,51,4],[52,0,52,4],[44,9,44,10],[42,9,42,10],[51,7,51,8],[51,5,51,6],[52,5,52,6],[41,7,41,8],[43,0,43,4],[41,0,41,4],[54,7,54,8],[55,7,55,8],[54,9,54,10],[55,9,55,10],[41,5,41,6],[42,5,42,6],[45,7,45,8],[54,0,54,4],[48,0,48,4],[44,5,44,6],[42,0,42,4],[40,7,40,8],[44,7,44,8],[43,5,43,6],[54,5,54,6],[53,0,53,4],[49,0,49,4],[49,7,49,8],[53,5,53,6],[46,5,46,6],[45,5,45,6],[50,7,50,8],[48,7,48,8],[48,5,48,6],[47,5,47,6],[77,0,77,4],[76,7,76,8],[72,0,72,4],[75,0,75,4],[74,7,74,8],[74,0,74,4],[58,0,58,4],[59,0,59,4],[55,0,55,4],[56,0,56,4],[61,0,61,4],[55,5,55,6],[66,5,66,6],[65,5,65,6],[60,0,60,4],[67,0,67,4],[75,7,75,8],[58,5,58,6],[62,5,62,6],[73,5,73,6],[68,7,68,8],[60,5,60,6],[64,0,64,4],[64,5,64,6],[98,0,98,25],[76,9,76,10],[76,11,76,12],[78,9,78,10],[81,9,81,10],[79,9,79,10],[85,9,85,10],[84,9,84,10],[90,9,90,10],[80,9,80,10],[77,11,77,12],[83,0,83,4],[81,0,81,4],[80,5,80,6],[88,9,88,10],[89,9,89,10],[91,7,91,8],[86,9,86,10],[78,5,78,6],[77,9,77,10],[80,7,80,8],[76,0,76,4],[77,5,77,6],[86,5,86,6],[63,0,63,4],[69,0,69,4],[69,5,69,6],[70,0,70,4],[68,0,68,4],[67,5,67,6],[70,5,70,6],[74,5,74,6],[73,0,73,4],[71,5,71,6],[72,5,72,6],[73,7,73,8],[78,0,78,4],[75,5,75,6],[78,7,78,8],[77,7,77,8],[76,5,76,6],[88,5,88,6],[88,7,88,8],[83,5,83,6],[83,7,83,8],[82,0,82,4],[82,5,82,6],[80,0,80,4],[81,5,81,6],[81,7,81,8],[79,5,79,6],[82,7,82,8],[79,7,79,8],[79,0,79,4],[84,7,84,8],[85,0,85,4],[86,0,86,4],[85,5,85,6],[85,7,85,8],[84,0,84,4],[91,0,91,4],[91,5,91,6],[90,0,90,4],[90,5,90,6],[87,7,87,8],[88,0,88,4],[89,5,89,6],[87,0,87,4],[89,0,89,4],[89,7,89,8],[87,5,87,6],[87,9,87,10],[1,0,1,25],[11,22,11,25],[57,9,57,10],[53,9,53,10],[57,5,57,6],[48,9,48,10],[49,9,49,10],[49,5,49,6],[47,0,47,4],[57,0,57,4],[42,11,42,12],[37,11,37,12],[3,0,3,25],[7,0,8,25],[29,0,29,25],[19,11,19,22],[30,22,30,23],[20,1,20,10],[20,11,20,22],[25,1,25,10],[25,11,25,22],[86,7,86,8],[84,5,84,6],[13,13,13,25],[33,0,33,4],[60,11,60,12],[45,11,45,12],[46,11,46,12],[47,11,47,12],[48,11,48,12],[55,11,55,12],[56,11,56,12],[57,11,57,12],[58,11,58,12],[59,11,59,12],[49,11,49,12],[50,11,50,12],[51,11,51,12],[52,11,52,12],[53,11,53,12],[54,11,54,12],[46,0,46,4],[44,0,44,4],[45,0,45,4],[47,7,47,8],[46,9,46,10],[40,0,40,4],[60,13,60,17],[61,13,61,17],[50,13,50,17],[51,13,51,17],[52,13,52,17],[53,13,53,17],[55,13,55,17],[56,13,56,17],[57,13,57,17],[58,13,58,17],[59,13,59,17],[54,13,54,17],[24,11,24,22],[48,13,48,17],[49,13,49,17],[38,13,38,17],[39,13,39,17],[40,13,40,17],[35,11,35,12],[38,11,38,12],[33,11,33,12],[34,11,34,12],[43,11,43,12],[44,11,44,12],[39,11,39,12],[37,13,37,17],[40,11,40,12],[41,11,41,12],[31,8,31,11],[30,8,30,11],[82,11,82,12],[83,11,83,12],[84,11,84,12],[85,11,85,12],[86,11,86,12],[87,11,87,12],[86,13,86,17],[87,13,87,17],[88,13,88,17],[68,13,68,17],[69,13,69,17],[70,13,70,17],[81,13,81,17],[82,13,82,17],[62,13,62,17],[63,13,63,17],[74,13,74,17],[75,13,75,17],[76,13,76,17],[64,13,64,17],[65,13,65,17],[71,13,71,17],[72,13,72,17],[73,13,73,17],[66,13,66,17],[67,13,67,17],[95,11,95,12],[77,13,77,17],[78,13,78,17],[79,13,79,17],[80,13,80,17],[92,11,94,12],[95,5,95,6],[95,7,95,8],[90,13,90,17],[91,13,91,17],[92,5,94,6],[92,7,94,8],[91,11,91,12],[90,7,90,8],[83,13,83,17],[89,13,89,17],[84,13,84,17],[85,13,85,17],[88,11,88,12],[89,11,89,12],[90,11,90,12],[79,11,79,12],[80,11,80,12],[81,11,81,12],[95,0,95,4],[95,9,95,10],[92,0,94,4],[30,5,30,7],[31,5,31,7],[62,0,62,4],[92,9,94,10],[63,5,63,6],[64,7,64,8],[65,7,65,8],[65,0,65,4],[71,7,71,8],[72,7,72,8],[69,7,69,8],[70,7,70,8],[66,7,66,8],[66,0,66,4],[67,7,67,8],[71,0,71,4],[68,5,68,6],[38,0,38,4],[61,5,61,6],[58,7,58,8],[91,9,91,10]]}
[null,null,null,null,"School Division:",null,{"$f":"'Narrative & Detail Budget'!$A$15","v":"ALBEMARLE COUNTY PUBLIC SCHOOLS"},null,null,null,null,null,null,null,null,null,null,null,null,null,null,null,"Division Number:",null,null,{"$f":"'Narrative & Detail Budget'!$I$15","v":2}]
["J.  PRIVATE SCHOOL PARTICIPATION"]
[]
["Each year, the school division must contact all eligible private (nonprofit) schools and engage in meaningful consultation on the availability of equitable services funded by Title II, Part A. (ESEA Section 8501 and Title VIII, Uniform Provisions, Part F, Subpart 1)."]
["1. Are there private nonprofit schools in your school division’s attendance area?"]
[null,null,"X","Yes (If yes, complete the remainder of this page.)",null,null,null,null,null,null,null,null,"No (If no, it is not necessary to complete the rest of this page.)"]
[]
["2. Place an \"X\" in the appropriate block(s) to indicate how private schools in the division were notified on the availability of equitable services funded by Title II, Part A. (Copies of the notification must be kept on file for monitoring purposes.)"]
[]
[null,null,"Regular Mail",null,null,null,null,null,null,"X","Certified Mail"]
[]
[null,null,"Telephone Calls",null,null,null,null,null,null,null,"Meetings"]
[]
[null,null,"Visits to the Private School",null,null,null,null,null,null,null,"Other (Please specify)"]
[]
["3. What is the public school division's projected K-12 enrollment for the 2018-2019 school year?",null,null,null,null,null,null,null,null,null,null,13700]
[]
["4. Determining Set-Asides from Title IIA Budget (These fields will calculate automatically once enrollment figures have been entered.)"]
[null,"a. Proposed Budget ",null,null,null,null,null,null,null,null,null,{"$f":"SUM('Summary Budget'!G15+'Summary Budget'!G20+'Summary Budget'!G26+'Summary Budget'!G30+'Summary Budget'!G38+'Summary Budget'!G42+'Summary Budget'!G47)","v":283835.02}]
[null,"b. Amount of funds allocated for administration ",null,null,null,null,null,null,null,null,null,{"$f":"SUM('Summary Budget'!G8+'Summary Budget'!G16+'Summary Budget'!G35+'Summary Budget'!G39)","v":0}]
[null,"c. Amount to use for set-aside calculations",null,null,null,null,null,null,null,null,null,{"$f":"L19-L20","v":283835.02}]
[]
["5. Determining additional set-asides as a result of Transferability. These fields will calculate automatically once budget and enrollment figures have been entered."]
[null,"a. Proposed Budget ",null,null,null,null,null,null,null,null,null,{"$f":"SUM(Transferability!J13)","v":42505.36}]
[null,"b. Amount of funds allocated for administration ",null,null,null,null,null,null,null,null,null,{"$f":"SUM(Transferability!J16+Transferability!J29+Transferability!J40+Transferability!J66+Transferability!J76)","v":0}]
[null,"c. Amount to use for set-aside calculations",null,null,null,null,null,null,null,null,null,{"$f":"L24-L25","v":42505.36}]
[]
[" 6. Complete the chart below:\n• In Column A, list all eligible private schools in the geographic boundaries of the school division.\n• In column B, indicate the participation status of the listed private school(s) for the 2018-2019 award year, as a result of consultation.\n• In column C, enter the K-12 enrollment of private schools participating in services for the 2018-2019 award year.\n• Columns D and E will automatically calculate the value of services for the 2018-2019 award year.\n• In Column F, indicate the method of notification for each private school."]
[]
["7. For the 2018-2019 award year, enter the estimated private school-set aside (Cell J93) onto the Summary Budget Tab under the “Budget for 2018-2019” column in the appropriate object codes on the “Private School Set-Aside” lines.  On the Budget Detail pages, list the amounts in the appropriate object codes in the “Private School Set-Aside for 2017-2018” lines."]
[null,null,null,null,null,"Value of services for participating private schools – from Title IIA 2018-2019 budget",null,null,"Value of additional services for participating private schools - from 2018-2019 TRANSFERABILITY",null,null,null,"Total Value of Services for Public Schools  from 2018-2019 allocation",null,null,null,null,"Total Value of additional services for Public Schools from 2018-2019 TRANSFERABITY"]
[null,null,null,null,null,{"$f":"J93","v":20508.699555766234},null,null,{"$f":"L93","v":3071.2547653551837},null,null,null,{"$f":"L21-J93","v":263326.32044423377},null,null,null,null,{"$f":"L26-L93","v":39434.10523464482}]
[]
["A",null,null,null,null,"B",null,"C",null,"D",null,"E",null,"F"]
["Name of each  Private School",null,null,null,null,"Participation Status for 2017-2018 award year?\n(Yes/No)  ",null,"K-12\n Enrollment ",null,"Estimated Value of Services from 2018-2019 Title IIA budget, per school\n(calculated field)\n",null,"Estimated Value of additional services from Transferability funds",null,"Method of Notification\n (for non-participating schools only)"]
["Charlottesville Catholic School",null,null,null,null,"Yes",null,300,null,{"$f":"IF(F36=\"Yes\",H36*$F$93,0)","v":5766.269790749644},null,{"$f":"IF(F36=\"Yes\",H36*$F$96,0)","v":863.52055258346309}]
["Charlottesville Waldorf School",null,null,null,null,"Yes",null,129,null,{"$f":"IF(F37=\"Yes\",H37*$F$93,0)","v":2479.496010022347},null,{"$f":"IF(F37=\"Yes\",H37*$F$96,0)","v":371.31383761088915}]
["The Covenant School",null,null,null,null,"Yes",null,528,null,10148.634831719373,null,1519.7961725468951]
["Little Keswick School",null,null,null,null,"Yes",null,30,null,576.62697907496442,null,86.352055258346311]
["Free Union Country School",null,null,null,null,"Yes",null,67,null,1287.8002532674207,null,192.85292341030677]
["University Montessori School",null,null,null,null,"Yes",null,13,null,249.8716909324846,null,37.419223945283406]
["Miller School of Albemarle",null,null,null,null,"No",null,null,null,0,null,0,null,"Certified Mail"]
["St. Anne's Belfield School",null,null,null,null,"No",null,null,null,0,null,0,null,"Certified Mail"]
["Tandem Friends School",null,null,null,null,"No",null,null,null,0,null,0,null,"Certified Mail"]
["The Peabody School",null,null,null,null,"No",null,null,null,0,null,0,null,"Certified Mail"]
["Community Christian Academy",null,null,null,null,"No",null,null,null,0,null,0,null,"Certified Mail"]
["Field School of Charlottesville",null,null,null,null,"No",null,null,null,0,null,0,null,"Certified Mail"]
["Mountaintop Montessori School",null,null,null,null,"No",null,null,null,0,null,0,null,"Certified Mail"]
[null,null,null,null,null,null,null,null,null,0,null,0]
[null,null,null,null,null,null,null,null,null,0,null,0]
[null,null,null,null,null,null,null,null,null,0,null,0]
[null,null,null,null,null,null,null,null,null,0,null,0]
[null,null,null,null,null,null,null,null,null,0,null,0]
[null,null,null,null,null,null,null,null,null,0,null,0]
[null,null,null,null,null,null,null,null,null,0,null,0]
[null,null,null,null,null,null,null,null,null,0,null,0]
[null,null,null,null,null,null,null,null,null,0,null,0]
[null,null,null,null,null,null,null,null,null,0,null,0]
[null,null,null,null,null,null,null,null,null,0,null,0]
[null,null,null,null,null,null,null,null,null,0,null,0]
[null,null,null,null,null,null,null,null,null,0,null,0]
[null,null,null,null,null,null,null,null,null,0,null,0]
[null,null,null,null,null,null,null,null,null,0,null,0]
[null,null,null,null,null,null,null,null,null,0,null,0]
[null,null,null,null,null,null,null,null,null,0,null,0]
[null,null,null,null,null,null,null,null,null,0,null,0]
[null,null,null,null,null,null,null,null,null,0,null,0]
[null,null,null,null,null,null,null,null,null,0,null,0]
[null,null,null,null,null,null,null,null,null,0,null,0]
[null,null,null,null,null,null,null,null,null,0,null,0]
[null,null,null,null,null,null,null,null,null,0,null,0]
[null,null,null,null,null,null,null,null,null,0,null,0]
[null,null,null,null,null,null,null,null,null,0,null,0]
[null,null,null,null,null,null,null,null,null,0,null,0]
[null,null,null,null,null,null,null,null,null,0,null,0]
[null,null,null,null,null,null,null,null,null,0,null,0]
[null,null,null,null,null,null,null,null,null,0,null,0]
[null,null,null,null,null,null,null,null,null,0,null,0]
[null,null,null,null,null,null,null,null,null,0,null,0]
[null,null,null,null,null,null,null,null,null,0,null,0]
[null,null,null,null,null,null,null,null,null,0,null,0]
[null,null,null,null,null,null,null,null,null,0,null,0]
[null,null,null,null,null,null,null,null,null,0,null,0]
[null,null,null,null,null,null,null,null,null,0,null,0]
[null,null,null,null,null,null,null,null,null,0,null,0]
[null,null,null,null,null,null,null,null,null,0,null,0]
[null,null,null,null,null,null,null,null,null,0,null,0]
[null,null,null,null,null,null,null,null,null,0,null,0]
[null,null,null,null,null,null,null,null,null,0,null,0]
[null,null,null,null,null,null,null,null,null,0,null,0]
[null,null,null,null,null,null,null,null,null,0,null,0]
[null,null,null,null,null,null,null,null,null,{"$f":"IF(F92=\"Yes\",H92*$F$93,0)","v":0},null,{"$f":"IF(F92=\"Yes\",H92*$F$96,0)","v":0}]
["Per Pupil Expenditure \n(calculated field):          ",null,null,null,null,{"$f":"IF(ISERROR(SUM(L21)/(SUM(L16)+SUMIF(F36:G92,\"Yes\",H36:I92))),0,SUM(L21)/(SUM(L16)+SUMIF(F36:G92,\"Yes\",H36:I92)))","v":19.220899302498815},null,"Total Private school set-asides",null,{"$f":"SUM(J36:K92)","v":20508.699555766234},null,{"$f":"SUM(L36:M92)","v":3071.2547653551837}]
[]
[]
["Per Pupil Expenditure for Transferability funds (calculated field):          \n\n\n",null,null,null,null,{"$f":"IF(ISERROR(SUM(L26)/(SUM(L16)+SUMIF(F36:G92,\"Yes\",H36:I92))),0,SUM(L26)/(SUM(L16)+SUMIF(F36:G92,\"Yes\",H36:I92)))","v":2.8784018419448771},null,null,null,"Use this figure for private school set-asides in 2018-2019 budget",null,"Use this figure for private school set-asides in 2018-2019 budget Transferability"]
[]
[]
["Page 38"]

{"sheet":"Sheet1","index":6,"n_rows":2,"n_cols":3,"rows_kept":2,"cut":false,"hidden":true,"merged":[]}
["Title IV, Part A, Transferability",null,"Yes"]
[null,null,"No"]

{"sheet":"Eisenhower","index":7,"n_rows":137,"n_cols":3,"rows_kept":137,"cut":false,"hidden":true,"merged":[]}
["Division","Payee Code","Eisenhower 2001-02 Allocation"]
["Accomack County Public Schools",1,40219]
["Albemarle County Public Schools",2,51797]
["Alleghany County Public Schools",3,17117]
["Amelia County Public Schools",4,9570]
["Amherst County Public Schools",5,23328]
["Appomattox County Public Schools",6,13233]
["Arlington City Public Schools",7,95426]
["Augusta County Public Schools",8,46299]
["Bath County Public Schools",9,4106]
["Bedford City Public Schools",10,45969]
["Bland County Public Schools",11,4276]
["Botetourt County Public Schools",12,17978]
["Brunswick County Public Schools",13,20999]
["Buchanan County Public Schools",14,45671]
["Buckingham County Public Schools",15,16039]
["Campbell County Public Schools",16,43611]
["Caroline County Public Schools",17,21130]
["Carroll County Public Schools",18,24846]
["Charles City County Public Schools",19,6554]
["Charlotte County Public Schools",20,14605]
["Chesterfield County Public Schools",21,203846]
["Clarke County Public Schools",22,9598]
["Craig County Public Schools",23,3793]
["Culpeper County Public Schools",24,28401]
["Cumberland County Public Schools",25,9657]
["Dickenson County Public Schools",26,30316]
["Dinwiddie County Public Schools",27,23432]
["Essex County Public Schools",28,9550]
["Fairfax City Public Schools",29,598091]
["Fauquier County Public Schools",30,41272]
["Floyd County Public Schools",31,11053]
["Fluvanna County Public Schools",32,14485]
["Franklin County Public Schools",33,38410]
["Frederick County Public Schools",34,44378]
["Giles County Public Schools",35,14946]
["Gloucester County Public Schools",36,32788]
["Goochland County Public Schools",37,8628]
["Grayson County Public Schools",38,16690]
["Greene County Public Schools",39,14718]
["Greensville County Public Schools",40,20374]
["Halifax County Public Schools",41,38749]
["Hanover County Public Schools",42,57659]
["Henrico County Public Schools",43,178303]
["Henry County Public Schools",44,52795]
["Highland County Public Schools",45,1935]
["Isle of Wight County Public Schools",46,27152]
["King George County Public Schools",48,13419]
["King and Queen County Public Schools",49,6912]
["King William County Public Schools",50,8380]
["Lancaster County Public Schools",51,10507]
["Lee County Public Schools",52,41263]
["Loudoun County Public Schools",53,96953]
["Louisa County Public Schools",54,23738]
["Lunenburg County Public Schools",55,15190]
["Madison County Public Schools",56,11853]
["Mathews County Public Schools",57,7014]
["Mecklenburg County Public Schools",58,32938]
["Middlesex County Public Schools",59,8368]
["Montgomery County Public Schools",60,54140]
["Nelson County Public Schools",62,13815]
["New Kent County Public Schools",63,9077]
["Northampton County Public Schools",65,21346]
["Northumberland County Public Schools",66,10384]
["Nottoway County Public Schools",67,18218]
["Orange County Public Schools",68,18979]
["Page County Public Schools",69,21063]
["Patrick County Public Schools",70,16611]
["Pittsylvania County Public Schools",71,52751]
["Powhatan County Public Schools",72,13446]
["Prince Edward County Public Schools",73,21122]
["Prince George County Public Schools",74,242268]
["Prince William County Public Schools",75,196730]
["Pulaski County Public Schools",77,33374]
["Rappahannock County Public Schools",78,5138]
["Richmond County Public Schools",79,8129]
["Roanoke  County Public Schools",80,51084]
["Rockbridge County Public Schools",81,16141]
["Rockingham County Public Schools",82,47793]
["Russell County Public Schools",83,38558]
["Scott County Public Schools",84,25851]
["Shenandoah County Public Schools",85,29778]
["Smyth County Public Schools",86,36172]
["Southampton County Public Schools",87,18229]
["Spotsylvania County Public Schools",88,69801]
["Stafford County Public Schools",89,72619]
["Surry County Public Schools",90,7504]
["Sussex County Public Schools",91,12362]
["Tazewell County Public Schools",92,60941]
["Warren County Public Schools",93,25597]
["Washington County Public Schools",94,44834]
["Westmoreland County Public Schools",95,14506]
["Wise County Public Schools",96,61108]
["Wythe County Public Schools",97,30649]
["York County Public Schools",98,46236]
["Alexandria City Public Schools",101,69247]
["Bristol City Public Schools",102,21473]
["Buena Vista City Public Schools",103,6888]
["Charlottesville City Public Schools",104,38826]
["Colonial Heights City Public Schools",106,12438]
["Covington City Public Schools",107,7236]
["Danville City Public Schools",108,72571]
["Falls Church City Public Schools",109,7301]
["Fredericksburg City Public Schools",110,17330]
["Galax City Public Schools",111,9206]
["Hampton City Public Schools",112,149143]
["Harrisonburg City Public Schools",113,25488]
["Hopewell City Public Schools",114,30889]
["Lynchburg City Public Schools",115,78002]
["Martinsville City Public Schools",116,18810]
["Newport News City Public Schools",117,230453]
["Norfolk City Public Schools",118,339860]
["Norton City Public Schools",119,6864]
["Petersburg City Public Schools",120,52679]
["Portsmouth City Public Schools",121,152072]
["Radford City Public Schools",122,8930]
["Richmond City Public Schools",123,281765]
["Roanoke City Public Schools",124,122107]
["Staunton City Public Schools",126,19574]
["Suffolk City Public Schools",127,79656]
["Virginia Beach City Public Schools",128,384961]
["Waynesboro City Public Schools",130,19429]
["Williamsburg City Public Schools",131,37910]
["Winchester City Public Schools",132,21654]
["Fairfax City Public Schools",134,10264]
["Franklin City Public Schools",135,13179]
["Chesapeake City Public Schools",136,190847]
["Lexington City Public Schools",137,3719]
["Salem City Public Schools",139,18844]
["Poquoson City Public Schools",142,8712]
["Manassas City Public Schools",143,26521]
["Manassas Park City Public Schools",144,7878]
["Colonial Beach Town Public Schools",202,3794]
["West Point Town Public Schools",207,3095]
["VSDB Staunton",218,2806]
["VSDB Hampton",219,1708]
["Va Dept of Correctional Education",900,36639]

{"sheet":"Prefills","index":8,"n_rows":288,"n_cols":61,"rows_kept":288,"cut":false,"hidden":true,"merged":[]}
["Name","Code",null,null,null,null,null,null,"INNOVATIVE ASSISTANCE PROGRAM AREAS",null,null,null,null,null,null,null,null,null,null,null,"Yes",null,"Yes",null,null,"Title I A",null,null,null,"Title I C",null,null,null,"Title ID",null,null,null,"Title IIA",null,null,null,"Title IID",null,null,null,"Title III",null,null,null,"Title IV",null,null,null,"Title V",null,null,null,"Title VI"]
["ACCOMACK COUNTY PUBLIC SCHOOLS",1,null,null,null,null,null,null,null,null,null,null,null,null,null,null,null,null,null,null,"No",null,"No",null,null,"Payee","ProjectGroupID","CONoSOLIDATED_APP_FLAG","Allocation","Payee","ProjectGroupID","CONoSOLIDATED_APP_FLAG","Allocation","Payee","ProjectGroupID","CONoSOLIDATED_APP_FLAG","Allocation","Payee","ProjectGroupID","CONoSOLIDATED_APP_FLAG","Allocation","Payee","ProjectGroupID","CONoSOLIDATED_APP_FLAG","Allocation","Payee","ProjectGroupID","CONoSOLIDATED_APP_FLAG","Allocation","Payee","ProjectGroupID","CONoSOLIDATED_APP_FLAG","Allocation","Payee","ProjectGroupID","CONoSOLIDATED_APP_FLAG","Allocation","Payee","ProjectGroupID","CONoSOLIDATED_APP_FLAG","Allocation"]
["ALBEMARLE COUNTY PUBLIC SCHOOLS",2,null,null,null,null,null," "," ",null,null,null,null,null,null,null,null,null,null,null,null,null,"Shared Services Only",null,null,1,1,"Yes",1786364.85,1,2,"Yes",274686.67,1,3,"Yes",null,1,4,"Yes",263725.09999999998,null,null,null,null,1,6,"Yes",97040.22,null,null,null,null,null,null,null,null,1,9,"Yes",94384.84]
["ALEXANDRIA CITY PUBLIC SCHOOLS",101,null,null,null,null,null,"1. ","1. Recruiting, training, and hiring highly qualified teachers to reduce class size",null,null,null,null,null,null,null,null,null,null,null,null,null,null,null,null,2,1,"No",1442772.07,2,2,"No",84026.79,2,3,"No",null,2,4,"No",283835.02,null,null,null,null,2,6,"No",103428.7,null,null,null,null,null,null,null,null,2,9,"No"]
["ALLEGHANY COUNTY PUBLIC SCHOOLS",3,null,null,null,null,null,"2. ","2. Technology activities, including professional development",null,null,null,null,null,null,null,null,null,null,null,null,null,null,null,null,3,1,"Yes",483805.33,3,2,"Yes",null,3,3,"Yes",42166.04,3,4,"Yes",82210.100000000006,null,null,null,null,3,6,"Yes",2476.63,null,null,null,null,null,null,null,null,3,9,"Yes"]
["AMELIA COUNTY PUBLIC SCHOOLS",4,null,null,null,null,null,"3a.","3a. Development or acquisition and use of: computer software and hardware",null,null,null,null,null,null,null,null,null,null,null,null,null,"Yes",null,null,4,1,"Yes",346908.37,4,2,"Yes",null,4,3,"Yes",null,4,4,"Yes",59004.31,null,null,null,null,4,6,"Yes",4599.45,null,null,null,null,null,null,null,null,4,9,"Yes"]
["AMHERST COUNTY PUBLIC SCHOOLS",5,null,null,null,null,null,"3b.","3b. Development or acquisition and use of: instructional/reference materials and academic assessments",null,null,null,null,null,null,null,null,null,null,null,null,null,"No",null,null,5,1,"No",885018.8,5,2,"No",null,5,3,"No",null,5,4,"No",155373.91,null,null,null,null,5,6,"No",943.48,null,null,null,null,null,null,null,null,5,9,"No"]
["APPOMATTOX COUNTY PUBLIC SCHOOLS",6,null,null,null,null,null,"3c.","3c. Development or acquisition and use of: library/media services and materials",null,null,null,null,null,null,null,null,null,null,null,null,null,null,null,null,6,1,"No",567155.55000000005,6,2,"No",null,6,3,"No",null,6,4,"No",83921.65,null,null,null,null,6,6,"No",353.8,null,null,null,null,null,null,null,null,6,9,"No",42396.28]
["ARLINGTON COUNTY PUBLIC SCHOOLS",7,null,null,null,null,null,"4. ","4. Educational reform projects, including magnet schools",null,null,null,null,null,null,null,null,null,null,null,null,null,null,null,null,7,1,"Yes",1938429.68,7,2,"Yes",null,7,3,"Yes",null,7,4,"Yes",467773.18,null,null,null,null,7,6,"Yes",588170.92000000004,null,null,null,null,null,null,null,null,7,9,"Yes"]
["AUGUSTA COUNTY PUBLIC SCHOOLS",8,null,null,null,null,null,"5. ","5. Programs to improve the academic achievement of educationally disadvantaged elementary and secondary students, including dropout prevention",null,null,null,null,null,null,null,null,null,null,null,null,null,null,null,null,8,1,"No",1232008.8899999999,8,2,"No",null,8,3,"No",null,8,4,"No",245993.49,null,null,null,null,8,6,"No",20756.5,null,null,null,null,null,null,null,null,8,9,"No"]
["BATH COUNTY PUBLIC SCHOOLS",9,null,null,null,null,null,"6. ","6. Programs to improve the literacy skills of adults, including adult education and family literacy programs",null,null,null,null,null,null,null,null,null,null,null,null,null,null,null,null,9,1,"No",71070.41,9,2,"No",null,9,3,"No",null,9,4,"No",13096.55,null,null,null,null,9,6,"No",1297.28,null,null,null,null,null,null,null,null,9,9,"No"]
["BEDFORD CITY PUBLIC SCHOOLS",140,null,null,null,null,null,"7. ","7. Programs for gifted and talented children",null,null,null,null,null,null,null,null,null,null,null,null,null,null,null,null,10,1,"No",1145914.03,10,2,"No",null,10,3,"No",null,10,4,"No",264525.05,null,null,null,null,10,6,"No",14623.9,null,null,null,null,null,null,null,null,10,9,"No"]
["BEDFORD COUNTY PUBLIC SCHOOLS",10,null,null,null,null,null,"8. ","8. Planning, design, and initial implementation of charter schools under Title V, Part B",null,null,null,null,null,null,null,null,null,null,null,null,null,null,null,null,11,1,"Yes",145848.95000000001,11,2,"Yes",null,11,3,"Yes",null,11,4,"Yes",22237.96,null,null,null,null,11,6,"Yes",0,null,null,null,null,null,null,null,null,11,9,"Yes"]
["BLAND COUNTY PUBLIC SCHOOLS",11,null,null,null,null,null,"9. ","9. School improvement programs or activities under Sections 1116 and 1117 of Title I, Part A",null,null,null,null,null,null,null,null,null,null,null,null,null,null,null,null,12,1,"No",399151.25,12,2,"No",null,12,3,"No",null,12,4,"No",87646.06,null,null,null,null,12,6,"No",5795.58,null,null,null,null,null,null,null,null,12,9,"No"]
["BOTETOURT COUNTY PUBLIC SCHOOLS",12,null,null,null,null,null,"10.","10. Community service programs",null,null,null,null,null,null,null,null,null,null,null,null,null,null,null,null,13,1,"Yes",675744.96,13,2,"Yes",null,13,3,"Yes",null,13,4,"Yes",97926.36,null,null,null,null,13,6,"Yes",3773.91,null,null,null,null,null,null,null,null,13,9,"Yes",35353.839999999997]
["BRISTOL CITY PUBLIC SCHOOLS",102,null,null,null,null,null,"11.","11. Consumer, economic, and personal finance education",null,null,null,null,null,null,null,null,null,null,null,null,null,null,null,null,14,1,"Yes",1153736.24,14,2,"Yes",null,14,3,"Yes",null,14,4,"Yes",153805.49,null,null,null,null,14,6,"Yes",117.93,null,null,null,null,null,null,null,null,14,9,"Yes",59901.19]
["BRUNSWICK COUNTY PUBLIC SCHOOLS",13,null,null,null,null,null,"12.","12. Public school choice",null,null,null,null,null,null,null,null,null,null,null,null,null,1000,null,null,15,1,"Yes",655870.68999999994,15,2,"Yes",null,15,3,"Yes",null,15,4,"Yes",100130.65,null,null,null,null,15,6,"Yes",117.93,null,null,null,null,null,null,null,null,15,9,"Yes",38227.480000000003]
["BUCHANAN COUNTY PUBLIC SCHOOLS",14,null,null,null,null,null,"13.","13. Programs to hire and support school nurses",null,null,null,null,null,null,null,null,null,null,null,null,null,2000,null,null,16,1,"No",1545273.89,16,2,"No",null,16,3,"No",null,16,4,"No",225079.8,null,null,null,null,16,6,"No",15921.18,null,null,null,null,null,null,null,null,16,9,"No"]
["BUCKINGHAM COUNTY PUBLIC SCHOOLS",15,null,null,null,null,null,"14.","14. School-based mental health services",null,null,null,null,null,null,null,null,null,null,null,null,null,3000,null,null,17,1,"Yes",814710.69,17,2,"Yes",null,17,3,"Yes",null,17,4,"Yes",148143.31,null,null,null,null,17,6,"Yes",6722.28,null,null,null,null,null,null,null,null,17,9,"Yes"]
["BUENA VISTA CITY PUBLIC SCHOOLS",103,null,null,null,null,null,"15.","15. Alternative educational programs",null,null,null,null,null,null,null,null,null,null,null,null,null,4000,null,null,18,1,"No",1092840.3899999999,18,2,"No",44652.04,18,3,"No",null,18,4,"No",158990.37,null,null,null,null,18,6,"No",12501.07,null,null,null,null,null,null,null,null,18,9,"No",81089.210000000006]
["CAMPBELL COUNTY PUBLIC SCHOOLS",16,null,null,null,null,null,"16.","16. Prekindergarten programs",null,null,null,null,null,null,null,null,null,null,null,null,null,5000,null,null,19,1,"Yes",153655.88,19,2,"Yes",null,19,3,"Yes",null,19,4,"Yes",26595.9,null,null,null,null,19,6,"Yes",2122.8200000000002,null,null,null,null,null,null,null,null,19,9,"Yes"]
["CAROLINE COUNTY PUBLIC SCHOOLS",17,null,null,null,null,null,"17.","17. Academic intervention programs jointly operated with community-based organizations ",null,null,null,null,null,null,null,null,null,null,null,null,null,6000,null,null,20,1,"Yes",563153.39,20,2,"Yes",null,20,3,"Yes",null,20,4,"Yes",85760.62,null,null,null,null,20,6,"Yes",1179.3499999999999,null,null,null,null,null,null,null,null,20,9,"Yes",37438.239999999998]
["CARROLL COUNTY PUBLIC SCHOOLS",18,null,null,null,null,null,"18.","18. CPR training",null,null,null,null,null,null,null,null,null,null,null,null,null,8000,null,null,21,1,"No",5714631.1299999999,21,2,"No",null,21,3,"No",null,21,4,"No",1100464.3400000001,null,null,null,null,21,6,"No",380345.9,null,null,null,null,null,null,null,null,21,9,"No"]
["CHARLES CITY COUNTY PUBLIC SCHOOLS",19,null,null,null,null,null,"19.","19. Smaller learning communities",null,null,null,null,null,null,null,null,null,null,null,null,null,null,null,null,22,1,"No",176849.62,22,2,"No",null,22,3,"No",null,22,4,"No",41933.279999999999,null,null,null,null,22,6,"No",1651.09,null,null,null,null,null,null,null,null,22,9,"No"]
["CHARLOTTE COUNTY PUBLIC SCHOOLS",20,null,null,null,null,null,"20.","20. Activities that encourage and expand improvements throughout the LEA area that  are designed to advance student academic achievement",null,null,null,null,null,null,null,null,null,null,null,null,null,null,null,null,23,1,"Yes",164891.07999999999,23,2,"Yes",null,23,3,"Yes",null,23,4,"Yes",25560.89,null,null,null,null,23,6,"Yes",707.61,null,null,null,null,null,null,null,null,23,9,"Yes"]
["CHARLOTTESVILLE CITY PUBLIC SCHOOLS",104,null,null,null,null,null,"21.","21. Parental and community involvement",null,null,null,null,null,null,null,null,null,null,null,null,null,null,null,null,24,1,"No",1396949.73,24,2,"No",null,24,3,"No",75055.02,24,4,"No",227111.43,null,null,null,null,24,6,"No",54485.81,null,null,null,null,null,null,null,null,24,9,"No"]
["CHESAPEAKE CITY PUBLIC SCHOOLS",136,null,null,null,null,null,"22.","22. Activities that expand learning through best-practice models",null,null,null,null,null,null,null,null,null,null,null,null,null,null,null,null,25,1,"Yes",395240.36,25,2,"Yes",null,25,3,"Yes",null,25,4,"Yes",65503.86,null,null,null,null,25,6,"Yes",3420.11,null,null,null,null,null,null,null,null,25,9,"Yes",24871.14]
["CHESTERFIELD COUNTY PUBLIC SCHOOLS",21,null,null,null,null,null,"23.","23. Same-gender schools and classrooms (consistent with applicable law)**",null,null,null,null,null,null,null,null,null,null,null,null,null,null,null,null,26,1,"No",667387.98,26,2,"No",null,26,3,"No",null,26,4,"No",109237.07,null,null,null,null,26,6,"No",0,null,null,null,null,null,null,null,null,26,9,"No",42396.28]
["CLARKE COUNTY PUBLIC SCHOOLS",22,null,null,null,null,null,"24.","24. Service learning activities",null,null,null,null,null,null,null,null,null,null,null,null,null,null,null,null,27,1,"Yes",623179.68999999994,27,2,"Yes",null,27,3,"Yes",null,27,4,"Yes",123539.85,null,null,null,null,27,6,"Yes",7901.62,null,null,null,null,null,null,null,null,27,9,"Yes"]
["CLIFTON FORGE CITY",105,null,null,null,null,null,"25.","25. School safety programs",null,null,null,null,null,null,null,null,null,null,null,null,null,null,null,null,28,1,"No",445025.3,28,2,"No",null,28,3,"No",null,28,4,"No",69159.55,null,null,null,null,28,6,"No",4127.71,null,null,null,null,null,null,null,null,28,9,"No",29444.67]
["COLONIAL BEACH TOWN PUBLIC SCHOOLS",202,null,null,null,null,null,"26.","26. Programs that use research-based cognitive and perceptual development approaches",null,null,null,null,null,null,null,null,null,null,null,null,null,null,null,null,29,1,"No",19058305.989999998,29,2,"No",null,29,3,"No",null,29,4,"No",3050358.98,null,null,null,null,29,6,"No",4500516.1899999995,null,null,null,null,null,null,null,null,29,9,"No"]
["COLONIAL HEIGHTS CITY PUBLIC SCHOOLS",106,null,null,null,null,null,"27.","27. Supplemental educational services as defined in Section 1116(e) of Title I, Part A",null,null,null,null,null,null,null,null,null,null,null,null,null,null,null,null,30,1,"Yes",750182.79,30,2,"Yes",null,30,3,"Yes",null,30,4,"Yes",191632.46,null,null,null,null,30,6,"Yes",58023.85,null,null,null,null,null,null,null,null,30,9,"Yes"]
["COVINGTON CITY PUBLIC SCHOOLS",107,null,null,null,null,null,null,"Program Administration",null,null,null,null,null,null,null,null,null,null,null,null,null,null,null,null,31,1,"Yes",432347.3,31,2,"Yes",null,31,3,"Yes",null,31,4,"Yes",72810.28,null,null,null,null,31,6,"Yes",6014.67,null,null,null,null,null,null,null,null,31,9,"Yes"]
["CRAIG COUNTY PUBLIC SCHOOLS",23,null,null,null,null,null,null,"Indirect Costs (not to exceed approved rate)",null,null,null,null,null,null,null,null,null,null,null,null,null,null,null,null,32,1,"Yes",334692.03999999998,32,2,"Yes",null,32,3,"Yes",null,32,4,"Yes",78254.52,null,null,null,null,32,6,"Yes",6132.6,null,null,null,null,null,null,null,null,32,9,"Yes"]
["CULPEPER COUNTY PUBLIC SCHOOLS",24,null,null,null,null,null,null,null,null,null,null,null,null,null,null,null,null,null,null,null,null,null,null,null,33,1,"Yes",1759978.81,33,2,"Yes",null,33,3,"Yes",null,33,4,"Yes",252546.72,null,null,null,null,33,6,"Yes",11085.86,null,null,null,null,null,null,null,null,33,9,"Yes"]
["CUMBERLAND COUNTY PUBLIC SCHOOLS",25,null,null,null,null,null,null,null,null,null,null,null,null,null,null,null,null,null,null,null,null,null,null,null,34,1,"No",1466937.97,34,2,"No",null,34,3,"No",65468.33,34,4,"No",273462.96000000002,null,null,null,null,34,6,"No",64274.39,null,null,null,null,null,null,null,null,34,9,"No"]
["DANVILLE CITY PUBLIC SCHOOLS",108,null,null,null,null,null,null,null,null,null,null,null,null,null,null,null,null,null,null,null,null,null,null,null,35,1,"No",445027.2,35,2,"No",null,35,3,"No",null,35,4,"No",74557.679999999993,null,null,null,null,35,6,"No",471.74,null,null,null,null,null,null,null,null,35,9,"No"]
["DICKENSON COUNTY PUBLIC SCHOOLS",26,null,null,null,null,null,null,null,null,null,null,null,null,null,null,null,null,null,null,null,null,null,null,null,36,1,"Yes",667366.41,36,2,"Yes",null,36,3,"Yes",null,36,4,"Yes",140405.93,null,null,null,null,36,6,"Yes",5626.14,null,null,null,null,null,null,null,null,36,9,"Yes"]
["DINWIDDIE COUNTY PUBLIC SCHOOLS",27,null,null,null,null,null,null,null,null,null,null,null,null,null,null,null,null,null,null,null,null,null,null,null,37,1,"No",259489.63,37,2,"No",null,37,3,"No",75455.02,37,4,"No",57425.82,null,null,null,null,37,6,"No",4481.5200000000004,null,null,null,null,null,null,null,null,37,9,"No"]
["EMPORIA CITY PUBLIC SCHOOLS",138,null,null,null,null,null,null,null,null,null,null,null,null,null,null,null,null,null,null,null,null,null,null,null,38,1,"No",579299.44999999995,38,2,"No",null,38,3,"No",null,38,4,"No",92266.73,null,null,null,null,38,6,"No",2948.37,null,null,null,null,null,null,null,null,38,9,"No",34261.050000000003]
["ESSEX COUNTY PUBLIC SCHOOLS",28,null,null,null,null,null,null,null,null,null,null,null,null,null,null,null,null,null,null,null,null,null,null,null,39,1,"Yes",347914.44,39,2,"Yes",null,39,3,"Yes",null,39,4,"Yes",84216.74,null,null,null,null,39,6,"Yes",10732.05,null,null,null,null,null,null,null,null,39,9,"Yes"]
["FAIRFAX CITY PUBLIC SCHOOLS",134,null,null,null,null,null,null,null,null,null,null,null,null,null,null,null,null,null,null,null,null,null,null,null,40,1,"Yes",394688.88,40,2,"Yes",null,40,3,"Yes",null,40,4,"Yes",124105.72,null,null,null,null,40,6,"Yes",11422.52,null,null,null,null,null,null,null,null,40,9,"Yes",45674.66]
["FAIRFAX COUNTY PUBLIC SCHOOLS",29,null,null,null,null,null,null,null,null,null,null,null,null,null,null,null,null,null,null,null,null,null,null,null,41,1,"Yes",1688629.4,41,2,"Yes",null,41,3,"Yes",null,41,4,"Yes",216626.57,null,null,null,null,41,6,"Yes",4363.58,null,null,null,null,null,null,null,null,41,9,"Yes",101326.1]
["FALLS CHURCH CITY PUBLIC SCHOOLS",109,null,null,null,null,null,null,null,null,null,null,null,null,null,null,null,null,null,null,null,null,null,null,null,42,1,"No",1040367.33,42,2,"No",null,42,3,"No",null,42,4,"No",258104.82,null,null,null,null,42,6,"No",18397.810000000001,null,null,null,null,null,null,null,null,42,9,"No"]
["FAUQUIER COUNTY PUBLIC SCHOOLS",30,null,null,null,null,null,null,null,null,null,null,null,null,null,null,null,null,null,null,null,null,null,null,null,43,1,"No",7349539.6399999997,43,2,"No",null,43,3,"No",null,43,4,"No",1271320.8799999999,null,null,null,null,43,6,"No",337729.78,null,null,null,null,null,null,null,null,43,9,"No"]
["FLOYD COUNTY PUBLIC SCHOOLS",31,null,null,null,null,null,null,null,null,null,null,null,null,null,null,null,null,null,null,null,null,null,null,null,44,1,"No",2365483.9500000002,44,2,"No",null,44,3,"No",null,44,4,"No",340169.28,null,null,null,null,44,6,"No",46820.06,null,null,null,null,null,null,null,null,44,9,"No",136862.07]
["FLUVANNA COUNTY PUBLIC SCHOOLS",32,null,null,null,null,null,null,null,null,null,null,null,null,null,null,null,null,null,null,null,null,null,null,null,45,1,"No",50679.88,45,2,"No",null,45,3,"No",null,45,4,"No",8248.76,null,null,null,null,45,6,"No",0,null,null,null,null,null,null,null,null,45,9,"No"]
["FRANKLIN CITY PUBLIC SCHOOLS",135,null,null,null,null,null,null,null,null,null,null,null,null,null,null,null,null,null,null,null,null,null,null,null,46,1,"No",583674.4,46,2,"No",null,46,3,"No",null,46,4,"No",130661.49,null,null,null,null,46,6,"No",2830.43,null,null,null,null,null,null,null,null,46,9,"No"]
["FRANKLIN COUNTY PUBLIC SCHOOLS",33,null,null,null,null,null,null,null,null,null,null,null,null,null,null,null,null,null,null,null,null,null,null,null,47,1,null,957773.93,47,2,null,null,47,3,null,null,47,4,null,0,null,null,null,null,47,6,null,null,null,null,null,null,null,null,null,null,47,9]
["FREDERICK COUNTY PUBLIC SCHOOLS",34,null,null,null,null,null,null,null,null,null,null,null,null,null,null,null,null,null,null,null,null,null,null,null,48,1,"No",364442.44,48,2,"No",null,48,3,"No",null,48,4,"No",87740.15,null,null,null,null,48,6,"No",2830.43,null,null,null,null,null,null,null,null,48,9,"No"]
["FREDERICKSBURG CITY PUBLIC SCHOOLS",110,null,null,null,null,null,null,null,null,null,null,null,null,null,null,null,null,null,null,null,null,null,null,null,49,1,"Yes",187432.04,49,2,"Yes",null,49,3,"Yes",null,49,4,"Yes",33029.75,null,null,null,null,49,6,"Yes",1533.15,null,null,null,null,null,null,null,null,49,9,"Yes"]
["GALAX CITY PUBLIC SCHOOLS",111,null,null,null,null,null,null,null,null,null,null,null,null,null,null,null,null,null,null,null,null,null,null,null,50,1,"Yes",207204.21,50,2,"Yes",null,50,3,"Yes",null,50,4,"Yes",47569,null,null,null,null,50,6,"Yes",1651.09,null,null,null,null,null,null,null,null,50,9,"Yes"]
["GILES COUNTY PUBLIC SCHOOLS",35,null,null,null,null,null,null,null,null,null,null,null,null,null,null,null,null,null,null,null,null,null,null,null,51,1,"Yes",359206.96,51,2,"Yes",null,51,3,"Yes",null,51,4,"Yes",50307.64,null,null,null,null,51,6,"Yes",825.54,null,null,null,null,null,null,null,null,51,9,"Yes",23636.68]
["GLOUCESTER COUNTY PUBLIC SCHOOLS",36,null,null,null,null,null,null,null,null,null,null,null,null,null,null,null,null,null,null,null,null,null,null,null,52,1,"Yes",1452119.85,52,2,"Yes",null,52,3,"Yes",null,52,4,"Yes",184116.73,null,null,null,null,52,6,"Yes",117.93,null,null,null,null,null,null,null,null,52,9,"Yes",59860.71]
["GOOCHLAND COUNTY PUBLIC SCHOOLS",37,null,null,null,null,null,null,null,null,null,null,null,null,null,null,null,null,null,null,null,null,null,null,null,53,1,"Yes",1478880.05,53,2,"Yes",null,53,3,"Yes",null,53,4,"Yes",823356.39,null,null,null,null,53,6,"Yes",686851.48,null,null,null,null,null,null,null,null,53,9,"Yes"]
["GRAYSON COUNTY PUBLIC SCHOOLS",38,null,null,null,null,null,null,null,null,null,null,null,null,null,null,null,null,null,null,null,null,null,null,null,54,1,"No",802748.47,54,2,"No",null,54,3,"No",null,54,4,"No",148215.16,null,null,null,null,54,6,"No",6132.6,null,null,null,null,null,null,null,null,54,9,"No"]
["GREENE COUNTY PUBLIC SCHOOLS",39,null,null,null,null,null,null,null,null,null,null,null,null,null,null,null,null,null,null,null,null,null,null,null,55,1,"Yes",575986.28,55,2,"Yes",null,55,3,"Yes",null,55,4,"Yes",75404.11,null,null,null,null,55,6,"Yes",8373.36,null,null,null,null,null,null,null,null,55,9,"Yes",28716.14]
["GREENSVILLE COUNTY PUBLIC SCHOOLS",40,null,null,null,null,null,null,null,null,null,null,null,null,null,null,null,null,null,null,null,null,null,null,null,56,1,"No",368226.52,56,2,"No",null,56,3,"No",null,56,4,"No",60250.04,null,null,null,null,56,6,"No",471.74,null,null,null,null,null,null,null,null,56,9,"No"]
["HALIFAX COUNTY PUBLIC SCHOOLS",41,null,null,null,null,null,null,null,null,null,null,null,null,null,null,null,null,null,null,null,null,null,null,null,57,1,"Yes",184826.4,57,2,"Yes",null,57,3,"Yes",null,57,4,"Yes",33305.9,null,null,null,null,57,6,"Yes",589.66999999999996,null,null,null,null,null,null,null,null,57,9,"Yes"]
["HAMPTON CITY PUBLIC SCHOOLS",112,null,null,null,null,null,null,null,null,null,null,null,null,null,null,null,null,null,null,null,null,null,null,null,58,1,"Yes",1294642.32,58,2,"Yes",null,58,3,"Yes",null,58,4,"Yes",183231.57,null,null,null,null,58,6,"Yes",6840.21,null,null,null,null,null,null,null,null,58,9,"Yes",86168.67]
["HANOVER COUNTY PUBLIC SCHOOLS",42,null,null,null,null,null,null,null,null,null,null,null,null,null,null,null,null,null,null,null,null,null,null,null,59,1,"Yes",299225.65000000002,59,2,"Yes",null,59,3,"Yes",null,59,4,"Yes",47606.13,null,null,null,null,59,6,"Yes",353.8,null,null,null,null,null,null,null,null,59,9,"Yes",21774.89]
["HARRISONBURG CITY PUBLIC SCHOOLS",113,null,null,null,null,null,null,null,null,null,null,null,null,null,null,null,null,null,null,null,null,null,null,null,60,1,"No",1827644.08,60,2,"No",null,60,3,"No",null,60,4,"No",291380.2,null,null,null,null,60,6,"No",31210.809999999998,null,null,null,null,null,null,null,null,60,9,"No"]
["HENRICO COUNTY PUBLIC SCHOOLS",43,null,null,null,null,null,null,null,null,null,null,null,null,null,null,null,null,null,null,null,null,null,null,null,62,1,"No",436338.29,62,2,"No",null,62,3,"No",null,62,4,"No",76468.34,null,null,null,null,62,6,"No",4363.58,null,null,null,null,null,null,null,null,62,9,"No",36912.080000000002]
["HENRY COUNTY PUBLIC SCHOOLS",44,null,null,null,null,null,null,null,null,null,null,null,null,null,null,null,null,null,null,null,null,null,null,null,63,1,"Yes",235524.03,63,2,"Yes",null,63,3,"Yes",null,63,4,"Yes",58017.16,null,null,null,null,63,6,"Yes",2358.69,null,null,null,null,null,null,null,null,63,9,"Yes"]
["HIGHLAND COUNTY PUBLIC SCHOOLS",45,null,null,null,null,null,null,null,null,null,null,null,null,null,null,null,null,null,null,null,null,null,null,null,65,1,"Yes",725875.23,65,2,"Yes",146597.21,65,3,"Yes",null,65,4,"Yes",91263.57,null,null,null,null,65,6,"Yes",17808.13,null,null,null,null,null,null,null,null,65,9,"Yes",30092.25]
["HOPEWELL CITY PUBLIC SCHOOLS",114,null,null,null,null,null,null,null,null,null,null,null,null,null,null,null,null,null,null,null,null,null,null,null,66,1,"Yes",415720.58,66,2,"Yes",null,66,3,"Yes",null,66,4,"Yes",64305.05,null,null,null,null,66,6,"Yes",2476.63,null,null,null,null,null,null,null,null,66,9,"Yes",26834.11]
["ISLE OF WIGHT COUNTY PUBLIC SCHOOLS",46,null,null,null,null,null,null,null,null,null,null,null,null,null,null,null,null,null,null,null,null,null,null,null,67,1,"Yes",712107.14,67,2,"Yes",16791.84,67,3,"Yes",null,67,4,"Yes",101057.96,null,null,null,null,67,6,"Yes",9906.51,null,null,null,null,null,null,null,null,67,9,"Yes",41060.65]
["JAMES CITY COUNTY PUBLIC SCHOOLS",47,null,null,null,null,null,null,null,null,null,null,null,null,null,null,null,null,null,null,null,null,null,null,null,68,1,"Yes",711907.43,68,2,"Yes",null,68,3,"Yes",null,68,4,"Yes",144079.71,null,null,null,null,68,6,"Yes",15657.33,null,null,null,null,null,null,null,null,68,9,"Yes"]
["JAMES MADISON UNIVERSITY",871,null,null,null,null,null,null,null,null,null,null,null,null,null,null,null,null,null,null,null,null,null,null,null,69,1,"Yes",743761.79,69,2,"Yes",null,69,3,"Yes",null,69,4,"Yes",128671.14,null,null,null,null,69,6,"Yes",2004.89,null,null,null,null,null,null,null,null,69,9,"Yes"]
["KING AND QUEEN COUNTY PUBLIC SCHOOLS",49,null,null,null,null,null,null,null,null,null,null,null,null,null,null,null,null,null,null,null,null,null,null,null,70,1,"No",669452.26,70,2,"No",null,70,3,"No",null,70,4,"No",95385.99,null,null,null,null,70,6,"No",8609.23,null,null,null,null,null,null,null,null,70,9,"No",49297.06]
["KING GEORGE COUNTY PUBLIC SCHOOLS",48,null,null,null,null,null,null,null,null,null,null,null,null,null,null,null,null,null,null,null,null,null,null,null,71,1,"No",1936344.77,71,2,"No",null,71,3,"No",null,71,4,"No",378609.24,null,null,null,null,71,6,"No",15095.64,null,null,null,null,null,null,null,null,71,9,"No"]
["KING WILLIAM COUNTY PUBLIC SCHOOLS",50,null,null,null,null,null,null,null,null,null,null,null,null,null,null,null,null,null,null,null,null,null,null,null,72,1,"No",299983.23,72,2,"No",null,72,3,"No",null,72,4,"No",66627.61,null,null,null,null,72,6,"No",4000.8,null,null,null,null,null,null,null,null,72,9,"No"]
["LANCASTER COUNTY PUBLIC SCHOOLS",51,null,null,null,null,null,null,null,null,null,null,null,null,null,null,null,null,null,null,null,null,null,null,null,73,1,"Yes",821866.06,73,2,"Yes",null,73,3,"Yes",null,73,4,"Yes",124174.06,null,null,null,null,73,6,"Yes",1297.28,null,null,null,null,null,null,null,null,73,9,"Yes",41607.040000000001]
["LEE COUNTY PUBLIC SCHOOLS",52,null,null,null,null,null,null,null,null,null,null,null,null,null,null,null,null,null,null,null,null,null,null,null,74,1,"Yes",595755.54,74,2,"Yes",null,74,3,"Yes",null,74,4,"Yes",128095.55,null,null,null,null,74,6,"Yes",7901.62,null,null,null,null,null,null,null,null,74,9,"Yes"]
["LEXINGTON CITY PUBLIC SCHOOLS",137,null,null,null,null,null,null,null,null,null,null,null,null,null,null,null,null,null,null,null,null,null,null,null,75,1,"No",9359215.4900000002,75,2,"No",null,75,3,"No",83222.45,75,4,"No",1536031.75,null,null,null,null,75,6,"No",1673669.6199999999,null,null,null,null,null,null,null,null,75,9,"No"]
["LOUDOUN COUNTY PUBLIC SCHOOLS",53,null,null,null,null,null,null,null,null,null,null,null,null,null,null,null,null,null,null,null,null,null,null,null,77,1,"No",1035194.35,77,2,"No",null,77,3,"No",null,77,4,"No",155764.43,null,null,null,null,77,6,"No",2004.89,null,null,null,null,null,null,null,null,77,9,"No"]
["LOUISA COUNTY PUBLIC SCHOOLS",54,null,null,null,null,null,null,null,null,null,null,null,null,null,null,null,null,null,null,null,null,null,null,null,78,1,"Yes",168077.55,78,2,"Yes",null,78,3,"Yes",null,78,4,"Yes",25861.71,null,null,null,null,78,6,"Yes",1297.28,null,null,null,null,null,null,null,null,78,9,"Yes"]
["LUNENBURG COUNTY PUBLIC SCHOOLS",55,null,null,null,null,null,null,null,null,null,null,null,null,null,null,null,null,null,null,null,null,null,null,null,79,1,"Yes",251322.25,79,2,"Yes",null,79,3,"Yes",null,79,4,"Yes",40740.79,null,null,null,null,79,6,"Yes",8255.43,null,null,null,null,null,null,null,null,79,9,"Yes",22442.71]
["LYNCHBURG CITY PUBLIC SCHOOLS",115,null,null,null,null,null,null,null,null,null,null,null,null,null,null,null,null,null,null,null,null,null,null,null,80,1,"No",1140222.44,80,2,"No",null,80,3,"No",null,80,4,"No",262917.12,null,null,null,null,80,6,"No",32265.48,null,null,null,null,null,null,null,null,80,9,"No"]
["MADISON COUNTY PUBLIC SCHOOLS",56,null,null,null,null,null,null,null,null,null,null,null,null,null,null,null,null,null,null,null,null,null,null,null,81,1,"Yes",487094.47,81,2,"Yes",null,81,3,"Yes",null,81,4,"Yes",87828.18,null,null,null,null,81,6,"Yes",3184.24,null,null,null,null,null,null,null,null,81,9,"Yes"]
["MANASSAS CITY PUBLIC SCHOOLS",143,null,null,null,null,null,null,null,null,null,null,null,null,null,null,null,null,null,null,null,null,null,null,null,82,1,"No",1560395.85,82,2,"No",null,82,3,"No",null,82,4,"No",315962.59999999998,null,null,null,null,82,6,"No",73935.86,null,null,null,null,null,null,null,null,82,9,"No"]
["MANASSAS PARK CITY PUBLIC SCHOOLS",144,null,null,null,null,null,null,null,null,null,null,null,null,null,null,null,null,null,null,null,null,null,null,null,83,1,"No",1041024.89,83,2,"No",null,83,3,"No",null,83,4,"No",172734.73,null,null,null,null,83,6,"No",471.74,null,null,null,null,null,null,null,null,83,9,"No",77628.7]
["MARTINSVILLE CITY PUBLIC SCHOOLS",116,null,null,null,null,null,null,null,null,null,null,null,null,null,null,null,null,null,null,null,null,null,null,null,84,1,"No",899401.35,84,2,"No",null,84,3,"No",null,84,4,"No",115415.27,null,null,null,null,84,6,"No",1179.3499999999999,null,null,null,null,null,null,null,null,84,9,"No"]
["MATHEWS COUNTY PUBLIC SCHOOLS",57,null,null,null,null,null,null,null,null,null,null,null,null,null,null,null,null,null,null,null,null,null,null,null,85,1,"Yes",1061982.44,85,2,"Yes",null,85,3,"Yes",null,85,4,"Yes",201464.42,null,null,null,null,85,6,"Yes",34554.86,null,null,null,null,null,null,null,null,85,9,"Yes"]
["MCVH AUTHORITY",948,null,null,null,null,null,null,null,null,null,null,null,null,null,null,null,null,null,null,null,null,null,null,null,86,1,"No",1224664.82,86,2,"No",null,86,3,"No",null,86,4,"No",191707.77,null,null,null,null,86,6,"No",1415.22,null,null,null,null,null,null,null,null,86,9,"No",89163.73]
["MECKLENBURG COUNTY PUBLIC SCHOOLS",58,null,null,null,null,null,null,null,null,null,null,null,null,null,null,null,null,null,null,null,null,null,null,null,87,1,"No",548834.55000000005,87,2,"No",null,87,3,"No",null,87,4,"No",84525.55,null,null,null,null,87,6,"No",0,null,null,null,null,null,null,null,null,87,9,"No"]
["MIDDLESEX COUNTY PUBLIC SCHOOLS",59,null,null,null,null,null,null,null,null,null,null,null,null,null,null,null,null,null,null,null,null,null,null,null,88,1,"No",2505705,88,2,"No",null,88,3,"No",null,88,4,"No",486466.97,null,null,null,null,88,6,"No",104372.18,null,null,null,null,null,null,null,null,88,9,"No"]
["MONTGOMERY COUNTY PUBLIC SCHOOLS",60,null,null,null,null,null,null,null,null,null,null,null,null,null,null,null,null,null,null,null,null,null,null,null,89,1,"Yes",1493865.24,89,2,"Yes",null,89,3,"Yes",65468.33,89,4,"Yes",413609.52,null,null,null,null,89,6,"Yes",132204.76,null,null,null,null,null,null,null,null,89,9,"Yes"]
["NELSON COUNTY PUBLIC SCHOOLS",62,null,null,null,null,null,null,null,null,null,null,null,null,null,null,null,null,null,null,null,null,null,null,null,90,1,"Yes",178917.13,90,2,"Yes",null,90,3,"Yes",null,90,4,"Yes",30420.7,null,null,null,null,90,6,"Yes",235.87,null,null,null,null,null,null,null,null,90,9,"Yes"]
["NEW KENT COUNTY PUBLIC SCHOOLS",63,null,null,null,null,null,null,null,null,null,null,null,null,null,null,null,null,null,null,null,null,null,null,null,91,1,"Yes",384791.1,91,2,"Yes",null,91,3,"Yes",null,91,4,"Yes",63792.12,null,null,null,null,91,6,"Yes",1533.15,null,null,null,null,null,null,null,null,91,9,"Yes",21248.73]
["NEWPORT NEWS CITY PUBLIC SCHOOLS",117,null,null,null,null,null,null,null,null,null,null,null,null,null,null,null,null,null,null,null,null,null,null,null,92,1,"No",1634724.65,92,2,"No",null,92,3,"No",null,92,4,"No",232963.91,null,null,null,null,92,6,"No",5896.73,null,null,null,null,null,null,null,null,92,9,"No",116908.5]
["NORFOLK CITY PUBLIC SCHOOLS",118,null,null,null,null,null,null,null,null,null,null,null,null,null,null,null,null,null,null,null,null,null,null,null,93,1,"Yes",797445.56,93,2,"Yes",null,93,3,"Yes",null,93,4,"Yes",164852.84,null,null,null,null,93,6,"Yes",17499.52,null,null,null,null,null,null,null,null,93,9,"Yes"]
["NORTHAMPTON COUNTY PUBLIC SCHOOLS",65,null,null,null,null,null,null,null,null,null,null,null,null,null,null,null,null,null,null,null,null,null,null,null,94,1,"Yes",1472677.86,94,2,"Yes",null,94,3,"Yes",null,94,4,"Yes",274815.59000000003,null,null,null,null,94,6,"Yes",7929.2300000000005,null,null,null,null,null,null,null,null,94,9,"Yes"]
["NORTHUMBERLAND COUNTY PUBLIC SCHOOLS",66,null,null,null,null,null,null,null,null,null,null,null,null,null,null,null,null,null,null,null,null,null,null,null,95,1,"Yes",612667.46,95,2,"Yes",58279.65,95,3,"Yes",null,95,4,"Yes",87887.19,null,null,null,null,95,6,"Yes",9434.77,null,null,null,null,null,null,null,null,95,9,"Yes",30375.57]
["NORTON CITY PUBLIC SCHOOLS",119,null,null,null,null,null,null,null,null,null,null,null,null,null,null,null,null,null,null,null,null,null,null,null,96,1,"No",1830587.27,96,2,"No",null,96,3,"No",null,96,4,"No",264296.26,null,null,null,null,96,6,"No",2830.43,null,null,null,null,null,null,null,null,96,9,"No",111060.04]
["NOTTOWAY COUNTY PUBLIC SCHOOLS",67,null,null,null,null,null,null,null,null,null,null,null,null,null,null,null,null,null,null,null,null,null,null,null,97,1,"Yes",955292.83,97,2,"Yes",null,97,3,"Yes",null,97,4,"Yes",149735.51999999999,null,null,null,null,97,6,"Yes",1061.4100000000001,null,null,null,null,null,null,null,null,97,9,"Yes",80866.600000000006]
["OLD DOMINION UNIVERSITY",798,null,null,null,null,null,null,null,null,null,null,null,null,null,null,null,null,null,null,null,null,null,null,null,98,1,"Yes",790862.23,98,2,"Yes",null,98,3,"Yes",null,98,4,"Yes",175670.66,null,null,null,null,98,6,"Yes",46105.14,null,null,null,null,null,null,null,null,98,9,"Yes"]
["ORANGE COUNTY PUBLIC SCHOOLS",68,null,null,null,null,null,null,null,null,null,null,null,null,null,null,null,null,null,null,null,null,null,null,null,101,1,"No",2424663.52,101,2,"No",null,101,3,"No",null,101,4,"No",427702.93,null,null,null,null,101,6,"No",467470.4,null,null,null,null,null,null,null,null,101,9,"No"]
["PAGE COUNTY PUBLIC SCHOOLS",69,null,null,null,null,null,null,null,null,null,null,null,null,null,null,null,null,null,null,null,null,null,null,null,102,1,"Yes",1187022.8400000001,102,2,"Yes",null,102,3,"Yes",null,102,4,"Yes",128760.12,null,null,null,null,102,6,"Yes",4009.78,null,null,null,null,null,null,null,null,102,9,"Yes"]
["PATRICK COUNTY PUBLIC SCHOOLS",70,null,null,null,null,null,null,null,null,null,null,null,null,null,null,null,null,null,null,null,null,null,null,null,103,1,"No",222093.19,103,2,"No",null,103,3,"No",null,103,4,"No",40726.370000000003,null,null,null,null,103,6,"No",0,null,null,null,null,null,null,null,null,103,9,"No",19569.07]
["PETERSBURG CITY PUBLIC SCHOOLS",120,null,null,null,null,null,null,null,null,null,null,null,null,null,null,null,null,null,null,null,null,null,null,null,104,1,"Yes",1310005.3799999999,104,2,"Yes",null,104,3,"Yes",43275.68,104,4,"Yes",188458.04,null,null,null,null,104,6,"Yes",54601.119999999995,null,null,null,null,null,null,null,null,104,9,"Yes"]
["PITTSYLVANIA COUNTY PUBLIC SCHOOLS",71,null,null,null,null,null,null,null,null,null,null,null,null,null,null,null,null,null,null,null,null,null,null,null,106,1,"Yes",426114.92,106,2,"Yes",null,106,3,"Yes",null,106,4,"Yes",87528.35,null,null,null,null,106,6,"Yes",9552.7099999999991,null,null,null,null,null,null,null,null,106,9,"Yes"]
["POQUOSON CITY PUBLIC SCHOOLS",142,null,null,null,null,null,null,null,null,null,null,null,null,null,null,null,null,null,null,null,null,null,null,null,107,1,"No",189854,107,2,"No",null,107,3,"No",null,107,4,"No",38040.51,null,null,null,null,107,6,"No",471.74,null,null,null,null,null,null,null,null,107,9,"No",16938.28]
["PORTSMOUTH CITY PUBLIC SCHOOLS",121,null,null,null,null,null,null,null,null,null,null,null,null,null,null,null,null,null,null,null,null,null,null,null,108,1,"No",3362135.93,108,2,"No",null,108,3,"No",null,108,4,"No",406504.81,null,null,null,null,108,6,"No",22171.72,null,null,null,null,null,null,null,null,108,9,"No"]
["POWHATAN COUNTY PUBLIC SCHOOLS",72,null,null,null,null,null,null,null,null,null,null,null,null,null,null,null,null,null,null,null,null,null,null,null,109,1,"No",35900.35,109,2,"No",null,109,3,"No",null,109,4,"No",23907.86,null,null,null,null,109,6,"No",18254.349999999999,null,null,null,null,null,null,null,null,109,9,"No"]
["PRINCE EDWARD COUNTY PUBLIC SCHOOLS",73,null,null,null,null,null,null,null,null,null,null,null,null,null,null,null,null,null,null,null,null,null,null,null,110,1,"No",869495.9,110,2,"No",null,110,3,"No",null,110,4,"No",153019.96,null,null,null,null,110,6,"No",47173.87,null,null,null,null,null,null,null,null,110,9,"No"]
["PRINCE GEORGE COUNTY PUBLIC SCHOOLS",74,null,null,null,null,null,null,null,null,null,null,null,null,null,null,null,null,null,null,null,null,null,null,null,111,1,"No",479304.13,111,2,"No",null,111,3,"No",null,111,4,"No",67972.990000000005,null,null,null,null,111,6,"No",22053.78,null,null,null,null,null,null,null,null,111,9,"No",24344.98]
["PRINCE WILLIAM COUNTY PUBLIC SCHOOLS",75,null,null,null,null,null,null,null,null,null,null,null,null,null,null,null,null,null,null,null,null,null,null,null,112,1,"No",5925925.0599999996,112,2,"No",null,112,3,"No",null,112,4,"No",814372.09,null,null,null,null,112,6,"No",46199.340000000004,null,null,null,null,null,null,null,null,112,9,"No"]
["PULASKI COUNTY PUBLIC SCHOOLS",77,null,null,null,null,null,null,null,null,null,null,null,null,null,null,null,null,null,null,null,null,null,null,null,113,1,"No",1430946,113,2,"No",null,113,3,"No",null,113,4,"No",216841.17,null,null,null,null,113,6,"No",215098.96,null,null,null,null,null,null,null,null,113,9,"No"]
["RADFORD CITY PUBLIC SCHOOLS",122,null,null,null,null,null,null,null,null,null,null,null,null,null,null,null,null,null,null,null,null,null,null,null,114,1,"Yes",1270239.23,114,2,"Yes",null,114,3,"Yes",null,114,4,"Yes",215234.77,null,null,null,null,114,6,"Yes",12147.27,null,null,null,null,null,null,null,null,114,9,"Yes"]
["RAPPAHANNOCK COUNTY PUBLIC SCHOOLS",78,null,null,null,null,null,null,null,null,null,null,null,null,null,null,null,null,null,null,null,null,null,null,null,115,1,"Yes",3087839.06,115,2,"Yes",null,115,3,"Yes",122059.6,115,4,"Yes",517411.7,null,null,null,null,115,6,"Yes",19930.96,null,null,null,null,null,null,null,null,115,9,"Yes"]
["RICHMOND CITY PUBLIC SCHOOLS",123,null,null,null,null,null,null,null,null,null,null,null,null,null,null,null,null,null,null,null,null,null,null,null,116,1,"Yes",1034151.34,116,2,"Yes",null,116,3,"Yes",null,116,4,"Yes",126793.38,null,null,null,null,116,6,"Yes",10967.92,null,null,null,null,null,null,null,null,116,9,"Yes",41485.620000000003]
["RICHMOND COUNTY PUBLIC SCHOOLS",79,null,null,null,null,null,null,null,null,null,null,null,null,null,null,null,null,null,null,null,null,null,null,null,117,1,"No",8621665.5800000001,117,2,"No",null,117,3,"No",88770.62,117,4,"No",1186745.2,null,null,null,null,117,6,"No",131809.91,null,null,null,null,null,null,null,null,117,9,"No"]
["ROANOKE CITY PUBLIC SCHOOLS",124,null,null,null,null,null,null,null,null,null,null,null,null,null,null,null,null,null,null,null,null,null,null,null,118,1,"Yes",12444819.02,118,2,"Yes",null,118,3,"Yes",169773.81,118,4,"Yes",1528561.02,null,null,null,null,118,6,"Yes",75360.25,null,null,null,null,null,null,null,null,118,9,"Yes"]
["ROANOKE COUNTY PUBLIC SCHOOLS",80,null,null,null,null,null,null,null,null,null,null,null,null,null,null,null,null,null,null,null,null,null,null,null,119,1,"Yes",196028.34,119,2,"Yes",null,119,3,"Yes",null,119,4,"Yes",32191.41,null,null,null,null,119,6,"Yes",589.66999999999996,null,null,null,null,null,null,null,null,119,9,"Yes",16472.830000000002]
["ROCKBRIDGE COUNTY PUBLIC SCHOOLS",81,null,null,null,null,null,null,null,null,null,null,null,null,null,null,null,null,null,null,null,null,null,null,null,120,1,"Yes",2363020.5299999998,120,2,"Yes",null,120,3,"Yes",null,120,4,"Yes",305058.96000000002,null,null,null,null,120,6,"Yes",16958.7,null,null,null,null,null,null,null,null,120,9,"Yes"]
["ROCKINGHAM COUNTY PUBLIC SCHOOLS",82,null,null,null,null,null,null,null,null,null,null,null,null,null,null,null,null,null,null,null,null,null,null,null,121,1,"Yes",5309040.83,121,2,"Yes",null,121,3,"Yes",null,121,4,"Yes",731840.05,null,null,null,null,121,6,"Yes",6604.34,null,null,null,null,null,null,null,null,121,9,"Yes"]
["RUSSELL COUNTY PUBLIC SCHOOLS",83,null,null,null,null,null,null,null,null,null,null,null,null,null,null,null,null,null,null,null,null,null,null,null,122,1,"No",330069.44,122,2,"No",null,122,3,"No",null,122,4,"No",56852.65,null,null,null,null,122,6,"No",2830.43,null,null,null,null,null,null,null,null,122,9,"No"]
["SALEM CITY PUBLIC SCHOOLS",139,null,null,null,null,null,null,null,null,null,null,null,null,null,null,null,null,null,null,null,null,null,null,null,123,1,"No",15808821.49,123,2,"No",null,123,3,"No",68797.23,123,4,"No",1640943.55,null,null,null,null,123,6,"No",143402.03,null,null,null,null,null,null,null,null,123,9,"No"]
["SCOTT COUNTY PUBLIC SCHOOLS",84,null,null,null,null,null,null,null,null,null,null,null,null,null,null,null,null,null,null,null,null,null,null,null,124,1,"Yes",5101630.67,124,2,"Yes",null,124,3,"Yes",null,124,4,"Yes",827887.68,null,null,null,null,124,6,"Yes",117109.12,null,null,null,null,null,null,null,null,124,9,"Yes"]
["SHENANDOAH COUNTY PUBLIC SCHOOLS",85,null,null,null,null,null,null,null,null,null,null,null,null,null,null,null,null,null,null,null,null,null,null,null,126,1,"No",777776.34,126,2,"No",null,126,3,"No",null,126,4,"No",115314.91,null,null,null,null,126,6,"No",5189.13,null,null,null,null,null,null,null,null,126,9,"No"]
["SMYTH COUNTY PUBLIC SCHOOLS",86,null,null,null,null,null,null,null,null,null,null,null,null,null,null,null,null,null,null,null,null,null,null,null,127,1,"Yes",2838005.51,127,2,"Yes",null,127,3,"Yes",null,127,4,"Yes",467475.25,null,null,null,null,127,6,"Yes",3066.3,null,null,null,null,null,null,null,null,127,9,"Yes"]
["SOUTHAMPTON COUNTY PUBLIC SCHOOLS",87,null,null,null,null,null,null,null,null,null,null,null,null,null,null,null,null,null,null,null,null,null,null,null,128,1,"No",11439845.93,128,2,"No",null,128,3,"No",207501.32,128,4,"No",1644936.85,null,null,null,null,128,6,"No",132586.43,null,null,null,null,null,null,null,null,128,9,"No"]
["SOUTHWESTERN VA TRAINING CENTER",951,null,null,null,null,null,null,null,null,null,null,null,null,null,null,null,null,null,null,null,null,null,null,null,130,1,"Yes",945847.46,130,2,"Yes",null,130,3,"Yes",null,130,4,"Yes",146539.57,null,null,null,null,130,6,"Yes",14859.77,null,null,null,null,null,null,null,null,130,9,"Yes"]
["SPOTSYLVANIA COUNTY PUBLIC SCHOOLS",88,null,null,null,null,null,null,null,null,null,null,null,null,null,null,null,null,null,null,null,null,null,null,null,131,1,"Yes",290080.55,131,2,"Yes",null,131,3,"Yes",null,131,4,"Yes",256738,null,null,null,null,131,6,"Yes",55989.35,null,null,null,null,null,null,null,null,131,9,"Yes"]
["STAFFORD COUNTY PUBLIC SCHOOLS",89,null,null,null,null,null,null,null,null,null,null,null,null,null,null,null,null,null,null,null,null,null,null,null,132,1,"Yes",918051.51,132,2,"Yes",null,132,3,"Yes",null,132,4,"Yes",169353.69,null,null,null,null,132,6,"Yes",95409.14,null,null,null,null,null,null,null,null,132,9,"Yes"]
["STAUNTON CITY PUBLIC SCHOOLS",126,null,null,null,null,null,null,null,null,null,null,null,null,null,null,null,null,null,null,null,null,null,null,null,134,null,null,203535.25,134,2,null,null,134,3,null,null,134,4,null,0,null,null,null,null,134,6,null,null,null,null,null,null,null,null,null,null,134,9]
["SUFFOLK CITY PUBLIC SCHOOLS",127,null,null,null,null,null,null,null,null,null,null,null,null,null,null,null,null,null,null,null,null,null,null,null,135,1,"Yes",582345.29,135,2,"Yes",null,135,3,"Yes",null,135,4,"Yes",85880.59,null,null,null,null,135,6,"Yes",825.54,null,null,null,null,null,null,null,null,135,9,"Yes",22726.02]
["SURRY COUNTY PUBLIC SCHOOLS",90,null,null,null,null,null,null,null,null,null,null,null,null,null,null,null,null,null,null,null,null,null,null,null,136,1,"No",5736458.1900000004,136,2,"No",null,136,3,"No",null,136,4,"No",1007299.39,null,null,null,null,136,6,"No",83615.679999999993,null,null,null,null,null,null,null,null,136,9,"No"]
["SUSSEX COUNTY PUBLIC SCHOOLS",91,null,null,null,null,null,null,null,null,null,null,null,null,null,null,null,null,null,null,null,null,null,null,null,137,1,"No",45424.18,137,2,"No",null,137,3,"No",null,137,4,"No",13326.81,null,null,null,null,137,6,"No",1886.95,null,null,null,null,null,null,null,null,137,9,"No"]
["TAZEWELL COUNTY PUBLIC SCHOOLS",92,null,null,null,null,null,null,null,null,null,null,null,null,null,null,null,null,null,null,null,null,null,null,null,138,null,null,408279.26,138,2,null,null,138,3,null,null,138,4,null,0,null,null,null,null,138,6,null,null,null,null,null,null,null,null,null,null,138,9]
["VA BEACH CITY PUBLIC SCHOOLS",128,null,null,null,null,null,null,null,null,null,null,null,null,null,null,null,null,null,null,null,null,null,null,null,139,1,"Yes",426422.45,139,2,"Yes",null,139,3,"Yes",null,139,4,"Yes",87692.45,null,null,null,null,139,6,"Yes",7076.08,null,null,null,null,null,null,null,null,139,9,"Yes"]
["VA DEPT OF CORRECTIONAL EDUCATION",900,null,null,null,null,null,null,null,null,null,null,null,null,null,null,null,null,null,null,null,null,null,null,null,140,1,null,248360.28,140,2,null,null,140,3,null,null,140,4,null,0,null,null,null,null,140,6,null,null,null,null,null,null,null,null,null,null,140,9]
["VIRGINIA COMMONWEALTH UNIVERSITY",881,null,null,null,null,null,null,null,null,null,null,null,null,null,null,null,null,null,null,null,null,null,null,null,142,null,"Yes",103300.01,142,2,"Yes",null,142,3,"Yes",null,142,4,"Yes",27884.560000000001,null,null,null,null,142,6,"Yes",1297.28,null,null,null,null,null,null,null,null,142,9,"Yes"]
["VSDB HAMPTON",219,null,null,null,null,null,null,null,null,null,null,null,null,null,null,null,null,null,null,null,null,null,null,null,143,1,"Yes",1224558.32,143,2,"Yes",null,143,3,"Yes",null,143,4,"Yes",208418.7,null,null,null,null,143,6,"Yes",280566.57,null,null,null,null,null,null,null,null,143,9,"Yes"]
["VSDB STAUNTON",218,null,null,null,null,null,null,null,null,null,null,null,null,null,null,null,null,null,null,null,null,null,null,null,144,1,"Yes",339650.44,144,2,"Yes",null,144,3,"Yes",null,144,4,"Yes",65965.02,null,null,null,null,144,6,"Yes",113806.95,null,null,null,null,null,null,null,null,144,9,"Yes"]
["WARREN COUNTY PUBLIC SCHOOLS",93,null,null,null,null,null,null,null,null,null,null,null,null,null,null,null,null,null,null,null,null,null,null,null,202,1,"Yes",270941.82,202,2,"Yes",null,202,3,"Yes",null,202,4,"Yes",20173.8,null,null,null,null,202,6,"Yes",1061.4100000000001,null,null,null,null,null,null,null,null,202,9,"Yes",11454.09]
["WASHINGTON COUNTY PUBLIC SCHOOLS",94,null,null,null,null,null,null,null,null,null,null,null,null,null,null,null,null,null,null,null,null,null,null,null,207,1,"Yes",61153.61,207,2,"Yes",null,207,3,"Yes",null,207,4,"Yes",13548.03,null,null,null,null,207,6,"Yes",1061.4100000000001,null,null,null,null,null,null,null,null,207,9,"Yes"]
["WAYNESBORO CITY PUBLIC SCHOOLS",130,null,null,null,null,null,null,null,null,null,null,null,null,null,null,null,null,null,null,null,null,null,null,null,218,1,"No",88380.54,218,2,"No",null,218,3,"No",null,218,4,"No",3816.25,null,null,null,null,218,6,"No",null,null,null,null,null,null,null,null,null,218,9,"No"]
["WEST POINT TOWN PUBLIC SCHOOLS",207,null,null,null,null,null,null,null,null,null,null,null,null,null,null,null,null,null,null,null,null,null,null,null,219,null,null,null,219,2,null,null,219,3,null,null,219,4,null,0,null,null,null,null,219,6,null,null,null,null,null,null,null,null,null,null,219,9]
["WESTMORELAND COUNTY PUBLIC SCHOOLS",95,null,null,null,null,null,null,null,null,null,null,null,null,null,null,null,null,null,null,null,null,null,null,null,871,null,null,null,871,2,null,151714.47,871,3,null,null,871,4,null,0,null,null,null,null,871,6,null,null,null,null,null,null,null,null,null,null,871,9]
["WILLIAMSBURG CITY PUBLIC SCHOOLS",131,null,null,null,null,null,null,null,null,null,null,null,null,null,null,null,null,null,null,null,null,null,null,null,917,null,null,null,917,2,null,null,917,3,null,null,900,4,null,0,null,null,null,null,917,6,null,null,null,null,null,null,null,null,null,null,900,9]
["WINCHESTER CITY PUBLIC SCHOOLS",132,null,null,null,null,null,null,null,null,null,null,null,null,null,null,null,null,null,null,null,null,null,null,null,null,null,null,null,null,null,null,null,null,null,null,null,917,6,null,14481.32]
["WISE COUNTY PUBLIC SCHOOLS",96,null,null,null,null,null,null,null,null,null,null,null,null,null,null,null,null,null,null,null,null,null,null,null,null,null,null,216737360.72999996,null,null,null,776748.66999999993,null,null,null,1107013.4500000002,null,null,null,{"$f":"SUM(AO3:AO143)","v":34675396.00000003},null,null,null,0,null,null,null,11670119.999999991,null,null,null,0,null,null,null,null,null,null,null,1952272.8000000007]
["WOODROW WILSON REHABILITATION CTR",947]
["WYTHE COUNTY PUBLIC SCHOOLS",97]
["YORK COUNTY PUBLIC SCHOOLS",98,null,null,null,null,null,null,null,null,null,null,null,null,null,null,null,null,null,null,null,null,null,null,null,null,null,null,null,null,null,null,null,null,null,null,null,null,null,null,null,null,null,null,null,null,null,null,null,null,null,null,null,null,null,null,null,null,null,null,0]
[]
[null,null,null,null,null,null,null,null,null,null,null,null,null,null,null,null,null,null,null,null,null,null,null,null,1]
[null,null,null,null,null,null,null,null,null,null,null,null,null,null,null,null,null,null,null,null,null,null,null,null,2]
[null,null,null,null,null,null,null,null,null,null,null,null,null,null,null,null,null,null,null,null,null,null,null,null,3]
[null,null,null,null,null,null,null,null,null,null,null,null,null,null,null,null,null,null,null,null,null,null,null,null,4]
[null,null,null,null,null,null,null,null,null,null,null,null,null,null,null,null,null,null,null,null,null,null,null,null,5]
[null,null,null,null,null,null,null,null,null,null,null,null,null,null,null,null,null,null,null,null,null,null,null,null,6]
[null,null,null,null,null,null,null,null,null,null,null,null,null,null,null,null,null,null,null,null,null,null,null,null,7]
[null,null,null,null,null,null,null,null,null,null,null,null,null,null,null,null,null,null,null,null,null,null,null,null,8]
[null,null,null,null,null,null,null,null,null,null,null,null,null,null,null,null,null,null,null,null,null,null,null,null,9]
[null,null,null,null,null,null,null,null,null,null,null,null,null,null,null,null,null,null,null,null,null,null,null,null,10]
[null,null,null,null,null,null,null,null,null,null,null,null,null,null,null,null,null,null,null,null,null,null,null,null,11]
[null,null,null,null,null,null,null,null,null,null,null,null,null,null,null,null,null,null,null,null,null,null,null,null,12]
[null,null,null,null,null,null,null,null,null,null,null,null,null,null,null,null,null,null,null,null,null,null,null,null,13]
[null,null,null,null,null,null,null,null,null,null,null,null,null,null,null,null,null,null,null,null,null,null,null,null,14]
[null,null,null,null,null,null,null,null,null,null,null,null,null,null,null,null,null,null,null,null,null,null,null,null,15]
[null,null,null,null,null,null,null,null,null,null,null,null,null,null,null,null,null,null,null,null,null,null,null,null,16]
[null,null,null,null,null,null,null,null,null,null,null,null,null,null,null,null,null,null,null,null,null,null,null,null,17]
[null,null,null,null,null,null,null,null,null,null,null,null,null,null,null,null,null,null,null,null,null,null,null,null,18]
[null,null,null,null,null,null,null,null,null,null,null,null,null,null,null,null,null,null,null,null,null,null,null,null,19]
[null,null,null,null,null,null,null,null,null,null,null,null,null,null,null,null,null,null,null,null,null,null,null,null,20]
[null,null,null,null,null,null,null,null,null,null,null,null,null,null,null,null,null,null,null,null,null,null,null,null,21]
[null,null,null,null,null,null,null,null,null,null,null,null,null,null,null,null,null,null,null,null,null,null,null,null,22]
[null,null,null,null,null,null,null,null,null,null,null,null,null,null,null,null,null,null,null,null,null,null,null,null,23]
[null,null,null,null,null,null,null,null,null,null,null,null,null,null,null,null,null,null,null,null,null,null,null,null,24]
[null,null,null,null,null,null,null,null,null,null,null,null,null,null,null,null,null,null,null,null,null,null,null,null,25]
[null,null,null,null,null,null,null,null,null,null,null,null,null,null,null,null,null,null,null,null,null,null,null,null,26]
[null,null,null,null,null,null,null,null,null,null,null,null,null,null,null,null,null,null,null,null,null,null,null,null,27]
[null,null,null,null,null,null,null,null,null,null,null,null,null,null,null,null,null,null,null,null,null,null,null,null,28]
[null,null,null,null,null,null,null,null,null,null,null,null,null,null,null,null,null,null,null,null,null,null,null,null,29]
[null,null,null,null,null,null,null,null,null,null,null,null,null,null,null,null,null,null,null,null,null,null,null,null,30]
[null,null,null,null,null,null,null,null,null,null,null,null,null,null,null,null,null,null,null,null,null,null,null,null,31]
[null,null,null,null,null,null,null,null,null,null,null,null,null,null,null,null,null,null,null,null,null,null,null,null,32]
[null,null,null,null,null,null,null,null,null,null,null,null,null,null,null,null,null,null,null,null,null,null,null,null,33]
[null,null,null,null,null,null,null,null,null,null,null,null,null,null,null,null,null,null,null,null,null,null,null,null,34]
[null,null,null,null,null,null,null,null,null,null,null,null,null,null,null,null,null,null,null,null,null,null,null,null,35]
[null,null,null,null,null,null,null,null,null,null,null,null,null,null,null,null,null,null,null,null,null,null,null,null,36]
[null,null,null,null,null,null,null,null,null,null,null,null,null,null,null,null,null,null,null,null,null,null,null,null,37]
[null,null,null,null,null,null,null,null,null,null,null,null,null,null,null,null,null,null,null,null,null,null,null,null,38]
[null,null,null,null,null,null,null,null,null,null,null,null,null,null,null,null,null,null,null,null,null,null,null,null,39]
[null,null,null,null,null,null,null,null,null,null,null,null,null,null,null,null,null,null,null,null,null,null,null,null,40]
[null,null,null,null,null,null,null,null,null,null,null,null,null,null,null,null,null,null,null,null,null,null,null,null,41]
[null,null,null,null,null,null,null,null,null,null,null,null,null,null,null,null,null,null,null,null,null,null,null,null,42]
[null,null,null,null,null,null,null,null,null,null,null,null,null,null,null,null,null,null,null,null,null,null,null,null,43]
[null,null,null,null,null,null,null,null,null,null,null,null,null,null,null,null,null,null,null,null,null,null,null,null,44]
[null,null,null,null,null,null,null,null,null,null,null,null,null,null,null,null,null,null,null,null,null,null,null,null,45]
[null,null,null,null,null,null,null,null,null,null,null,null,null,null,null,null,null,null,null,null,null,null,null,null,46]
[null,null,null,null,null,null,null,null,null,null,null,null,null,null,null,null,null,null,null,null,null,null,null,null,47]
[null,null,null,null,null,null,null,null,null,null,null,null,null,null,null,null,null,null,null,null,null,null,null,null,48]
[null,null,null,null,null,null,null,null,null,null,null,null,null,null,null,null,null,null,null,null,null,null,null,null,49]
[null,null,null,null,null,null,null,null,null,null,null,null,null,null,null,null,null,null,null,null,null,null,null,null,50]
[null,null,null,null,null,null,null,null,null,null,null,null,null,null,null,null,null,null,null,null,null,null,null,null,51]
[null,null,null,null,null,null,null,null,null,null,null,null,null,null,null,null,null,null,null,null,null,null,null,null,52]
[null,null,null,null,null,null,null,null,null,null,null,null,null,null,null,null,null,null,null,null,null,null,null,null,53]
[null,null,null,null,null,null,null,null,null,null,null,null,null,null,null,null,null,null,null,null,null,null,null,null,54]
[null,null,null,null,null,null,null,null,null,null,null,null,null,null,null,null,null,null,null,null,null,null,null,null,55]
[null,null,null,null,null,null,null,null,null,null,null,null,null,null,null,null,null,null,null,null,null,null,null,null,56]
[null,null,null,null,null,null,null,null,null,null,null,null,null,null,null,null,null,null,null,null,null,null,null,null,57]
[null,null,null,null,null,null,null,null,null,null,null,null,null,null,null,null,null,null,null,null,null,null,null,null,58]
[null,null,null,null,null,null,null,null,null,null,null,null,null,null,null,null,null,null,null,null,null,null,null,null,59]
[null,null,null,null,null,null,null,null,null,null,null,null,null,null,null,null,null,null,null,null,null,null,null,null,60]
[null,null,null,null,null,null,null,null,null,null,null,null,null,null,null,null,null,null,null,null,null,null,null,null,62]
[null,null,null,null,null,null,null,null,null,null,null,null,null,null,null,null,null,null,null,null,null,null,null,null,63]
[null,null,null,null,null,null,null,null,null,null,null,null,null,null,null,null,null,null,null,null,null,null,null,null,65]
[null,null,null,null,null,null,null,null,null,null,null,null,null,null,null,null,null,null,null,null,null,null,null,null,66]
[null,null,null,null,null,null,null,null,null,null,null,null,null,null,null,null,null,null,null,null,null,null,null,null,67]
[null,null,null,null,null,null,null,null,null,null,null,null,null,null,null,null,null,null,null,null,null,null,null,null,68]
[null,null,null,null,null,null,null,null,null,null,null,null,null,null,null,null,null,null,null,null,null,null,null,null,69]
[null,null,null,null,null,null,null,null,null,null,null,null,null,null,null,null,null,null,null,null,null,null,null,null,70]
[null,null,null,null,null,null,null,null,null,null,null,null,null,null,null,null,null,null,null,null,null,null,null,null,71]
[null,null,null,null,null,null,null,null,null,null,null,null,null,null,null,null,null,null,null,null,null,null,null,null,72]
[null,null,null,null,null,null,null,null,null,null,null,null,null,null,null,null,null,null,null,null,null,null,null,null,73]
[null,null,null,null,null,null,null,null,null,null,null,null,null,null,null,null,null,null,null,null,null,null,null,null,74]
[null,null,null,null,null,null,null,null,null,null,null,null,null,null,null,null,null,null,null,null,null,null,null,null,75]
[null,null,null,null,null,null,null,null,null,null,null,null,null,null,null,null,null,null,null,null,null,null,null,null,77]
[null,null,null,null,null,null,null,null,null,null,null,null,null,null,null,null,null,null,null,null,null,null,null,null,78]
[null,null,null,null,null,null,null,null,null,null,null,null,null,null,null,null,null,null,null,null,null,null,null,null,79]
[null,null,null,null,null,null,null,null,null,null,null,null,null,null,null,null,null,null,null,null,null,null,null,null,80]
[null,null,null,null,null,null,null,null,null,null,null,null,null,null,null,null,null,null,null,null,null,null,null,null,81]
[null,null,null,null,null,null,null,null,null,null,null,null,null,null,null,null,null,null,null,null,null,null,null,null,82]
[null,null,null,null,null,null,null,null,null,null,null,null,null,null,null,null,null,null,null,null,null,null,null,null,83]
[null,null,null,null,null,null,null,null,null,null,null,null,null,null,null,null,null,null,null,null,null,null,null,null,84]
[null,null,null,null,null,null,null,null,null,null,null,null,null,null,null,null,null,null,null,null,null,null,null,null,85]
[null,null,null,null,null,null,null,null,null,null,null,null,null,null,null,null,null,null,null,null,null,null,null,null,86]
[null,null,null,null,null,null,null,null,null,null,null,null,null,null,null,null,null,null,null,null,null,null,null,null,87]
[null,null,null,null,null,null,null,null,null,null,null,null,null,null,null,null,null,null,null,null,null,null,null,null,88]
[null,null,null,null,null,null,null,null,null,null,null,null,null,null,null,null,null,null,null,null,null,null,null,null,89]
[null,null,null,null,null,null,null,null,null,null,null,null,null,null,null,null,null,null,null,null,null,null,null,null,90]
[null,null,null,null,null,null,null,null,null,null,null,null,null,null,null,null,null,null,null,null,null,null,null,null,91]
[null,null,null,null,null,null,null,null,null,null,null,null,null,null,null,null,null,null,null,null,null,null,null,null,92]
[null,null,null,null,null,null,null,null,null,null,null,null,null,null,null,null,null,null,null,null,null,null,null,null,93]
[null,null,null,null,null,null,null,null,null,null,null,null,null,null,null,null,null,null,null,null,null,null,null,null,94]
[null,null,null,null,null,null,null,null,null,null,null,null,null,null,null,null,null,null,null,null,null,null,null,null,95]
[null,null,null,null,null,null,null,null,null,null,null,null,null,null,null,null,null,null,null,null,null,null,null,null,96]
[null,null,null,null,null,null,null,null,null,null,null,null,null,null,null,null,null,null,null,null,null,null,null,null,97]
[null,null,null,null,null,null,null,null,null,null,null,null,null,null,null,null,null,null,null,null,null,null,null,null,98]
[null,null,null,null,null,null,null,null,null,null,null,null,null,null,null,null,null,null,null,null,null,null,null,null,101]
[null,null,null,null,null,null,null,null,null,null,null,null,null,null,null,null,null,null,null,null,null,null,null,null,102]
[null,null,null,null,null,null,null,null,null,null,null,null,null,null,null,null,null,null,null,null,null,null,null,null,103]
[null,null,null,null,null,null,null,null,null,null,null,null,null,null,null,null,null,null,null,null,null,null,null,null,104]
[null,null,null,null,null,null,null,null,null,null,null,null,null,null,null,null,null,null,null,null,null,null,null,null,106]
[null,null,null,null,null,null,null,null,null,null,null,null,null,null,null,null,null,null,null,null,null,null,null,null,107]
[null,null,null,null,null,null,null,null,null,null,null,null,null,null,null,null,null,null,null,null,null,null,null,null,108]
[null,null,null,null,null,null,null,null,null,null,null,null,null,null,null,null,null,null,null,null,null,null,null,null,109]
[null,null,null,null,null,null,null,null,null,null,null,null,null,null,null,null,null,null,null,null,null,null,null,null,110]
[null,null,null,null,null,null,null,null,null,null,null,null,null,null,null,null,null,null,null,null,null,null,null,null,111]
[null,null,null,null,null,null,null,null,null,null,null,null,null,null,null,null,null,null,null,null,null,null,null,null,112]
[null,null,null,null,null,null,null,null,null,null,null,null,null,null,null,null,null,null,null,null,null,null,null,null,113]
[null,null,null,null,null,null,null,null,null,null,null,null,null,null,null,null,null,null,null,null,null,null,null,null,114]
[null,null,null,null,null,null,null,null,null,null,null,null,null,null,null,null,null,null,null,null,null,null,null,null,115]
[null,null,null,null,null,null,null,null,null,null,null,null,null,null,null,null,null,null,null,null,null,null,null,null,116]
[null,null,null,null,null,null,null,null,null,null,null,null,null,null,null,null,null,null,null,null,null,null,null,null,117]
[null,null,null,null,null,null,null,null,null,null,null,null,null,null,null,null,null,null,null,null,null,null,null,null,118]
[null,null,null,null,null,null,null,null,null,null,null,null,null,null,null,null,null,null,null,null,null,null,null,null,119]
[null,null,null,null,null,null,null,null,null,null,null,null,null,null,null,null,null,null,null,null,null,null,null,null,120]
[null,null,null,null,null,null,null,null,null,null,null,null,null,null,null,null,null,null,null,null,null,null,null,null,121]
[null,null,null,null,null,null,null,null,null,null,null,null,null,null,null,null,null,null,null,null,null,null,null,null,122]
[null,null,null,null,null,null,null,null,null,null,null,null,null,null,null,null,null,null,null,null,null,null,null,null,123]
[null,null,null,null,null,null,null,null,null,null,null,null,null,null,null,null,null,null,null,null,null,null,null,null,124]
[null,null,null,null,null,null,null,null,null,null,null,null,null,null,null,null,null,null,null,null,null,null,null,null,126]
[null,null,null,null,null,null,null,null,null,null,null,null,null,null,null,null,null,null,null,null,null,null,null,null,127]
[null,null,null,null,null,null,null,null,null,null,null,null,null,null,null,null,null,null,null,null,null,null,null,null,128]
[null,null,null,null,null,null,null,null,null,null,null,null,null,null,null,null,null,null,null,null,null,null,null,null,130]
[null,null,null,null,null,null,null,null,null,null,null,null,null,null,null,null,null,null,null,null,null,null,null,null,131]
[null,null,null,null,null,null,null,null,null,null,null,null,null,null,null,null,null,null,null,null,null,null,null,null,132]
[null,null,null,null,null,null,null,null,null,null,null,null,null,null,null,null,null,null,null,null,null,null,null,null,134]
[null,null,null,null,null,null,null,null,null,null,null,null,null,null,null,null,null,null,null,null,null,null,null,null,135]
[null,null,null,null,null,null,null,null,null,null,null,null,null,null,null,null,null,null,null,null,null,null,null,null,136]
[null,null,null,null,null,null,null,null,null,null,null,null,null,null,null,null,null,null,null,null,null,null,null,null,137]
[null,null,null,null,null,null,null,null,null,null,null,null,null,null,null,null,null,null,null,null,null,null,null,null,138]
[null,null,null,null,null,null,null,null,null,null,null,null,null,null,null,null,null,null,null,null,null,null,null,null,139]
[null,null,null,null,null,null,null,null,null,null,null,null,null,null,null,null,null,null,null,null,null,null,null,null,140]
[null,null,null,null,null,null,null,null,null,null,null,null,null,null,null,null,null,null,null,null,null,null,null,null,142]
[null,null,null,null,null,null,null,null,null,null,null,null,null,null,null,null,null,null,null,null,null,null,null,null,143]
[null,null,null,null,null,null,null,null,null,null,null,null,null,null,null,null,null,null,null,null,null,null,null,null,144]
[null,null,null,null,null,null,null,null,null,null,null,null,null,null,null,null,null,null,null,null,null,null,null,null,202]
[null,null,null,null,null,null,null,null,null,null,null,null,null,null,null,null,null,null,null,null,null,null,null,null,207]
[null,null,null,null,null,null,null,null,null,null,null,null,null,null,null,null,null,null,null,null,null,null,null,null,218]
[null,null,null,null,null,null,null,null,null,null,null,null,null,null,null,null,null,null,null,null,null,null,null,null,219]
[null,null,null,null,null,null,null,null,null,null,null,null,null,null,null,null,null,null,null,null,null,null,null,null,871]
[null,null,null,null,null,null,null,null,null,null,null,null,null,null,null,null,null,null,null,null,null,null,null,null,917]